"Body Name","Body","Service Area Categorisation","Service Division Categorisation","Responsible Unit","Expenses Type","Detailed Expenses Type","Payment Date","Transaction Number","Payment Amount","Supplier Type","Supplier Name","Supplier Id"
"Portsmouth City Council","PCC","Environmental and Regulatory Services","Regulatory Services","Culture, Leisure & Regulatory Services","Third Party Payments","Other agencies","4-May-21","6504184","295.18","OTHER LOCAL AUTHORITY","HAMPSHIRE COUNTY COUNCIL","300000019988503"
"Portsmouth City Council","PCC","Children's and Education Services","Safeguarding Children and Young Peoples Services","Children's Services and Education","Third Party Payments","Other local authorities","4-May-21","6504184","243.9","OTHER LOCAL AUTHORITY","HAMPSHIRE COUNTY COUNCIL","300000019988503"
"Portsmouth City Council","PCC","Cultural and Related Services","Culture and Heritage","Culture, Leisure & Regulatory Services","Third Party Payments","Private contractors","4-May-21","6504214","2,600.00","SUPPLIER","ARTSERVICE","300000020477627"
"Portsmouth City Council","PCC","Costs below Net Cost of Services","Trading","Regeneration","Third Party Payments","Private contractors","4-May-21","6504036","1,283.34","SUPPLIER","THE OYSTER PARTNERSHIP","300000020460395"
"Portsmouth City Council","PCC","Costs below Net Cost of Services","Trading","Regeneration","Third Party Payments","Private contractors","4-May-21","6504036","450.41","SUPPLIER","THE OYSTER PARTNERSHIP","300000020460395"
"Portsmouth City Council","PCC","Children's and Education Services","Safeguarding Children and Young Peoples Services","Children's Services and Education","Premises-Related Expenditure","Rents","28-May-21","6509058","750","SUPPLIER","Classified as 'personal data' (under the Data Protection Act 2018)","300000020481725"
"Portsmouth City Council","PCC","Children's and Education Services","Children Looked After","Children's Services and Education","Third Party Payments","Other establishments","5-May-21","6504533","-0.04","SUPPLIER","THE CHILDRENS FAMILY TRUST","300000020479545"
"Portsmouth City Council","PCC","Children's and Education Services","Children Looked After","Children's Services and Education","Third Party Payments","Other establishments","5-May-21","6504533","331.83","SUPPLIER","THE CHILDRENS FAMILY TRUST","300000020479545"
"Portsmouth City Council","PCC","Children's and Education Services","Children Looked After","Children's Services and Education","Third Party Payments","Other establishments","5-May-21","6504533","663.67","SUPPLIER","THE CHILDRENS FAMILY TRUST","300000020479545"
"Portsmouth City Council","PCC","Children's and Education Services","Children Looked After","Children's Services and Education","Third Party Payments","Other establishments","5-May-21","6504533","2,322.84","SUPPLIER","THE CHILDRENS FAMILY TRUST","300000020479545"
"Portsmouth City Council","PCC","Children's and Education Services","Children Looked After","Children's Services and Education","Third Party Payments","Other establishments","5-May-21","6504533","-33.56","SUPPLIER","THE CHILDRENS FAMILY TRUST","300000020479545"
"Portsmouth City Council","PCC","Children's and Education Services","Children Looked After","Children's Services and Education","Third Party Payments","Other establishments","5-May-21","6504533","335.19","SUPPLIER","THE CHILDRENS FAMILY TRUST","300000020479545"
"Portsmouth City Council","PCC","Children's and Education Services","Children Looked After","Children's Services and Education","Third Party Payments","Other establishments","5-May-21","6504533","670.37","SUPPLIER","THE CHILDRENS FAMILY TRUST","300000020479545"
"Portsmouth City Council","PCC","Children's and Education Services","Children Looked After","Children's Services and Education","Third Party Payments","Other establishments","5-May-21","6504533","2,346.30","SUPPLIER","THE CHILDRENS FAMILY TRUST","300000020479545"
"Portsmouth City Council","PCC","Children's and Education Services","Children Looked After","Children's Services and Education","Third Party Payments","Other establishments","5-May-21","6504533","331.83","SUPPLIER","THE CHILDRENS FAMILY TRUST","300000020479545"
"Portsmouth City Council","PCC","Children's and Education Services","Children Looked After","Children's Services and Education","Third Party Payments","Other establishments","5-May-21","6504533","663.66","SUPPLIER","THE CHILDRENS FAMILY TRUST","300000020479545"
"Portsmouth City Council","PCC","Children's and Education Services","Children Looked After","Children's Services and Education","Third Party Payments","Other establishments","5-May-21","6504533","2,322.81","SUPPLIER","THE CHILDRENS FAMILY TRUST","300000020479545"
"Portsmouth City Council","PCC","Children's and Education Services","Children Looked After","Children's Services and Education","Third Party Payments","Other establishments","5-May-21","6504533","328.5","SUPPLIER","THE CHILDRENS FAMILY TRUST","300000020479545"
"Portsmouth City Council","PCC","Children's and Education Services","Children Looked After","Children's Services and Education","Third Party Payments","Other establishments","5-May-21","6504533","657","SUPPLIER","THE CHILDRENS FAMILY TRUST","300000020479545"
"Portsmouth City Council","PCC","Children's and Education Services","Children Looked After","Children's Services and Education","Third Party Payments","Other establishments","5-May-21","6504533","2,299.50","SUPPLIER","THE CHILDRENS FAMILY TRUST","300000020479545"
"Portsmouth City Council","PCC","Children's and Education Services","Children Looked After","Children's Services and Education","Third Party Payments","Other establishments","5-May-21","6504533","-0.04","SUPPLIER","THE CHILDRENS FAMILY TRUST","300000020479545"
"Portsmouth City Council","PCC","Children's and Education Services","Children Looked After","Children's Services and Education","Third Party Payments","Other establishments","5-May-21","6504533","323.43","SUPPLIER","THE CHILDRENS FAMILY TRUST","300000020479545"
"Portsmouth City Council","PCC","Children's and Education Services","Children Looked After","Children's Services and Education","Third Party Payments","Other establishments","5-May-21","6504533","646.87","SUPPLIER","THE CHILDRENS FAMILY TRUST","300000020479545"
"Portsmouth City Council","PCC","Children's and Education Services","Children Looked After","Children's Services and Education","Third Party Payments","Other establishments","5-May-21","6504533","2,264.04","SUPPLIER","THE CHILDRENS FAMILY TRUST","300000020479545"
"Portsmouth City Council","PCC","Adult Social Care","Physical Support Adults (18 - 64)","Adult Services","Third Party Payments","Other establishments","21-May-21","6507566","1,245.68","PRIVATE PROVIDER","Classified as 'personal data' (under the Data Protection Act 2018)","300000020462967"
"Portsmouth City Council","PCC","Cultural and Related Services","Open Spaces","Culture, Leisure & Regulatory Services","Premises-Related Expenditure","Grounds maintenance costs","7-May-21","6505072","4,985.17","LIMITED COMPANY","J B CORRIE AND CO LTD","300000020461812"
"Portsmouth City Council","PCC","Support Service / Transparency Costs Unallocated","AMS","Housing, Neighbourhood and Building Services","Transport-Related Expenditure","Direct transport costs","7-May-21","6505132","130.85","SUPPLIER","REL BOARHUNT LIMITED","300000020463948"
"Portsmouth City Council","PCC","Housing Revenue Account","Special Services","Housing, Neighbourhood and Building Services","Transport-Related Expenditure","Direct transport costs","7-May-21","6505132","-392.4","SUPPLIER","REL BOARHUNT LIMITED","300000020463948"
"Portsmouth City Council","PCC","Children's and Education Services","Other Education and Community Budget","Children's Services and Education","Transport-Related Expenditure","Direct transport costs","7-May-21","6505132","392.4","SUPPLIER","REL BOARHUNT LIMITED","300000020463948"
"Portsmouth City Council","PCC","Housing Revenue Account","Special Services","Housing, Neighbourhood and Building Services","Transport-Related Expenditure","Direct transport costs","7-May-21","6505132","392.4","SUPPLIER","REL BOARHUNT LIMITED","300000020463948"
"Portsmouth City Council","PCC","Housing Revenue Account","Special Services","Housing, Neighbourhood and Building Services","Transport-Related Expenditure","Direct transport costs","7-May-21","6505132","-400.36","SUPPLIER","REL BOARHUNT LIMITED","300000020463948"
"Portsmouth City Council","PCC","Children's and Education Services","Other Education and Community Budget","Children's Services and Education","Transport-Related Expenditure","Direct transport costs","7-May-21","6505132","400.36","SUPPLIER","REL BOARHUNT LIMITED","300000020463948"
"Portsmouth City Council","PCC","Housing Revenue Account","Special Services","Housing, Neighbourhood and Building Services","Transport-Related Expenditure","Direct transport costs","7-May-21","6505132","400.36","SUPPLIER","REL BOARHUNT LIMITED","300000020463948"
"Portsmouth City Council","PCC","Environmental and Regulatory Services","Regulatory Services","Culture, Leisure & Regulatory Services","Supplies and Services","Equipment, furniture and materials","5-May-21","6504707","1,656.81","SUPPLIER","VIP SYSTEM LIMITED","300000020480273"
"Portsmouth City Council","PCC","Adult Social Care","Social Care Activities","Adult Services","Third Party Payments","Other establishments","21-May-21","6507506","3,102.12","PRIVATE PROVIDER","Classified as 'personal data' (under the Data Protection Act 2018)","300000020480691"
"Portsmouth City Council","PCC","Costs below Net Cost of Services","Trading","Regeneration","Premises-Related Expenditure","Repairs, alterations and maintenance of buildings","7-May-21","6505092","2,403.15","SUPPLIER","VISTECH SERVICES LTD","300000020480163"
"Portsmouth City Council","PCC","Children's and Education Services","Primary Schools","Children's Services and Education","Third Party Payments","Other local authorities","27-May-21","6508761","-2,310.88","OTHER LOCAL AUTHORITY","DEVON COUNTY COUNCIL","300000020459477"
"Portsmouth City Council","PCC","Children's and Education Services","Primary Schools","Children's Services and Education","Third Party Payments","Other local authorities","27-May-21","6508761","3,001.77","OTHER LOCAL AUTHORITY","DEVON COUNTY COUNCIL","300000020459477"
"Portsmouth City Council","PCC","Children's and Education Services","Children Looked After","Children's Services and Education","Third Party Payments","Other establishments","25-May-21","6508037","-4,163.92","SUPPLIER","SOLENT NHS TRUST","300000020460772"
"Portsmouth City Council","PCC","Children's and Education Services","Special Schools","Children's Services and Education","Third Party Payments","Other establishments","14-May-21","6506396","-13,167.47","SUPPLIER","ST EDWARDS SCHOOL","300000020459845"
"Portsmouth City Council","PCC","Other","Suspense and Capital Schemes","Capital - Housing General Fund","Capital Charges","REFCUS","4-May-21","6504302","1,625.00","LIMITED COMPANY","LIFTECH SYSTEMS (SE) LIMITED","300000020461913"
"Portsmouth City Council","PCC","Children's and Education Services","Children Looked After","Children's Services and Education","Third Party Payments","Other establishments","5-May-21","6504617","0.01","SUPPLIER","FAIRWAYS CARE (UK) LTD","300000020459125"
"Portsmouth City Council","PCC","Children's and Education Services","Children Looked After","Children's Services and Education","Third Party Payments","Other establishments","5-May-21","6504617","1,258.23","SUPPLIER","FAIRWAYS CARE (UK) LTD","300000020459125"
"Portsmouth City Council","PCC","Children's and Education Services","Children Looked After","Children's Services and Education","Third Party Payments","Other establishments","5-May-21","6504617","1,887.35","SUPPLIER","FAIRWAYS CARE (UK) LTD","300000020459125"
"Portsmouth City Council","PCC","Children's and Education Services","Children Looked After","Children's Services and Education","Third Party Payments","Other establishments","5-May-21","6504617","-0.01","SUPPLIER","FAIRWAYS CARE (UK) LTD","300000020459125"
"Portsmouth City Council","PCC","Children's and Education Services","Children Looked After","Children's Services and Education","Third Party Payments","Other establishments","5-May-21","6504617","314.56","SUPPLIER","FAIRWAYS CARE (UK) LTD","300000020459125"
"Portsmouth City Council","PCC","Children's and Education Services","Children Looked After","Children's Services and Education","Third Party Payments","Other establishments","5-May-21","6504617","943.68","SUPPLIER","FAIRWAYS CARE (UK) LTD","300000020459125"
"Portsmouth City Council","PCC","Children's and Education Services","Children Looked After","Children's Services and Education","Third Party Payments","Other establishments","4-May-21","6504273","-0.08","SUPPLIER","FOSTERING RELATIONS LIMITED","300000020475015"
"Portsmouth City Council","PCC","Children's and Education Services","Children Looked After","Children's Services and Education","Third Party Payments","Other establishments","4-May-21","6504273","507.43","SUPPLIER","FOSTERING RELATIONS LIMITED","300000020475015"
"Portsmouth City Council","PCC","Children's and Education Services","Children Looked After","Children's Services and Education","Third Party Payments","Other establishments","4-May-21","6504273","676.57","SUPPLIER","FOSTERING RELATIONS LIMITED","300000020475015"
"Portsmouth City Council","PCC","Children's and Education Services","Children Looked After","Children's Services and Education","Third Party Payments","Other establishments","4-May-21","6504273","3,552.00","SUPPLIER","FOSTERING RELATIONS LIMITED","300000020475015"
"Portsmouth City Council","PCC","Children's and Education Services","Safeguarding Children and Young Peoples Services","Children's Services and Education","Third Party Payments","Other establishments","7-May-21","6505134","-30","SUPPLIER","LILIAN DAVIS GROUP LTD","300000020467263"
"Portsmouth City Council","PCC","Children's and Education Services","Safeguarding Children and Young Peoples Services","Children's Services and Education","Third Party Payments","Other establishments","7-May-21","6505134","-8.57","SUPPLIER","LILIAN DAVIS GROUP LTD","300000020467263"
"Portsmouth City Council","PCC","Children's and Education Services","Safeguarding Children and Young Peoples Services","Children's Services and Education","Third Party Payments","Other establishments","7-May-21","6505134","-4.29","SUPPLIER","LILIAN DAVIS GROUP LTD","300000020467263"
"Portsmouth City Council","PCC","Children's and Education Services","Safeguarding Children and Young Peoples Services","Children's Services and Education","Third Party Payments","Other establishments","7-May-21","6505134","-0.17","SUPPLIER","LILIAN DAVIS GROUP LTD","300000020467263"
"Portsmouth City Council","PCC","Children's and Education Services","Safeguarding Children and Young Peoples Services","Children's Services and Education","Third Party Payments","Other establishments","7-May-21","6505134","24.81","SUPPLIER","LILIAN DAVIS GROUP LTD","300000020467263"
"Portsmouth City Council","PCC","Children's and Education Services","Safeguarding Children and Young Peoples Services","Children's Services and Education","Third Party Payments","Other establishments","7-May-21","6505134","49.63","SUPPLIER","LILIAN DAVIS GROUP LTD","300000020467263"
"Portsmouth City Council","PCC","Children's and Education Services","Safeguarding Children and Young Peoples Services","Children's Services and Education","Third Party Payments","Other establishments","7-May-21","6505134","173.7","SUPPLIER","LILIAN DAVIS GROUP LTD","300000020467263"
"Portsmouth City Council","PCC","Children's and Education Services","Safeguarding Children and Young Peoples Services","Children's Services and Education","Third Party Payments","Other establishments","7-May-21","6505134","75","SUPPLIER","LILIAN DAVIS GROUP LTD","300000020467263"
"Portsmouth City Council","PCC","Children's and Education Services","Safeguarding Children and Young Peoples Services","Children's Services and Education","Third Party Payments","Other establishments","7-May-21","6505134","150","SUPPLIER","LILIAN DAVIS GROUP LTD","300000020467263"
"Portsmouth City Council","PCC","Children's and Education Services","Safeguarding Children and Young Peoples Services","Children's Services and Education","Third Party Payments","Other establishments","7-May-21","6505134","171.43","SUPPLIER","LILIAN DAVIS GROUP LTD","300000020467263"
"Portsmouth City Council","PCC","Children's and Education Services","Safeguarding Children and Young Peoples Services","Children's Services and Education","Third Party Payments","Other establishments","7-May-21","6505134","525","SUPPLIER","LILIAN DAVIS GROUP LTD","300000020467263"
"Portsmouth City Council","PCC","Children's and Education Services","Safeguarding Children and Young Peoples Services","Children's Services and Education","Third Party Payments","Other establishments","7-May-21","6505134","342.86","SUPPLIER","LILIAN DAVIS GROUP LTD","300000020467263"
"Portsmouth City Council","PCC","Children's and Education Services","Safeguarding Children and Young Peoples Services","Children's Services and Education","Third Party Payments","Other establishments","7-May-21","6505134","1,200.00","SUPPLIER","LILIAN DAVIS GROUP LTD","300000020467263"
"Portsmouth City Council","PCC","Children's and Education Services","Asylum seekers","Children's Services and Education","Third Party Payments","Other establishments","7-May-21","6505134","-21.5","SUPPLIER","LILIAN DAVIS GROUP LTD","300000020467263"
"Portsmouth City Council","PCC","Children's and Education Services","Asylum seekers","Children's Services and Education","Third Party Payments","Other establishments","7-May-21","6505134","-30","SUPPLIER","LILIAN DAVIS GROUP LTD","300000020467263"
"Portsmouth City Council","PCC","Children's and Education Services","Asylum seekers","Children's Services and Education","Third Party Payments","Other establishments","7-May-21","6505134","-8.57","SUPPLIER","LILIAN DAVIS GROUP LTD","300000020467263"
"Portsmouth City Council","PCC","Children's and Education Services","Asylum seekers","Children's Services and Education","Third Party Payments","Other establishments","7-May-21","6505134","-4.29","SUPPLIER","LILIAN DAVIS GROUP LTD","300000020467263"
"Portsmouth City Council","PCC","Children's and Education Services","Asylum seekers","Children's Services and Education","Third Party Payments","Other establishments","7-May-21","6505134","24.81","SUPPLIER","LILIAN DAVIS GROUP LTD","300000020467263"
"Portsmouth City Council","PCC","Children's and Education Services","Asylum seekers","Children's Services and Education","Third Party Payments","Other establishments","7-May-21","6505134","49.63","SUPPLIER","LILIAN DAVIS GROUP LTD","300000020467263"
"Portsmouth City Council","PCC","Children's and Education Services","Asylum seekers","Children's Services and Education","Third Party Payments","Other establishments","7-May-21","6505134","53.57","SUPPLIER","LILIAN DAVIS GROUP LTD","300000020467263"
"Portsmouth City Council","PCC","Children's and Education Services","Asylum seekers","Children's Services and Education","Third Party Payments","Other establishments","7-May-21","6505134","173.7","SUPPLIER","LILIAN DAVIS GROUP LTD","300000020467263"
"Portsmouth City Council","PCC","Children's and Education Services","Asylum seekers","Children's Services and Education","Third Party Payments","Other establishments","7-May-21","6505134","107.14","SUPPLIER","LILIAN DAVIS GROUP LTD","300000020467263"
"Portsmouth City Council","PCC","Children's and Education Services","Asylum seekers","Children's Services and Education","Third Party Payments","Other establishments","7-May-21","6505134","375","SUPPLIER","LILIAN DAVIS GROUP LTD","300000020467263"
"Portsmouth City Council","PCC","Children's and Education Services","Asylum seekers","Children's Services and Education","Third Party Payments","Other establishments","7-May-21","6505134","188.57","SUPPLIER","LILIAN DAVIS GROUP LTD","300000020467263"
"Portsmouth City Council","PCC","Children's and Education Services","Asylum seekers","Children's Services and Education","Third Party Payments","Other establishments","7-May-21","6505134","377.14","SUPPLIER","LILIAN DAVIS GROUP LTD","300000020467263"
"Portsmouth City Council","PCC","Children's and Education Services","Asylum seekers","Children's Services and Education","Third Party Payments","Other establishments","7-May-21","6505134","1,320.00","SUPPLIER","LILIAN DAVIS GROUP LTD","300000020467263"
"Portsmouth City Council","PCC","Children's and Education Services","Safeguarding Children and Young Peoples Services","Children's Services and Education","Third Party Payments","Other establishments","7-May-21","6505134","-248.14","SUPPLIER","LILIAN DAVIS GROUP LTD","300000020467263"
"Portsmouth City Council","PCC","Children's and Education Services","Safeguarding Children and Young Peoples Services","Children's Services and Education","Third Party Payments","Other establishments","7-May-21","6505134","-30","SUPPLIER","LILIAN DAVIS GROUP LTD","300000020467263"
"Portsmouth City Council","PCC","Children's and Education Services","Safeguarding Children and Young Peoples Services","Children's Services and Education","Third Party Payments","Other establishments","7-May-21","6505134","-8.57","SUPPLIER","LILIAN DAVIS GROUP LTD","300000020467263"
"Portsmouth City Council","PCC","Children's and Education Services","Safeguarding Children and Young Peoples Services","Children's Services and Education","Third Party Payments","Other establishments","7-May-21","6505134","-4.29","SUPPLIER","LILIAN DAVIS GROUP LTD","300000020467263"
"Portsmouth City Council","PCC","Children's and Education Services","Safeguarding Children and Young Peoples Services","Children's Services and Education","Third Party Payments","Other establishments","7-May-21","6505134","24.81","SUPPLIER","LILIAN DAVIS GROUP LTD","300000020467263"
"Portsmouth City Council","PCC","Children's and Education Services","Safeguarding Children and Young Peoples Services","Children's Services and Education","Third Party Payments","Other establishments","7-May-21","6505134","32.14","SUPPLIER","LILIAN DAVIS GROUP LTD","300000020467263"
"Portsmouth City Council","PCC","Children's and Education Services","Safeguarding Children and Young Peoples Services","Children's Services and Education","Third Party Payments","Other establishments","7-May-21","6505134","49.63","SUPPLIER","LILIAN DAVIS GROUP LTD","300000020467263"
"Portsmouth City Council","PCC","Children's and Education Services","Safeguarding Children and Young Peoples Services","Children's Services and Education","Third Party Payments","Other establishments","7-May-21","6505134","173.7","SUPPLIER","LILIAN DAVIS GROUP LTD","300000020467263"
"Portsmouth City Council","PCC","Children's and Education Services","Safeguarding Children and Young Peoples Services","Children's Services and Education","Third Party Payments","Other establishments","7-May-21","6505134","64.29","SUPPLIER","LILIAN DAVIS GROUP LTD","300000020467263"
"Portsmouth City Council","PCC","Children's and Education Services","Safeguarding Children and Young Peoples Services","Children's Services and Education","Third Party Payments","Other establishments","7-May-21","6505134","225","SUPPLIER","LILIAN DAVIS GROUP LTD","300000020467263"
"Portsmouth City Council","PCC","Children's and Education Services","Safeguarding Children and Young Peoples Services","Children's Services and Education","Third Party Payments","Other establishments","7-May-21","6505134","182.14","SUPPLIER","LILIAN DAVIS GROUP LTD","300000020467263"
"Portsmouth City Council","PCC","Children's and Education Services","Safeguarding Children and Young Peoples Services","Children's Services and Education","Third Party Payments","Other establishments","7-May-21","6505134","364.29","SUPPLIER","LILIAN DAVIS GROUP LTD","300000020467263"
"Portsmouth City Council","PCC","Children's and Education Services","Safeguarding Children and Young Peoples Services","Children's Services and Education","Third Party Payments","Other establishments","7-May-21","6505134","1,275.00","SUPPLIER","LILIAN DAVIS GROUP LTD","300000020467263"
"Portsmouth City Council","PCC","Children's and Education Services","Safeguarding Children and Young Peoples Services","Children's Services and Education","Third Party Payments","Other establishments","7-May-21","6505134","-30","SUPPLIER","LILIAN DAVIS GROUP LTD","300000020467263"
"Portsmouth City Council","PCC","Children's and Education Services","Safeguarding Children and Young Peoples Services","Children's Services and Education","Third Party Payments","Other establishments","7-May-21","6505134","-8.57","SUPPLIER","LILIAN DAVIS GROUP LTD","300000020467263"
"Portsmouth City Council","PCC","Children's and Education Services","Safeguarding Children and Young Peoples Services","Children's Services and Education","Third Party Payments","Other establishments","7-May-21","6505134","-4.29","SUPPLIER","LILIAN DAVIS GROUP LTD","300000020467263"
"Portsmouth City Council","PCC","Children's and Education Services","Safeguarding Children and Young Peoples Services","Children's Services and Education","Third Party Payments","Other establishments","7-May-21","6505134","-0.26","SUPPLIER","LILIAN DAVIS GROUP LTD","300000020467263"
"Portsmouth City Council","PCC","Children's and Education Services","Safeguarding Children and Young Peoples Services","Children's Services and Education","Third Party Payments","Other establishments","7-May-21","6505134","32.14","SUPPLIER","LILIAN DAVIS GROUP LTD","300000020467263"
"Portsmouth City Council","PCC","Children's and Education Services","Safeguarding Children and Young Peoples Services","Children's Services and Education","Third Party Payments","Other establishments","7-May-21","6505134","64.29","SUPPLIER","LILIAN DAVIS GROUP LTD","300000020467263"
"Portsmouth City Council","PCC","Children's and Education Services","Safeguarding Children and Young Peoples Services","Children's Services and Education","Third Party Payments","Other establishments","7-May-21","6505134","225","SUPPLIER","LILIAN DAVIS GROUP LTD","300000020467263"
"Portsmouth City Council","PCC","Children's and Education Services","Safeguarding Children and Young Peoples Services","Children's Services and Education","Third Party Payments","Other establishments","7-May-21","6505134","186.43","SUPPLIER","LILIAN DAVIS GROUP LTD","300000020467263"
"Portsmouth City Council","PCC","Children's and Education Services","Safeguarding Children and Young Peoples Services","Children's Services and Education","Third Party Payments","Other establishments","7-May-21","6505134","372.86","SUPPLIER","LILIAN DAVIS GROUP LTD","300000020467263"
"Portsmouth City Council","PCC","Children's and Education Services","Safeguarding Children and Young Peoples Services","Children's Services and Education","Third Party Payments","Other establishments","7-May-21","6505134","1,305.00","SUPPLIER","LILIAN DAVIS GROUP LTD","300000020467263"
"Portsmouth City Council","PCC","Children's and Education Services","Safeguarding Children and Young Peoples Services","Children's Services and Education","Third Party Payments","Other establishments","7-May-21","6505134","-30","SUPPLIER","LILIAN DAVIS GROUP LTD","300000020467263"
"Portsmouth City Council","PCC","Children's and Education Services","Safeguarding Children and Young Peoples Services","Children's Services and Education","Third Party Payments","Other establishments","7-May-21","6505134","-8.57","SUPPLIER","LILIAN DAVIS GROUP LTD","300000020467263"
"Portsmouth City Council","PCC","Children's and Education Services","Safeguarding Children and Young Peoples Services","Children's Services and Education","Third Party Payments","Other establishments","7-May-21","6505134","-4.29","SUPPLIER","LILIAN DAVIS GROUP LTD","300000020467263"
"Portsmouth City Council","PCC","Children's and Education Services","Safeguarding Children and Young Peoples Services","Children's Services and Education","Third Party Payments","Other establishments","7-May-21","6505134","-0.04","SUPPLIER","LILIAN DAVIS GROUP LTD","300000020467263"
"Portsmouth City Council","PCC","Children's and Education Services","Safeguarding Children and Young Peoples Services","Children's Services and Education","Third Party Payments","Other establishments","7-May-21","6505134","53.57","SUPPLIER","LILIAN DAVIS GROUP LTD","300000020467263"
"Portsmouth City Council","PCC","Children's and Education Services","Safeguarding Children and Young Peoples Services","Children's Services and Education","Third Party Payments","Other establishments","7-May-21","6505134","107.14","SUPPLIER","LILIAN DAVIS GROUP LTD","300000020467263"
"Portsmouth City Council","PCC","Children's and Education Services","Safeguarding Children and Young Peoples Services","Children's Services and Education","Third Party Payments","Other establishments","7-May-21","6505134","375","SUPPLIER","LILIAN DAVIS GROUP LTD","300000020467263"
"Portsmouth City Council","PCC","Children's and Education Services","Safeguarding Children and Young Peoples Services","Children's Services and Education","Third Party Payments","Other establishments","7-May-21","6505134","186.43","SUPPLIER","LILIAN DAVIS GROUP LTD","300000020467263"
"Portsmouth City Council","PCC","Children's and Education Services","Safeguarding Children and Young Peoples Services","Children's Services and Education","Third Party Payments","Other establishments","7-May-21","6505134","372.86","SUPPLIER","LILIAN DAVIS GROUP LTD","300000020467263"
"Portsmouth City Council","PCC","Children's and Education Services","Safeguarding Children and Young Peoples Services","Children's Services and Education","Third Party Payments","Other establishments","7-May-21","6505134","1,305.00","SUPPLIER","LILIAN DAVIS GROUP LTD","300000020467263"
"Portsmouth City Council","PCC","Children's and Education Services","Safeguarding Children and Young Peoples Services","Children's Services and Education","Third Party Payments","Other establishments","7-May-21","6505134","-42.9","SUPPLIER","LILIAN DAVIS GROUP LTD","300000020467263"
"Portsmouth City Council","PCC","Children's and Education Services","Safeguarding Children and Young Peoples Services","Children's Services and Education","Third Party Payments","Other establishments","7-May-21","6505134","53.57","SUPPLIER","LILIAN DAVIS GROUP LTD","300000020467263"
"Portsmouth City Council","PCC","Children's and Education Services","Safeguarding Children and Young Peoples Services","Children's Services and Education","Third Party Payments","Other establishments","7-May-21","6505134","107.14","SUPPLIER","LILIAN DAVIS GROUP LTD","300000020467263"
"Portsmouth City Council","PCC","Children's and Education Services","Safeguarding Children and Young Peoples Services","Children's Services and Education","Third Party Payments","Other establishments","7-May-21","6505134","375","SUPPLIER","LILIAN DAVIS GROUP LTD","300000020467263"
"Portsmouth City Council","PCC","Children's and Education Services","Safeguarding Children and Young Peoples Services","Children's Services and Education","Third Party Payments","Other establishments","7-May-21","6505134","186.43","SUPPLIER","LILIAN DAVIS GROUP LTD","300000020467263"
"Portsmouth City Council","PCC","Children's and Education Services","Safeguarding Children and Young Peoples Services","Children's Services and Education","Third Party Payments","Other establishments","7-May-21","6505134","372.86","SUPPLIER","LILIAN DAVIS GROUP LTD","300000020467263"
"Portsmouth City Council","PCC","Children's and Education Services","Safeguarding Children and Young Peoples Services","Children's Services and Education","Third Party Payments","Other establishments","7-May-21","6505134","1,305.00","SUPPLIER","LILIAN DAVIS GROUP LTD","300000020467263"
"Portsmouth City Council","PCC","Children's and Education Services","Children Looked After","Children's Services and Education","Third Party Payments","Other establishments","7-May-21","6505130","30.8","SUPPLIER","LOVE146","300000020473545"
"Portsmouth City Council","PCC","Children's and Education Services","Children Looked After","Children's Services and Education","Third Party Payments","Other establishments","4-May-21","6504247","-47.9","SUPPLIER","CEDAR HOPE CARE SERVICES LIMITED","300000020476114"
"Portsmouth City Council","PCC","Children's and Education Services","Children Looked After","Children's Services and Education","Third Party Payments","Other establishments","4-May-21","6504247","-8.57","SUPPLIER","CEDAR HOPE CARE SERVICES LIMITED","300000020476114"
"Portsmouth City Council","PCC","Children's and Education Services","Children Looked After","Children's Services and Education","Third Party Payments","Other establishments","4-May-21","6504247","-1.43","SUPPLIER","CEDAR HOPE CARE SERVICES LIMITED","300000020476114"
"Portsmouth City Council","PCC","Children's and Education Services","Children Looked After","Children's Services and Education","Third Party Payments","Other establishments","4-May-21","6504247","8.27","SUPPLIER","CEDAR HOPE CARE SERVICES LIMITED","300000020476114"
"Portsmouth City Council","PCC","Children's and Education Services","Children Looked After","Children's Services and Education","Third Party Payments","Other establishments","4-May-21","6504247","49.63","SUPPLIER","CEDAR HOPE CARE SERVICES LIMITED","300000020476114"
"Portsmouth City Council","PCC","Children's and Education Services","Children Looked After","Children's Services and Education","Third Party Payments","Other establishments","4-May-21","6504247","57.14","SUPPLIER","CEDAR HOPE CARE SERVICES LIMITED","300000020476114"
"Portsmouth City Council","PCC","Children's and Education Services","Children Looked After","Children's Services and Education","Third Party Payments","Other establishments","4-May-21","6504247","342.86","SUPPLIER","CEDAR HOPE CARE SERVICES LIMITED","300000020476114"
"Portsmouth City Council","PCC","Children's and Education Services","Children Looked After","Children's Services and Education","Third Party Payments","Other establishments","4-May-21","6504247","552","SUPPLIER","CEDAR HOPE CARE SERVICES LIMITED","300000020476114"
"Portsmouth City Council","PCC","Children's and Education Services","Children Looked After","Children's Services and Education","Third Party Payments","Other establishments","4-May-21","6504247","3,312.00","SUPPLIER","CEDAR HOPE CARE SERVICES LIMITED","300000020476114"
"Portsmouth City Council","PCC","Children's and Education Services","Children Looked After","Children's Services and Education","Third Party Payments","Other establishments","4-May-21","6504247","-47.9","SUPPLIER","CEDAR HOPE CARE SERVICES LIMITED","300000020476114"
"Portsmouth City Council","PCC","Children's and Education Services","Children Looked After","Children's Services and Education","Third Party Payments","Other establishments","4-May-21","6504247","-8.57","SUPPLIER","CEDAR HOPE CARE SERVICES LIMITED","300000020476114"
"Portsmouth City Council","PCC","Children's and Education Services","Children Looked After","Children's Services and Education","Third Party Payments","Other establishments","4-May-21","6504247","-1.43","SUPPLIER","CEDAR HOPE CARE SERVICES LIMITED","300000020476114"
"Portsmouth City Council","PCC","Children's and Education Services","Children Looked After","Children's Services and Education","Third Party Payments","Other establishments","4-May-21","6504247","8.27","SUPPLIER","CEDAR HOPE CARE SERVICES LIMITED","300000020476114"
"Portsmouth City Council","PCC","Children's and Education Services","Children Looked After","Children's Services and Education","Third Party Payments","Other establishments","4-May-21","6504247","49.63","SUPPLIER","CEDAR HOPE CARE SERVICES LIMITED","300000020476114"
"Portsmouth City Council","PCC","Children's and Education Services","Children Looked After","Children's Services and Education","Third Party Payments","Other establishments","4-May-21","6504247","57.14","SUPPLIER","CEDAR HOPE CARE SERVICES LIMITED","300000020476114"
"Portsmouth City Council","PCC","Children's and Education Services","Children Looked After","Children's Services and Education","Third Party Payments","Other establishments","4-May-21","6504247","342.86","SUPPLIER","CEDAR HOPE CARE SERVICES LIMITED","300000020476114"
"Portsmouth City Council","PCC","Children's and Education Services","Children Looked After","Children's Services and Education","Third Party Payments","Other establishments","4-May-21","6504247","552","SUPPLIER","CEDAR HOPE CARE SERVICES LIMITED","300000020476114"
"Portsmouth City Council","PCC","Children's and Education Services","Children Looked After","Children's Services and Education","Third Party Payments","Other establishments","4-May-21","6504247","3,312.00","SUPPLIER","CEDAR HOPE CARE SERVICES LIMITED","300000020476114"
"Portsmouth City Council","PCC","Children's and Education Services","Asylum seekers","Children's Services and Education","Third Party Payments","Other establishments","12-May-21","6505745","342","SUPPLIER","CAPSTONE FOSTER CARE LTD","300000020477691"
"Portsmouth City Council","PCC","Children's and Education Services","Asylum seekers","Children's Services and Education","Third Party Payments","Other establishments","12-May-21","6505745","684","SUPPLIER","CAPSTONE FOSTER CARE LTD","300000020477691"
"Portsmouth City Council","PCC","Children's and Education Services","Asylum seekers","Children's Services and Education","Third Party Payments","Other establishments","12-May-21","6505745","2,394.00","SUPPLIER","CAPSTONE FOSTER CARE LTD","300000020477691"
"Portsmouth City Council","PCC","Children's and Education Services","Safeguarding Children and Young Peoples Services","Children's Services and Education","Third Party Payments","Other establishments","12-May-21","6505745","342","SUPPLIER","CAPSTONE FOSTER CARE LTD","300000020477691"
"Portsmouth City Council","PCC","Children's and Education Services","Safeguarding Children and Young Peoples Services","Children's Services and Education","Third Party Payments","Other establishments","12-May-21","6505745","684","SUPPLIER","CAPSTONE FOSTER CARE LTD","300000020477691"
"Portsmouth City Council","PCC","Children's and Education Services","Safeguarding Children and Young Peoples Services","Children's Services and Education","Third Party Payments","Other establishments","12-May-21","6505745","2,394.00","SUPPLIER","CAPSTONE FOSTER CARE LTD","300000020477691"
"Portsmouth City Council","PCC","Children's and Education Services","Asylum seekers","Children's Services and Education","Third Party Payments","Other establishments","12-May-21","6505745","342","SUPPLIER","CAPSTONE FOSTER CARE LTD","300000020477691"
"Portsmouth City Council","PCC","Children's and Education Services","Asylum seekers","Children's Services and Education","Third Party Payments","Other establishments","12-May-21","6505745","684","SUPPLIER","CAPSTONE FOSTER CARE LTD","300000020477691"
"Portsmouth City Council","PCC","Children's and Education Services","Asylum seekers","Children's Services and Education","Third Party Payments","Other establishments","12-May-21","6505745","2,394.00","SUPPLIER","CAPSTONE FOSTER CARE LTD","300000020477691"
"Portsmouth City Council","PCC","Children's and Education Services","Safeguarding Children and Young Peoples Services","Children's Services and Education","Third Party Payments","Other establishments","12-May-21","6505741","-45.52","SUPPLIER","SILVER BIRCH CARE LIMITED","300000020475620"
"Portsmouth City Council","PCC","Children's and Education Services","Safeguarding Children and Young Peoples Services","Children's Services and Education","Third Party Payments","Other establishments","12-May-21","6505741","24.81","SUPPLIER","SILVER BIRCH CARE LIMITED","300000020475620"
"Portsmouth City Council","PCC","Children's and Education Services","Safeguarding Children and Young Peoples Services","Children's Services and Education","Third Party Payments","Other establishments","12-May-21","6505741","49.63","SUPPLIER","SILVER BIRCH CARE LIMITED","300000020475620"
"Portsmouth City Council","PCC","Children's and Education Services","Safeguarding Children and Young Peoples Services","Children's Services and Education","Third Party Payments","Other establishments","12-May-21","6505741","173.7","SUPPLIER","SILVER BIRCH CARE LIMITED","300000020475620"
"Portsmouth City Council","PCC","Children's and Education Services","Safeguarding Children and Young Peoples Services","Children's Services and Education","Third Party Payments","Other establishments","12-May-21","6505741","375","SUPPLIER","SILVER BIRCH CARE LIMITED","300000020475620"
"Portsmouth City Council","PCC","Children's and Education Services","Safeguarding Children and Young Peoples Services","Children's Services and Education","Third Party Payments","Other establishments","12-May-21","6505741","750","SUPPLIER","SILVER BIRCH CARE LIMITED","300000020475620"
"Portsmouth City Council","PCC","Children's and Education Services","Safeguarding Children and Young Peoples Services","Children's Services and Education","Third Party Payments","Other establishments","12-May-21","6505741","2,625.00","SUPPLIER","SILVER BIRCH CARE LIMITED","300000020475620"
"Portsmouth City Council","PCC","Children's and Education Services","Safeguarding Children and Young Peoples Services","Children's Services and Education","Third Party Payments","Other establishments","12-May-21","6505741","2,107.20","SUPPLIER","SILVER BIRCH CARE LIMITED","300000020475620"
"Portsmouth City Council","PCC","Children's and Education Services","Safeguarding Children and Young Peoples Services","Children's Services and Education","Third Party Payments","Other establishments","12-May-21","6505741","4,214.40","SUPPLIER","SILVER BIRCH CARE LIMITED","300000020475620"
"Portsmouth City Council","PCC","Children's and Education Services","Safeguarding Children and Young Peoples Services","Children's Services and Education","Third Party Payments","Other establishments","12-May-21","6505741","14,750.40","SUPPLIER","SILVER BIRCH CARE LIMITED","300000020475620"
"Portsmouth City Council","PCC","Children's and Education Services","Children Looked After","Children's Services and Education","Third Party Payments","Other establishments","12-May-21","6505386","-47.9","SUPPLIER","CEDAR HOPE CARE SERVICES LIMITED","300000020476114"
"Portsmouth City Council","PCC","Children's and Education Services","Children Looked After","Children's Services and Education","Third Party Payments","Other establishments","12-May-21","6505386","-8.57","SUPPLIER","CEDAR HOPE CARE SERVICES LIMITED","300000020476114"
"Portsmouth City Council","PCC","Children's and Education Services","Children Looked After","Children's Services and Education","Third Party Payments","Other establishments","12-May-21","6505386","-1.43","SUPPLIER","CEDAR HOPE CARE SERVICES LIMITED","300000020476114"
"Portsmouth City Council","PCC","Children's and Education Services","Children Looked After","Children's Services and Education","Third Party Payments","Other establishments","12-May-21","6505386","8.27","SUPPLIER","CEDAR HOPE CARE SERVICES LIMITED","300000020476114"
"Portsmouth City Council","PCC","Children's and Education Services","Children Looked After","Children's Services and Education","Third Party Payments","Other establishments","12-May-21","6505386","49.63","SUPPLIER","CEDAR HOPE CARE SERVICES LIMITED","300000020476114"
"Portsmouth City Council","PCC","Children's and Education Services","Children Looked After","Children's Services and Education","Third Party Payments","Other establishments","12-May-21","6505386","57.14","SUPPLIER","CEDAR HOPE CARE SERVICES LIMITED","300000020476114"
"Portsmouth City Council","PCC","Children's and Education Services","Children Looked After","Children's Services and Education","Third Party Payments","Other establishments","12-May-21","6505386","342.86","SUPPLIER","CEDAR HOPE CARE SERVICES LIMITED","300000020476114"
"Portsmouth City Council","PCC","Children's and Education Services","Children Looked After","Children's Services and Education","Third Party Payments","Other establishments","12-May-21","6505386","552","SUPPLIER","CEDAR HOPE CARE SERVICES LIMITED","300000020476114"
"Portsmouth City Council","PCC","Children's and Education Services","Children Looked After","Children's Services and Education","Third Party Payments","Other establishments","12-May-21","6505386","3,312.00","SUPPLIER","CEDAR HOPE CARE SERVICES LIMITED","300000020476114"
"Portsmouth City Council","PCC","Children's and Education Services","Safeguarding Children and Young Peoples Services","Children's Services and Education","Third Party Payments","Other establishments","7-May-21","6505134","-30","SUPPLIER","LILIAN DAVIS GROUP LTD","300000020467263"
"Portsmouth City Council","PCC","Children's and Education Services","Safeguarding Children and Young Peoples Services","Children's Services and Education","Third Party Payments","Other establishments","7-May-21","6505134","-8.57","SUPPLIER","LILIAN DAVIS GROUP LTD","300000020467263"
"Portsmouth City Council","PCC","Children's and Education Services","Safeguarding Children and Young Peoples Services","Children's Services and Education","Third Party Payments","Other establishments","7-May-21","6505134","-4.29","SUPPLIER","LILIAN DAVIS GROUP LTD","300000020467263"
"Portsmouth City Council","PCC","Children's and Education Services","Safeguarding Children and Young Peoples Services","Children's Services and Education","Third Party Payments","Other establishments","7-May-21","6505134","21.34","SUPPLIER","LILIAN DAVIS GROUP LTD","300000020467263"
"Portsmouth City Council","PCC","Children's and Education Services","Safeguarding Children and Young Peoples Services","Children's Services and Education","Third Party Payments","Other establishments","7-May-21","6505134","32.14","SUPPLIER","LILIAN DAVIS GROUP LTD","300000020467263"
"Portsmouth City Council","PCC","Children's and Education Services","Safeguarding Children and Young Peoples Services","Children's Services and Education","Third Party Payments","Other establishments","7-May-21","6505134","64.29","SUPPLIER","LILIAN DAVIS GROUP LTD","300000020467263"
"Portsmouth City Council","PCC","Children's and Education Services","Safeguarding Children and Young Peoples Services","Children's Services and Education","Third Party Payments","Other establishments","7-May-21","6505134","225","SUPPLIER","LILIAN DAVIS GROUP LTD","300000020467263"
"Portsmouth City Council","PCC","Children's and Education Services","Safeguarding Children and Young Peoples Services","Children's Services and Education","Third Party Payments","Other establishments","7-May-21","6505134","162.43","SUPPLIER","LILIAN DAVIS GROUP LTD","300000020467263"
"Portsmouth City Council","PCC","Children's and Education Services","Safeguarding Children and Young Peoples Services","Children's Services and Education","Third Party Payments","Other establishments","7-May-21","6505134","324.86","SUPPLIER","LILIAN DAVIS GROUP LTD","300000020467263"
"Portsmouth City Council","PCC","Children's and Education Services","Safeguarding Children and Young Peoples Services","Children's Services and Education","Third Party Payments","Other establishments","7-May-21","6505134","1,137.00","SUPPLIER","LILIAN DAVIS GROUP LTD","300000020467263"
"Portsmouth City Council","PCC","Adult Social Care","Physical Support Adults (18 - 64)","Adult Services","Third Party Payments","Other establishments","21-May-21","6507506","6,333.60","PRIVATE PROVIDER","Classified as 'personal data' (under the Data Protection Act 2018)","300000020480691"
"Portsmouth City Council","PCC","Adult Social Care","Social Support - Support for Carer","Adult Services","Third Party Payments","Other establishments","21-May-21","6507519","305.6","PRIVATE PROVIDER","Classified as 'personal data' (under the Data Protection Act 2018)","300000020460102"
"Portsmouth City Council","PCC","Adult Social Care","Physical Support Adults (18 - 64)","Adult Services","Third Party Payments","Other establishments","21-May-21","6507519","1,593.92","PRIVATE PROVIDER","Classified as 'personal data' (under the Data Protection Act 2018)","300000020460102"
"Portsmouth City Council","PCC","Adult Social Care","Social Care Activities","Adult Services","Third Party Payments","Other establishments","21-May-21","6507508","5,004.96","PRIVATE PROVIDER","Classified as 'personal data' (under the Data Protection Act 2018)","300000020477178"
"Portsmouth City Council","PCC","Adult Social Care","Learning Disability Support Adults (18 - 64)","Adult Services","Third Party Payments","Other establishments","21-May-21","6507507","1,287.92","PRIVATE PROVIDER","Classified as 'personal data' (under the Data Protection Act 2018)","300000020481843"
"Portsmouth City Council","PCC","Adult Social Care","Physical Support Adults (18 - 64)","Adult Services","Third Party Payments","Other establishments","21-May-21","6507510","515.04","PRIVATE PROVIDER","Classified as 'personal data' (under the Data Protection Act 2018)","300000020483065"
"Portsmouth City Council","PCC","Adult Social Care","Physical Support Adults (18 - 64)","Adult Services","Third Party Payments","Other establishments","21-May-21","6507518","846.04","PRIVATE PROVIDER","Classified as 'personal data' (under the Data Protection Act 2018)","300000020480632"
"Portsmouth City Council","PCC","Adult Social Care","Social Care Activities","Adult Services","Third Party Payments","Other establishments","21-May-21","6507504","3,000.00","PRIVATE PROVIDER","Classified as 'personal data' (under the Data Protection Act 2018)","300000020480170"
"Portsmouth City Council","PCC","Adult Social Care","Social Care Activities","Adult Services","Third Party Payments","Other establishments","21-May-21","6507520","4,057.40","PRIVATE PROVIDER","Classified as 'personal data' (under the Data Protection Act 2018)","300000020466605"
"Portsmouth City Council","PCC","Adult Social Care","Social Care Activities","Adult Services","Employees","Direct employee expenses","7-May-21","6505102","526.6","SUPPLIER","A24 GROUP LIMITED T/A AMBITION 24 HOURS","300000020481251"
"Portsmouth City Council","PCC","Adult Social Care","Social Care Activities","Adult Services","Employees","Direct employee expenses","7-May-21","6505102","759.38","SUPPLIER","A24 GROUP LIMITED T/A AMBITION 24 HOURS","300000020481251"
"Portsmouth City Council","PCC","Adult Social Care","Social Care Activities","Adult Services","Employees","Direct employee expenses","7-May-21","6505102","679.21","SUPPLIER","A24 GROUP LIMITED T/A AMBITION 24 HOURS","300000020481251"
"Portsmouth City Council","PCC","Adult Social Care","Social Care Activities","Adult Services","Employees","Direct employee expenses","7-May-21","6505102","526.6","SUPPLIER","A24 GROUP LIMITED T/A AMBITION 24 HOURS","300000020481251"
"Portsmouth City Council","PCC","Housing Revenue Account","Rents, Rates, Taxes and Other Charges","Housing, Neighbourhood and Building Services","Premises-Related Expenditure","Rates","28-May-21","6508958","124","OTHER LOCAL AUTHORITY","HAVANT BOROUGH COUNCIL","300000020457057"
"Portsmouth City Council","PCC","Housing Revenue Account","Rents, Rates, Taxes and Other Charges","Housing, Neighbourhood and Building Services","Premises-Related Expenditure","Rates","28-May-21","6508958","124","OTHER LOCAL AUTHORITY","HAVANT BOROUGH COUNCIL","300000020457057"
"Portsmouth City Council","PCC","Housing Revenue Account","Rents, Rates, Taxes and Other Charges","Housing, Neighbourhood and Building Services","Premises-Related Expenditure","Rates","28-May-21","6508958","124","OTHER LOCAL AUTHORITY","HAVANT BOROUGH COUNCIL","300000020457057"
"Portsmouth City Council","PCC","Housing Revenue Account","Rents, Rates, Taxes and Other Charges","Housing, Neighbourhood and Building Services","Premises-Related Expenditure","Rates","28-May-21","6508958","124","OTHER LOCAL AUTHORITY","HAVANT BOROUGH COUNCIL","300000020457057"
"Portsmouth City Council","PCC","Housing Revenue Account","Rents, Rates, Taxes and Other Charges","Housing, Neighbourhood and Building Services","Premises-Related Expenditure","Rates","28-May-21","6508958","124","OTHER LOCAL AUTHORITY","HAVANT BOROUGH COUNCIL","300000020457057"
"Portsmouth City Council","PCC","Housing Revenue Account","Rents, Rates, Taxes and Other Charges","Housing, Neighbourhood and Building Services","Premises-Related Expenditure","Rates","28-May-21","6508958","124","OTHER LOCAL AUTHORITY","HAVANT BOROUGH COUNCIL","300000020457057"
"Portsmouth City Council","PCC","Housing Revenue Account","Rents, Rates, Taxes and Other Charges","Housing, Neighbourhood and Building Services","Premises-Related Expenditure","Rates","28-May-21","6508958","124","OTHER LOCAL AUTHORITY","HAVANT BOROUGH COUNCIL","300000020457057"
"Portsmouth City Council","PCC","Housing Revenue Account","Rents, Rates, Taxes and Other Charges","Housing, Neighbourhood and Building Services","Premises-Related Expenditure","Rates","28-May-21","6508958","124","OTHER LOCAL AUTHORITY","HAVANT BOROUGH COUNCIL","300000020457057"
"Portsmouth City Council","PCC","Housing Revenue Account","Rents, Rates, Taxes and Other Charges","Housing, Neighbourhood and Building Services","Premises-Related Expenditure","Rates","28-May-21","6508958","124","OTHER LOCAL AUTHORITY","HAVANT BOROUGH COUNCIL","300000020457057"
"Portsmouth City Council","PCC","Housing Revenue Account","Rents, Rates, Taxes and Other Charges","Housing, Neighbourhood and Building Services","Premises-Related Expenditure","Rates","28-May-21","6508958","76","OTHER LOCAL AUTHORITY","HAVANT BOROUGH COUNCIL","300000020457057"
"Portsmouth City Council","PCC","Housing Revenue Account","Rents, Rates, Taxes and Other Charges","Housing, Neighbourhood and Building Services","Premises-Related Expenditure","Rates","28-May-21","6508958","124","OTHER LOCAL AUTHORITY","HAVANT BOROUGH COUNCIL","300000020457057"
"Portsmouth City Council","PCC","Housing Revenue Account","Rents, Rates, Taxes and Other Charges","Housing, Neighbourhood and Building Services","Premises-Related Expenditure","Rates","28-May-21","6508958","124","OTHER LOCAL AUTHORITY","HAVANT BOROUGH COUNCIL","300000020457057"
"Portsmouth City Council","PCC","Highways and Transport Services","Airports, Harbours and Toll Facilities","Portsmouth International Port","Premises-Related Expenditure","Repairs, alterations and maintenance of buildings","13-May-21","6506305","2,496.00","PUBLIC LIMITED COMPANY","SSE PLC (SCOTTISH AND SOUTHERN ENERGY PLC)","300000020458325"
"Portsmouth City Council","PCC","Highways and Transport Services","Airports, Harbours and Toll Facilities","Portsmouth International Port","Supplies and Services","Communications and computing","7-May-21","6505034","9.99","SUPPLIER","FOCUS GROUP","300000020478279"
"Portsmouth City Council","PCC","Highways and Transport Services","Airports, Harbours and Toll Facilities","Portsmouth International Port","Supplies and Services","Communications and computing","7-May-21","6505034","199.8","SUPPLIER","FOCUS GROUP","300000020478279"
"Portsmouth City Council","PCC","Highways and Transport Services","Airports, Harbours and Toll Facilities","Portsmouth International Port","Supplies and Services","Communications and computing","7-May-21","6505034","37.98","SUPPLIER","FOCUS GROUP","300000020478279"
"Portsmouth City Council","PCC","Highways and Transport Services","Airports, Harbours and Toll Facilities","Portsmouth International Port","Supplies and Services","Communications and computing","7-May-21","6505034","22.62","SUPPLIER","FOCUS GROUP","300000020478279"
"Portsmouth City Council","PCC","Highways and Transport Services","Airports, Harbours and Toll Facilities","Portsmouth International Port","Supplies and Services","Communications and computing","7-May-21","6505034","31.98","SUPPLIER","FOCUS GROUP","300000020478279"
"Portsmouth City Council","PCC","Highways and Transport Services","Airports, Harbours and Toll Facilities","Portsmouth International Port","Supplies and Services","Communications and computing","7-May-21","6505034","79.96","SUPPLIER","FOCUS GROUP","300000020478279"
"Portsmouth City Council","PCC","Highways and Transport Services","Airports, Harbours and Toll Facilities","Portsmouth International Port","Supplies and Services","Communications and computing","7-May-21","6505034","242.57","SUPPLIER","FOCUS GROUP","300000020478279"
"Portsmouth City Council","PCC","Highways and Transport Services","Airports, Harbours and Toll Facilities","Portsmouth International Port","Supplies and Services","Communications and computing","7-May-21","6505034","801.7","SUPPLIER","FOCUS GROUP","300000020478279"
"Portsmouth City Council","PCC","Housing Revenue Account","Rents, Rates, Taxes and Other Charges","Housing, Neighbourhood and Building Services","Premises-Related Expenditure","Rates","28-May-21","6508958","166","OTHER LOCAL AUTHORITY","HAVANT BOROUGH COUNCIL","300000020457057"
"Portsmouth City Council","PCC","Housing Services","Homelessness","Housing, Neighbourhood and Building Services","Third Party Payments","Private contractors","11-May-21","6505358","280","SUPPLIER","PORTSMOUTH.COM REMOVALS LTD","300000020477763"
"Portsmouth City Council","PCC","Housing Services","Homelessness","Housing, Neighbourhood and Building Services","Third Party Payments","Private contractors","11-May-21","6505358","440","SUPPLIER","PORTSMOUTH.COM REMOVALS LTD","300000020477763"
"Portsmouth City Council","PCC","Housing Services","Homelessness","Housing, Neighbourhood and Building Services","Third Party Payments","Private contractors","11-May-21","6505358","380","SUPPLIER","PORTSMOUTH.COM REMOVALS LTD","300000020477763"
"Portsmouth City Council","PCC","Housing Services","Homelessness","Housing, Neighbourhood and Building Services","Third Party Payments","Private contractors","11-May-21","6505358","440","SUPPLIER","PORTSMOUTH.COM REMOVALS LTD","300000020477763"
"Portsmouth City Council","PCC","Housing Services","Homelessness","Housing, Neighbourhood and Building Services","Third Party Payments","Private contractors","11-May-21","6505358","280","SUPPLIER","PORTSMOUTH.COM REMOVALS LTD","300000020477763"
"Portsmouth City Council","PCC","Housing Services","Homelessness","Housing, Neighbourhood and Building Services","Third Party Payments","Private contractors","6-May-21","6504934","490","SUPPLIER","Classified as 'personal data' (under the Data Protection Act 2018)","300000020482894"
"Portsmouth City Council","PCC","Housing Services","Homelessness","Housing, Neighbourhood and Building Services","Third Party Payments","Private contractors","6-May-21","6504934","490","SUPPLIER","Classified as 'personal data' (under the Data Protection Act 2018)","300000020482894"
"Portsmouth City Council","PCC","Housing Services","Homelessness","Housing, Neighbourhood and Building Services","Third Party Payments","Private contractors","11-May-21","6505358","660","SUPPLIER","PORTSMOUTH.COM REMOVALS LTD","300000020477763"
"Portsmouth City Council","PCC","Housing Services","Homelessness","Housing, Neighbourhood and Building Services","Third Party Payments","Private contractors","6-May-21","6504934","490","SUPPLIER","Classified as 'personal data' (under the Data Protection Act 2018)","300000020482894"
"Portsmouth City Council","PCC","Housing Services","Homelessness","Housing, Neighbourhood and Building Services","Third Party Payments","Private contractors","6-May-21","6504934","70","SUPPLIER","Classified as 'personal data' (under the Data Protection Act 2018)","300000020482894"
"Portsmouth City Council","PCC","Housing Revenue Account","Rents, Rates, Taxes and Other Charges","Housing, Neighbourhood and Building Services","Premises-Related Expenditure","Rates","28-May-21","6508958","124","OTHER LOCAL AUTHORITY","HAVANT BOROUGH COUNCIL","300000020457057"
"Portsmouth City Council","PCC","Housing Revenue Account","Rents, Rates, Taxes and Other Charges","Housing, Neighbourhood and Building Services","Premises-Related Expenditure","Rates","28-May-21","6508958","124","OTHER LOCAL AUTHORITY","HAVANT BOROUGH COUNCIL","300000020457057"
"Portsmouth City Council","PCC","Housing Revenue Account","Rents, Rates, Taxes and Other Charges","Housing, Neighbourhood and Building Services","Premises-Related Expenditure","Rates","28-May-21","6508958","124","OTHER LOCAL AUTHORITY","HAVANT BOROUGH COUNCIL","300000020457057"
"Portsmouth City Council","PCC","Adult Social Care","Social Care Activities","Adult Services","Employees","Direct employee expenses","7-May-21","6505102","526.6","SUPPLIER","A24 GROUP LIMITED T/A AMBITION 24 HOURS","300000020481251"
"Portsmouth City Council","PCC","Adult Social Care","Social Care Activities","Adult Services","Employees","Direct employee expenses","7-May-21","6505102","526.6","SUPPLIER","A24 GROUP LIMITED T/A AMBITION 24 HOURS","300000020481251"
"Portsmouth City Council","PCC","Adult Social Care","Social Care Activities","Adult Services","Employees","Direct employee expenses","7-May-21","6505102","526.6","SUPPLIER","A24 GROUP LIMITED T/A AMBITION 24 HOURS","300000020481251"
"Portsmouth City Council","PCC","Adult Social Care","Social Care Activities","Adult Services","Employees","Direct employee expenses","7-May-21","6505102","1,318.24","SUPPLIER","A24 GROUP LIMITED T/A AMBITION 24 HOURS","300000020481251"
"Portsmouth City Council","PCC","Adult Social Care","Social Care Activities","Adult Services","Employees","Direct employee expenses","7-May-21","6505102","928.38","SUPPLIER","A24 GROUP LIMITED T/A AMBITION 24 HOURS","300000020481251"
"Portsmouth City Council","PCC","Adult Social Care","Social Care Activities","Adult Services","Employees","Direct employee expenses","7-May-21","6505102","928.38","SUPPLIER","A24 GROUP LIMITED T/A AMBITION 24 HOURS","300000020481251"
"Portsmouth City Council","PCC","Adult Social Care","Social Care Activities","Adult Services","Employees","Direct employee expenses","7-May-21","6505102","540.72","SUPPLIER","A24 GROUP LIMITED T/A AMBITION 24 HOURS","300000020481251"
"Portsmouth City Council","PCC","Adult Social Care","Social Care Activities","Adult Services","Employees","Direct employee expenses","7-May-21","6505102","564.77","SUPPLIER","A24 GROUP LIMITED T/A AMBITION 24 HOURS","300000020481251"
"Portsmouth City Council","PCC","Adult Social Care","Social Care Activities","Adult Services","Employees","Direct employee expenses","7-May-21","6505102","854.11","SUPPLIER","A24 GROUP LIMITED T/A AMBITION 24 HOURS","300000020481251"
"Portsmouth City Council","PCC","Adult Social Care","Social Care Activities","Adult Services","Employees","Direct employee expenses","7-May-21","6505102","526.6","SUPPLIER","A24 GROUP LIMITED T/A AMBITION 24 HOURS","300000020481251"
"Portsmouth City Council","PCC","Adult Social Care","Social Care Activities","Adult Services","Employees","Direct employee expenses","7-May-21","6505102","526.6","SUPPLIER","A24 GROUP LIMITED T/A AMBITION 24 HOURS","300000020481251"
"Portsmouth City Council","PCC","Adult Social Care","Social Care Activities","Adult Services","Employees","Direct employee expenses","7-May-21","6505102","526.6","SUPPLIER","A24 GROUP LIMITED T/A AMBITION 24 HOURS","300000020481251"
"Portsmouth City Council","PCC","Adult Social Care","Social Care Activities","Adult Services","Employees","Direct employee expenses","6-May-21","6504939","727.67","SUPPLIER","A24 GROUP LIMITED T/A AMBITION 24 HOURS","300000020481251"
"Portsmouth City Council","PCC","Adult Social Care","Social Care Activities","Adult Services","Employees","Direct employee expenses","7-May-21","6505102","572.24","SUPPLIER","A24 GROUP LIMITED T/A AMBITION 24 HOURS","300000020481251"
"Portsmouth City Council","PCC","Adult Social Care","Social Care Activities","Adult Services","Employees","Direct employee expenses","7-May-21","6505102","854.11","SUPPLIER","A24 GROUP LIMITED T/A AMBITION 24 HOURS","300000020481251"
"Portsmouth City Council","PCC","Adult Social Care","Social Care Activities","Adult Services","Employees","Direct employee expenses","7-May-21","6505102","572.24","SUPPLIER","A24 GROUP LIMITED T/A AMBITION 24 HOURS","300000020481251"
"Portsmouth City Council","PCC","Adult Social Care","Social Care Activities","Adult Services","Employees","Direct employee expenses","7-May-21","6505102","707.59","SUPPLIER","A24 GROUP LIMITED T/A AMBITION 24 HOURS","300000020481251"
"Portsmouth City Council","PCC","Adult Social Care","Social Care Activities","Adult Services","Employees","Direct employee expenses","7-May-21","6505102","713.88","SUPPLIER","A24 GROUP LIMITED T/A AMBITION 24 HOURS","300000020481251"
"Portsmouth City Council","PCC","Adult Social Care","Social Care Activities","Adult Services","Employees","Direct employee expenses","7-May-21","6505102","563.03","SUPPLIER","A24 GROUP LIMITED T/A AMBITION 24 HOURS","300000020481251"
"Portsmouth City Council","PCC","Adult Social Care","Social Care Activities","Adult Services","Employees","Direct employee expenses","7-May-21","6505102","563.03","SUPPLIER","A24 GROUP LIMITED T/A AMBITION 24 HOURS","300000020481251"
"Portsmouth City Council","PCC","Adult Social Care","Social Care Activities","Adult Services","Employees","Direct employee expenses","7-May-21","6505102","526.6","SUPPLIER","A24 GROUP LIMITED T/A AMBITION 24 HOURS","300000020481251"
"Portsmouth City Council","PCC","Adult Social Care","Social Care Activities","Adult Services","Employees","Direct employee expenses","7-May-21","6505102","724.89","SUPPLIER","A24 GROUP LIMITED T/A AMBITION 24 HOURS","300000020481251"
"Portsmouth City Council","PCC","Adult Social Care","Social Care Activities","Adult Services","Employees","Direct employee expenses","7-May-21","6505102","791.09","SUPPLIER","A24 GROUP LIMITED T/A AMBITION 24 HOURS","300000020481251"
"Portsmouth City Council","PCC","Adult Social Care","Social Care Activities","Adult Services","Employees","Direct employee expenses","7-May-21","6505102","563.03","SUPPLIER","A24 GROUP LIMITED T/A AMBITION 24 HOURS","300000020481251"
"Portsmouth City Council","PCC","Adult Social Care","Social Care Activities","Adult Services","Employees","Direct employee expenses","7-May-21","6505102","526.6","SUPPLIER","A24 GROUP LIMITED T/A AMBITION 24 HOURS","300000020481251"
"Portsmouth City Council","PCC","Adult Social Care","Social Care Activities","Adult Services","Employees","Direct employee expenses","7-May-21","6505102","532.89","SUPPLIER","A24 GROUP LIMITED T/A AMBITION 24 HOURS","300000020481251"
"Portsmouth City Council","PCC","Adult Social Care","Social Care Activities","Adult Services","Employees","Direct employee expenses","7-May-21","6505102","791.09","SUPPLIER","A24 GROUP LIMITED T/A AMBITION 24 HOURS","300000020481251"
"Portsmouth City Council","PCC","Adult Social Care","Social Care Activities","Adult Services","Employees","Direct employee expenses","7-May-21","6505102","652.74","SUPPLIER","A24 GROUP LIMITED T/A AMBITION 24 HOURS","300000020481251"
"Portsmouth City Council","PCC","Adult Social Care","Social Care Activities","Adult Services","Employees","Direct employee expenses","7-May-21","6505102","808","SUPPLIER","A24 GROUP LIMITED T/A AMBITION 24 HOURS","300000020481251"
"Portsmouth City Council","PCC","Adult Social Care","Social Care Activities","Adult Services","Employees","Direct employee expenses","7-May-21","6505102","563.9","SUPPLIER","A24 GROUP LIMITED T/A AMBITION 24 HOURS","300000020481251"
"Portsmouth City Council","PCC","Adult Social Care","Social Care Activities","Adult Services","Employees","Direct employee expenses","7-May-21","6505102","854.11","SUPPLIER","A24 GROUP LIMITED T/A AMBITION 24 HOURS","300000020481251"
"Portsmouth City Council","PCC","Adult Social Care","Social Care Activities","Adult Services","Employees","Direct employee expenses","7-May-21","6505102","532.89","SUPPLIER","A24 GROUP LIMITED T/A AMBITION 24 HOURS","300000020481251"
"Portsmouth City Council","PCC","Adult Social Care","Social Care Activities","Adult Services","Employees","Direct employee expenses","7-May-21","6505102","724.89","SUPPLIER","A24 GROUP LIMITED T/A AMBITION 24 HOURS","300000020481251"
"Portsmouth City Council","PCC","Adult Social Care","Social Care Activities","Adult Services","Employees","Direct employee expenses","7-May-21","6505102","654.41","SUPPLIER","A24 GROUP LIMITED T/A AMBITION 24 HOURS","300000020481251"
"Portsmouth City Council","PCC","Adult Social Care","Social Care Activities","Adult Services","Employees","Direct employee expenses","6-May-21","6504939","563.03","SUPPLIER","A24 GROUP LIMITED T/A AMBITION 24 HOURS","300000020481251"
"Portsmouth City Council","PCC","Adult Social Care","Social Care Activities","Adult Services","Employees","Direct employee expenses","6-May-21","6504939","572.24","SUPPLIER","A24 GROUP LIMITED T/A AMBITION 24 HOURS","300000020481251"
"Portsmouth City Council","PCC","Adult Social Care","Social Care Activities","Adult Services","Employees","Direct employee expenses","6-May-21","6504939","530.18","SUPPLIER","A24 GROUP LIMITED T/A AMBITION 24 HOURS","300000020481251"
"Portsmouth City Council","PCC","Adult Social Care","Social Care Activities","Adult Services","Employees","Direct employee expenses","6-May-21","6504939","563.03","SUPPLIER","A24 GROUP LIMITED T/A AMBITION 24 HOURS","300000020481251"
"Portsmouth City Council","PCC","Adult Social Care","Social Care Activities","Adult Services","Employees","Direct employee expenses","6-May-21","6504939","526.6","SUPPLIER","A24 GROUP LIMITED T/A AMBITION 24 HOURS","300000020481251"
"Portsmouth City Council","PCC","Adult Social Care","Social Care Activities","Adult Services","Employees","Direct employee expenses","6-May-21","6504939","563.03","SUPPLIER","A24 GROUP LIMITED T/A AMBITION 24 HOURS","300000020481251"
"Portsmouth City Council","PCC","Adult Social Care","Social Care Activities","Adult Services","Employees","Direct employee expenses","6-May-21","6504939","526.6","SUPPLIER","A24 GROUP LIMITED T/A AMBITION 24 HOURS","300000020481251"
"Portsmouth City Council","PCC","Adult Social Care","Social Care Activities","Adult Services","Employees","Direct employee expenses","6-May-21","6504939","526.6","SUPPLIER","A24 GROUP LIMITED T/A AMBITION 24 HOURS","300000020481251"
"Portsmouth City Council","PCC","Adult Social Care","Social Care Activities","Adult Services","Employees","Direct employee expenses","21-May-21","6507544","250.46","SUPPLIER","A24 GROUP LIMITED T/A AMBITION 24 HOURS","300000020481251"
"Portsmouth City Council","PCC","Adult Social Care","Social Care Activities","Adult Services","Employees","Direct employee expenses","21-May-21","6507544","321.78","SUPPLIER","A24 GROUP LIMITED T/A AMBITION 24 HOURS","300000020481251"
"Portsmouth City Council","PCC","Adult Social Care","Physical Support Older People (85+)","Adult Services","Third Party Payments","Other establishments","19-May-21","6507223","1,456.00","SUPPLIER","ABICARE SERVICES LTD","300000020470310"
"Portsmouth City Council","PCC","Adult Social Care","Physical Support Older People (85+)","Adult Services","Third Party Payments","Other establishments","19-May-21","6507223","1,961.68","SUPPLIER","ABICARE SERVICES LTD","300000020470310"
"Portsmouth City Council","PCC","Adult Social Care","Physical Support Adults (18 - 64)","Adult Services","Third Party Payments","Other establishments","10-May-21","6505157","53.16","SUPPLIER","ACCESS CARE LTD","300000020464178"
"Portsmouth City Council","PCC","Adult Social Care","Physical Support Adults (18 - 64)","Adult Services","Third Party Payments","Other establishments","10-May-21","6505157","334.32","SUPPLIER","ACCESS CARE LTD","300000020464178"
"Portsmouth City Council","PCC","Adult Social Care","Physical Support Adults (18 - 64)","Adult Services","Third Party Payments","Other establishments","10-May-21","6505157","443","SUPPLIER","ACCESS CARE LTD","300000020464178"
"Portsmouth City Council","PCC","Adult Social Care","Physical Support Adults (18 - 64)","Adult Services","Third Party Payments","Other establishments","10-May-21","6505157","2,786.00","SUPPLIER","ACCESS CARE LTD","300000020464178"
"Portsmouth City Council","PCC","Adult Social Care","Learning Disability Support Adults (18 - 64)","Adult Services","Third Party Payments","Other establishments","21-May-21","6507509","510.4","PRIVATE PROVIDER","Classified as 'personal data' (under the Data Protection Act 2018)","300000020478185"
"Portsmouth City Council","PCC","Adult Social Care","Physical Support Older People (85+)","Adult Services","Third Party Payments","Other establishments","25-May-21","6508056","21.68","SUPPLIER","ADMIRAL CARE LTD","300000020477405"
"Portsmouth City Council","PCC","Adult Social Care","Physical Support Older People (85+)","Adult Services","Third Party Payments","Other establishments","25-May-21","6508056","43.35","SUPPLIER","ADMIRAL CARE LTD","300000020477405"
"Portsmouth City Council","PCC","Adult Social Care","Physical Support Older People (85+)","Adult Services","Third Party Payments","Other establishments","25-May-21","6508056","44.4","SUPPLIER","ADMIRAL CARE LTD","300000020477405"
"Portsmouth City Council","PCC","Adult Social Care","Mental Health Support Older People (65 - 74)","Adult Services","Third Party Payments","Other establishments","25-May-21","6508056","71.04","SUPPLIER","ADMIRAL CARE LTD","300000020477405"
"Portsmouth City Council","PCC","Adult Social Care","Mental Health Support Older People (65 - 74)","Adult Services","Third Party Payments","Other establishments","25-May-21","6508056","71.04","SUPPLIER","ADMIRAL CARE LTD","300000020477405"
"Portsmouth City Council","PCC","Adult Social Care","Physical Support Older People (85+)","Adult Services","Third Party Payments","Other establishments","25-May-21","6508056","86.7","SUPPLIER","ADMIRAL CARE LTD","300000020477405"
"Portsmouth City Council","PCC","Adult Social Care","Social Care Activities","Adult Services","Third Party Payments","Other establishments","25-May-21","6508056","91.68","SUPPLIER","ADMIRAL CARE LTD","300000020477405"
"Portsmouth City Council","PCC","Adult Social Care","Physical Support Older People (85+)","Adult Services","Third Party Payments","Other establishments","25-May-21","6508056","106.56","SUPPLIER","ADMIRAL CARE LTD","300000020477405"
"Portsmouth City Council","PCC","Adult Social Care","Physical Support Older People (85+)","Adult Services","Third Party Payments","Other establishments","25-May-21","6508056","106.56","SUPPLIER","ADMIRAL CARE LTD","300000020477405"
"Portsmouth City Council","PCC","Adult Social Care","Social Care Activities","Adult Services","Third Party Payments","Other establishments","25-May-21","6508056","119.88","SUPPLIER","ADMIRAL CARE LTD","300000020477405"
"Portsmouth City Council","PCC","Adult Social Care","Mental Health Support Older People (65 - 74)","Adult Services","Third Party Payments","Other establishments","25-May-21","6508056","124.32","SUPPLIER","ADMIRAL CARE LTD","300000020477405"
"Portsmouth City Council","PCC","Adult Social Care","Social Care Activities","Adult Services","Third Party Payments","Other establishments","25-May-21","6508056","137.52","SUPPLIER","ADMIRAL CARE LTD","300000020477405"
"Portsmouth City Council","PCC","Adult Social Care","Mental Health Support Older People (65 - 74)","Adult Services","Third Party Payments","Other establishments","25-May-21","6508056","142.08","SUPPLIER","ADMIRAL CARE LTD","300000020477405"
"Portsmouth City Council","PCC","Adult Social Care","Mental Health Support Older People (65 - 74)","Adult Services","Third Party Payments","Other establishments","25-May-21","6508056","142.08","SUPPLIER","ADMIRAL CARE LTD","300000020477405"
"Portsmouth City Council","PCC","Adult Social Care","Mental Health Support Older People (65 - 74)","Adult Services","Third Party Payments","Other establishments","25-May-21","6508056","142.08","SUPPLIER","ADMIRAL CARE LTD","300000020477405"
"Portsmouth City Council","PCC","Adult Social Care","Physical Support Older People (85+)","Adult Services","Third Party Payments","Other establishments","25-May-21","6508056","266.4","SUPPLIER","ADMIRAL CARE LTD","300000020477405"
"Portsmouth City Council","PCC","Adult Social Care","Physical Support Older People (85+)","Adult Services","Third Party Payments","Other establishments","25-May-21","6508056","293.04","SUPPLIER","ADMIRAL CARE LTD","300000020477405"
"Portsmouth City Council","PCC","Adult Social Care","Mental Health Support Older People (65 - 74)","Adult Services","Third Party Payments","Other establishments","25-May-21","6508056","355.2","SUPPLIER","ADMIRAL CARE LTD","300000020477405"
"Portsmouth City Council","PCC","Adult Social Care","Physical Support Older People (85+)","Adult Services","Third Party Payments","Other establishments","25-May-21","6508056","444","SUPPLIER","ADMIRAL CARE LTD","300000020477405"
"Portsmouth City Council","PCC","Adult Social Care","Physical Support Older People (85+)","Adult Services","Third Party Payments","Other establishments","25-May-21","6508056","461.76","SUPPLIER","ADMIRAL CARE LTD","300000020477405"
"Portsmouth City Council","PCC","Adult Social Care","Physical Support Older People (85+)","Adult Services","Third Party Payments","Other establishments","25-May-21","6508056","497.28","SUPPLIER","ADMIRAL CARE LTD","300000020477405"
"Portsmouth City Council","PCC","Adult Social Care","Physical Support Older People (85+)","Adult Services","Third Party Payments","Other establishments","25-May-21","6508056","497.28","SUPPLIER","ADMIRAL CARE LTD","300000020477405"
"Portsmouth City Council","PCC","Adult Social Care","Physical Support Older People (85+)","Adult Services","Third Party Payments","Other establishments","25-May-21","6508056","497.28","SUPPLIER","ADMIRAL CARE LTD","300000020477405"
"Portsmouth City Council","PCC","Adult Social Care","Physical Support Older People (85+)","Adult Services","Third Party Payments","Other establishments","25-May-21","6508056","520.2","SUPPLIER","ADMIRAL CARE LTD","300000020477405"
"Portsmouth City Council","PCC","Adult Social Care","Mental Health Support Older People (65 - 74)","Adult Services","Third Party Payments","Other establishments","25-May-21","6508056","568.32","SUPPLIER","ADMIRAL CARE LTD","300000020477405"
"Portsmouth City Council","PCC","Adult Social Care","Physical Support Older People (85+)","Adult Services","Third Party Payments","Other establishments","25-May-21","6508056","621.6","SUPPLIER","ADMIRAL CARE LTD","300000020477405"
"Portsmouth City Council","PCC","Adult Social Care","Physical Support Older People (85+)","Adult Services","Third Party Payments","Other establishments","25-May-21","6508056","621.6","SUPPLIER","ADMIRAL CARE LTD","300000020477405"
"Portsmouth City Council","PCC","Adult Social Care","Mental Health Support Older People (65 - 74)","Adult Services","Third Party Payments","Other establishments","25-May-21","6508056","745.92","SUPPLIER","ADMIRAL CARE LTD","300000020477405"
"Portsmouth City Council","PCC","Adult Social Care","Mental Health Support Older People (65 - 74)","Adult Services","Third Party Payments","Other establishments","25-May-21","6508056","745.92","SUPPLIER","ADMIRAL CARE LTD","300000020477405"
"Portsmouth City Council","PCC","Adult Social Care","Physical Support Older People (85+)","Adult Services","Third Party Payments","Other establishments","25-May-21","6508056","745.92","SUPPLIER","ADMIRAL CARE LTD","300000020477405"
"Portsmouth City Council","PCC","Adult Social Care","Physical Support Older People (85+)","Adult Services","Third Party Payments","Other establishments","25-May-21","6508056","870.24","SUPPLIER","ADMIRAL CARE LTD","300000020477405"
"Portsmouth City Council","PCC","Adult Social Care","Physical Support Older People (85+)","Adult Services","Third Party Payments","Other establishments","25-May-21","6508056","994.56","SUPPLIER","ADMIRAL CARE LTD","300000020477405"
"Portsmouth City Council","PCC","Adult Social Care","Physical Support Older People (85+)","Adult Services","Third Party Payments","Other establishments","25-May-21","6508056","994.56","SUPPLIER","ADMIRAL CARE LTD","300000020477405"
"Portsmouth City Council","PCC","Adult Social Care","Social Care Activities","Adult Services","Third Party Payments","Other establishments","25-May-21","6508056","1,118.88","SUPPLIER","ADMIRAL CARE LTD","300000020477405"
"Portsmouth City Council","PCC","Adult Social Care","Social Care Activities","Adult Services","Third Party Payments","Other establishments","25-May-21","6508056","1,118.88","SUPPLIER","ADMIRAL CARE LTD","300000020477405"
"Portsmouth City Council","PCC","Adult Social Care","Physical Support Older People (85+)","Adult Services","Third Party Payments","Other establishments","25-May-21","6508056","1,243.20","SUPPLIER","ADMIRAL CARE LTD","300000020477405"
"Portsmouth City Council","PCC","Adult Social Care","Physical Support Older People (85+)","Adult Services","Third Party Payments","Other establishments","25-May-21","6508056","1,243.20","SUPPLIER","ADMIRAL CARE LTD","300000020477405"
"Portsmouth City Council","PCC","Adult Social Care","Physical Support Older People (85+)","Adult Services","Third Party Payments","Other establishments","25-May-21","6508056","1,243.20","SUPPLIER","ADMIRAL CARE LTD","300000020477405"
"Portsmouth City Council","PCC","Adult Social Care","Physical Support Older People (85+)","Adult Services","Third Party Payments","Other establishments","25-May-21","6508056","1,243.20","SUPPLIER","ADMIRAL CARE LTD","300000020477405"
"Portsmouth City Council","PCC","Adult Social Care","Social Care Activities","Adult Services","Third Party Payments","Other establishments","25-May-21","6508056","1,367.52","SUPPLIER","ADMIRAL CARE LTD","300000020477405"
"Portsmouth City Council","PCC","Adult Social Care","Social Care Activities","Adult Services","Third Party Payments","Other establishments","25-May-21","6508056","1,367.52","SUPPLIER","ADMIRAL CARE LTD","300000020477405"
"Portsmouth City Council","PCC","Adult Social Care","Physical Support Older People (85+)","Adult Services","Third Party Payments","Other establishments","25-May-21","6508056","1,811.52","SUPPLIER","ADMIRAL CARE LTD","300000020477405"
"Portsmouth City Council","PCC","Adult Social Care","Learning Disability Support Adults (18 - 64)","Adult Services","Premises-Related Expenditure","Water Services","4-May-21","6504207","480.21","SUPPLIER","ADVANCED DEMAND SIDE MANAGEMENT LIMITED","300000020478882"
"Portsmouth City Council","PCC","Adult Social Care","Support with Memory and Cognition Older People (65 - 74)","Adult Services","Premises-Related Expenditure","Water Services","4-May-21","6504207","343.91","SUPPLIER","ADVANCED DEMAND SIDE MANAGEMENT LIMITED","300000020478882"
"Portsmouth City Council","PCC","Adult Social Care","Information and Early Intervention","Adult Services","Premises-Related Expenditure","Water Services","4-May-21","6504207","3.54","SUPPLIER","ADVANCED DEMAND SIDE MANAGEMENT LIMITED","300000020478882"
"Portsmouth City Council","PCC","Adult Social Care","Support with Memory and Cognition Older People (65 - 74)","Adult Services","Premises-Related Expenditure","Water Services","4-May-21","6504207","1,985.20","SUPPLIER","ADVANCED DEMAND SIDE MANAGEMENT LIMITED","300000020478882"
"Portsmouth City Council","PCC","Adult Social Care","Support with Memory and Cognition Older People (65 - 74)","Adult Services","Premises-Related Expenditure","Water Services","4-May-21","6504207","562.27","SUPPLIER","ADVANCED DEMAND SIDE MANAGEMENT LIMITED","300000020478882"
"Portsmouth City Council","PCC","Adult Social Care","Learning Disability Support Adults (18 - 64)","Adult Services","Premises-Related Expenditure","Water Services","4-May-21","6504207","27.83","SUPPLIER","ADVANCED DEMAND SIDE MANAGEMENT LIMITED","300000020478882"
"Portsmouth City Council","PCC","Adult Social Care","Learning Disability Support Adults (18 - 64)","Adult Services","Premises-Related Expenditure","Water Services","4-May-21","6504207","27.83","SUPPLIER","ADVANCED DEMAND SIDE MANAGEMENT LIMITED","300000020478882"
"Portsmouth City Council","PCC","Adult Social Care","Learning Disability Support Adults (18 - 64)","Adult Services","Premises-Related Expenditure","Water Services","20-May-21","6507457","540.29","SUPPLIER","ADVANCED DEMAND SIDE MANAGEMENT LIMITED","300000020478882"
"Portsmouth City Council","PCC","Adult Social Care","Learning Disability Support Adults (18 - 64)","Adult Services","Premises-Related Expenditure","Water Services","20-May-21","6507457","28.75","SUPPLIER","ADVANCED DEMAND SIDE MANAGEMENT LIMITED","300000020478882"
"Portsmouth City Council","PCC","Adult Social Care","Learning Disability Support Adults (18 - 64)","Adult Services","Premises-Related Expenditure","Water Services","20-May-21","6507457","28.75","SUPPLIER","ADVANCED DEMAND SIDE MANAGEMENT LIMITED","300000020478882"
"Portsmouth City Council","PCC","Adult Social Care","Support with Memory and Cognition Older People (65 - 74)","Adult Services","Premises-Related Expenditure","Water Services","20-May-21","6507457","301.86","SUPPLIER","ADVANCED DEMAND SIDE MANAGEMENT LIMITED","300000020478882"
"Portsmouth City Council","PCC","Adult Social Care","Information and Early Intervention","Adult Services","Premises-Related Expenditure","Water Services","20-May-21","6507457","3.66","SUPPLIER","ADVANCED DEMAND SIDE MANAGEMENT LIMITED","300000020478882"
"Portsmouth City Council","PCC","Adult Social Care","Support with Memory and Cognition Older People (65 - 74)","Adult Services","Premises-Related Expenditure","Water Services","20-May-21","6507457","1,304.60","SUPPLIER","ADVANCED DEMAND SIDE MANAGEMENT LIMITED","300000020478882"
"Portsmouth City Council","PCC","Adult Social Care","Support with Memory and Cognition Older People (65 - 74)","Adult Services","Premises-Related Expenditure","Water Services","20-May-21","6507457","111.83","SUPPLIER","ADVANCED DEMAND SIDE MANAGEMENT LIMITED","300000020478882"
"Portsmouth City Council","PCC","Adult Social Care","Learning Disability Support Adults (18 - 64)","Adult Services","Premises-Related Expenditure","Water Services","28-May-21","6509006","522.23","SUPPLIER","ADVANCED DEMAND SIDE MANAGEMENT LIMITED","300000020478882"
"Portsmouth City Council","PCC","Adult Social Care","Learning Disability Support Adults (18 - 64)","Adult Services","Premises-Related Expenditure","Water Services","28-May-21","6509006","30.63","SUPPLIER","ADVANCED DEMAND SIDE MANAGEMENT LIMITED","300000020478882"
"Portsmouth City Council","PCC","Adult Social Care","Learning Disability Support Adults (18 - 64)","Adult Services","Premises-Related Expenditure","Water Services","28-May-21","6509006","27.83","SUPPLIER","ADVANCED DEMAND SIDE MANAGEMENT LIMITED","300000020478882"
"Portsmouth City Council","PCC","Adult Social Care","Support with Memory and Cognition Older People (65 - 74)","Adult Services","Premises-Related Expenditure","Water Services","28-May-21","6509006","293.11","SUPPLIER","ADVANCED DEMAND SIDE MANAGEMENT LIMITED","300000020478882"
"Portsmouth City Council","PCC","Adult Social Care","Information and Early Intervention","Adult Services","Premises-Related Expenditure","Water Services","28-May-21","6509006","3.54","SUPPLIER","ADVANCED DEMAND SIDE MANAGEMENT LIMITED","300000020478882"
"Portsmouth City Council","PCC","Adult Social Care","Support with Memory and Cognition Older People (65 - 74)","Adult Services","Premises-Related Expenditure","Water Services","28-May-21","6509006","1,262.51","SUPPLIER","ADVANCED DEMAND SIDE MANAGEMENT LIMITED","300000020478882"
"Portsmouth City Council","PCC","Adult Social Care","Support with Memory and Cognition Older People (65 - 74)","Adult Services","Premises-Related Expenditure","Water Services","28-May-21","6509006","108.49","SUPPLIER","ADVANCED DEMAND SIDE MANAGEMENT LIMITED","300000020478882"
"Portsmouth City Council","PCC","Adult Social Care","Learning Disability Support Adults (18 - 64)","Adult Services","Third Party Payments","Other establishments","12-May-21","6506134","7,008.79","SUPPLIER","AFFINITY TRUST LTD","300000020477195"
"Portsmouth City Council","PCC","Adult Social Care","Learning Disability Support Adults (18 - 64)","Adult Services","Third Party Payments","Other establishments","12-May-21","6506134","7,330.88","SUPPLIER","AFFINITY TRUST LTD","300000020477195"
"Portsmouth City Council","PCC","Adult Social Care","Learning Disability Support Adults (18 - 64)","Adult Services","Third Party Payments","Other establishments","12-May-21","6506134","7,503.24","SUPPLIER","AFFINITY TRUST LTD","300000020477195"
"Portsmouth City Council","PCC","Adult Social Care","Learning Disability Support Adults (18 - 64)","Adult Services","Third Party Payments","Other establishments","12-May-21","6506134","7,586.01","SUPPLIER","AFFINITY TRUST LTD","300000020477195"
"Portsmouth City Council","PCC","Adult Social Care","Learning Disability Support Adults (18 - 64)","Adult Services","Third Party Payments","Other establishments","12-May-21","6506134","8,989.69","SUPPLIER","AFFINITY TRUST LTD","300000020477195"
"Portsmouth City Council","PCC","Adult Social Care","Learning Disability Support Adults (18 - 64)","Adult Services","Third Party Payments","Other establishments","12-May-21","6506134","9,560.09","SUPPLIER","AFFINITY TRUST LTD","300000020477195"
"Portsmouth City Council","PCC","Adult Social Care","Learning Disability Support Adults (18 - 64)","Adult Services","Third Party Payments","Other establishments","12-May-21","6506134","9,560.09","SUPPLIER","AFFINITY TRUST LTD","300000020477195"
"Portsmouth City Council","PCC","Adult Social Care","Commissioning & service delivery","Adult Services","Third Party Payments","Other establishments","12-May-21","6506134","663.17","SUPPLIER","AFFINITY TRUST LTD","300000020477195"
"Portsmouth City Council","PCC","Adult Social Care","Commissioning & service delivery","Adult Services","Third Party Payments","Other establishments","12-May-21","6506134","884.23","SUPPLIER","AFFINITY TRUST LTD","300000020477195"
"Portsmouth City Council","PCC","Adult Social Care","Social Care Activities","Adult Services","Third Party Payments","Other establishments","7-May-21","6505126","471.45","SUPPLIER","AGINCARE UK","300000020481869"
"Portsmouth City Council","PCC","Adult Social Care","Social Care Activities","Adult Services","Third Party Payments","Other establishments","7-May-21","6505126","1,571.50","SUPPLIER","AGINCARE UK","300000020481869"
"Portsmouth City Council","PCC","Adult Social Care","Social Care Activities","Adult Services","Third Party Payments","Other establishments","7-May-21","6505126","1,571.50","SUPPLIER","AGINCARE UK","300000020481869"
"Portsmouth City Council","PCC","Adult Social Care","Social Care Activities","Adult Services","Third Party Payments","Other establishments","7-May-21","6505126","1,571.50","SUPPLIER","AGINCARE UK","300000020481869"
"Portsmouth City Council","PCC","Adult Social Care","Physical Support Older People (85+)","Adult Services","Third Party Payments","Other establishments","12-May-21","6505779","2,954.61","SUPPLIER","AGINCARE UK","300000020481869"
"Portsmouth City Council","PCC","Adult Social Care","Physical Support Older People (85+)","Adult Services","Third Party Payments","Other establishments","24-May-21","6507971","401.23","SUPPLIER","AGINCARE UK","300000020481869"
"Portsmouth City Council","PCC","Adult Social Care","Physical Support Older People (85+)","Adult Services","Third Party Payments","Other establishments","24-May-21","6507971","3,555.44","SUPPLIER","AGINCARE UK","300000020481869"
"Portsmouth City Council","PCC","Adult Social Care","Social Care Activities","Adult Services","Third Party Payments","Other establishments","24-May-21","6507971","4,464.25","SUPPLIER","AGINCARE UK","300000020481869"
"Portsmouth City Council","PCC","Adult Social Care","Social Care Activities","Adult Services","Third Party Payments","Other establishments","12-May-21","6505740","15,012.06","SUPPLIER","ALBANY CARE (PORTCHESTER) LIMITED","300000020467728"
"Portsmouth City Council","PCC","Adult Social Care","Mental Health Support Adults (18 - 64)","Adult Services","Third Party Payments","Other establishments","12-May-21","6505543","2,792.79","SUPPLIER","ALBANY FARM CARE (HAMPSHIRE) LTD","300000020477794"
"Portsmouth City Council","PCC","Adult Social Care","Learning Disability Support Adults (18 - 64)","Adult Services","Third Party Payments","Other establishments","12-May-21","6505543","7,092.49","SUPPLIER","ALBANY FARM CARE (HAMPSHIRE) LTD","300000020477794"
"Portsmouth City Council","PCC","Adult Social Care","Learning Disability Support Adults (18 - 64)","Adult Services","Third Party Payments","Other establishments","12-May-21","6505391","4,586.76","SUPPLIER","ALLIED CARE ASHSTEAD HOUSE","300000020473831"
"Portsmouth City Council","PCC","Adult Social Care","Learning Disability Support Adults (18 - 64)","Adult Services","Third Party Payments","Other establishments","12-May-21","6505527","4,490.66","SUPPLIER","ALLIED CARE LTD","300000020478714"
"Portsmouth City Council","PCC","Adult Social Care","Learning Disability Support Adults (18 - 64)","Adult Services","Third Party Payments","Other establishments","25-May-21","6508016","1,336.68","SUPPLIER","ALLIED CARE LTD","300000020478714"
"Portsmouth City Council","PCC","Adult Social Care","Support with Memory and Cognition Older People (85+)","Adult Services","Third Party Payments","Other establishments","12-May-21","6505432","-2,823.30","SUPPLIER","ALTON HOUSE PARTNERSHIP","300000020463909"
"Portsmouth City Council","PCC","Adult Social Care","Support with Memory and Cognition Older People (85+)","Adult Services","Third Party Payments","Other establishments","12-May-21","6505432","-2,823.30","SUPPLIER","ALTON HOUSE PARTNERSHIP","300000020463909"
"Portsmouth City Council","PCC","Adult Social Care","Support with Memory and Cognition Older People (85+)","Adult Services","Third Party Payments","Other establishments","12-May-21","6505432","2,907.30","SUPPLIER","ALTON HOUSE PARTNERSHIP","300000020463909"
"Portsmouth City Council","PCC","Adult Social Care","Support with Memory and Cognition Older People (85+)","Adult Services","Third Party Payments","Other establishments","12-May-21","6505432","2,907.30","SUPPLIER","ALTON HOUSE PARTNERSHIP","300000020463909"
"Portsmouth City Council","PCC","Adult Social Care","Support with Memory and Cognition Older People (85+)","Adult Services","Third Party Payments","Other establishments","12-May-21","6505432","3,004.21","SUPPLIER","ALTON HOUSE PARTNERSHIP","300000020463909"
"Portsmouth City Council","PCC","Adult Social Care","Support with Memory and Cognition Older People (85+)","Adult Services","Third Party Payments","Other establishments","12-May-21","6505432","3,004.21","SUPPLIER","ALTON HOUSE PARTNERSHIP","300000020463909"
"Portsmouth City Council","PCC","Adult Social Care","Support with Memory and Cognition Older People (85+)","Adult Services","Third Party Payments","Other establishments","12-May-21","6505743","1,016.18","SUPPLIER","ALTON MANOR LTD","300000020457904"
"Portsmouth City Council","PCC","Adult Social Care","Mental Health Support Adults (18 - 64)","Adult Services","Third Party Payments","Other establishments","12-May-21","6505743","2,244.40","SUPPLIER","ALTON MANOR LTD","300000020457904"
"Portsmouth City Council","PCC","Adult Social Care","Physical Support Older People (85+)","Adult Services","Third Party Payments","Other establishments","12-May-21","6505743","2,384.52","SUPPLIER","ALTON MANOR LTD","300000020457904"
"Portsmouth City Council","PCC","Adult Social Care","Support with Memory and Cognition Older People (85+)","Adult Services","Third Party Payments","Other establishments","12-May-21","6505743","2,384.52","SUPPLIER","ALTON MANOR LTD","300000020457904"
"Portsmouth City Council","PCC","Adult Social Care","Support with Memory and Cognition Older People (85+)","Adult Services","Third Party Payments","Other establishments","12-May-21","6505743","2,384.52","SUPPLIER","ALTON MANOR LTD","300000020457904"
"Portsmouth City Council","PCC","Adult Social Care","Support with Memory and Cognition Older People (85+)","Adult Services","Third Party Payments","Other establishments","12-May-21","6505743","2,384.52","SUPPLIER","ALTON MANOR LTD","300000020457904"
"Portsmouth City Council","PCC","Adult Social Care","Support with Memory and Cognition Older People (85+)","Adult Services","Third Party Payments","Other establishments","12-May-21","6505743","2,384.52","SUPPLIER","ALTON MANOR LTD","300000020457904"
"Portsmouth City Council","PCC","Adult Social Care","Support with Memory and Cognition Older People (85+)","Adult Services","Third Party Payments","Other establishments","12-May-21","6505743","2,384.52","SUPPLIER","ALTON MANOR LTD","300000020457904"
"Portsmouth City Council","PCC","Adult Social Care","Support with Memory and Cognition Older People (85+)","Adult Services","Third Party Payments","Other establishments","12-May-21","6505743","2,935.08","SUPPLIER","ALTON MANOR LTD","300000020457904"
"Portsmouth City Council","PCC","Adult Social Care","Support with Memory and Cognition Older People (85+)","Adult Services","Third Party Payments","Other establishments","12-May-21","6505743","3,160.76","SUPPLIER","ALTON MANOR LTD","300000020457904"
"Portsmouth City Council","PCC","Adult Social Care","Support with Memory and Cognition Older People (85+)","Adult Services","Third Party Payments","Other establishments","12-May-21","6505743","3,224.00","SUPPLIER","ALTON MANOR LTD","300000020457904"
"Portsmouth City Council","PCC","Adult Social Care","Commissioning & service delivery","Adult Services","Third Party Payments","Other establishments","28-May-21","6508929","6,410.66","SUPPLIER","ANA TREATMENT CENTRES LTD","300000020459870"
"Portsmouth City Council","PCC","Adult Social Care","Support with Memory and Cognition Older People (85+)","Adult Services","Third Party Payments","Other establishments","12-May-21","6505454","2,019.34","SUPPLIER","SHEDFIELD LODGE RESIDENTIAL","300000020460457"
"Portsmouth City Council","PCC","Adult Social Care","Support with Memory and Cognition Older People (85+)","Adult Services","Third Party Payments","Other establishments","12-May-21","6506136","2,431.95","SUPPLIER","ANEXAS CARE LTD","300000020475584"
"Portsmouth City Council","PCC","Adult Social Care","Information and Early Intervention","Adult Services","Third Party Payments","Other establishments","28-May-21","6509062","-18,749.50","SUPPLIER","APETITO LTD","300000015963886"
"Portsmouth City Council","PCC","Adult Social Care","Information and Early Intervention","Adult Services","Third Party Payments","Other establishments","28-May-21","6509062","-1,001.00","SUPPLIER","APETITO LTD","300000015963886"
"Portsmouth City Council","PCC","Adult Social Care","Information and Early Intervention","Adult Services","Third Party Payments","Other establishments","28-May-21","6509062","1,001.00","SUPPLIER","APETITO LTD","300000015963886"
"Portsmouth City Council","PCC","Adult Social Care","Information and Early Intervention","Adult Services","Third Party Payments","Other establishments","28-May-21","6509062","18,749.50","SUPPLIER","APETITO LTD","300000015963886"
"Portsmouth City Council","PCC","Adult Social Care","Physical Support Older People (85+)","Adult Services","Third Party Payments","Other establishments","4-May-21","6504224","-522","SUPPLIER","APEX PROPERTY VENTURES LTD","300000020464573"
"Portsmouth City Council","PCC","Adult Social Care","Physical Support Older People (85+)","Adult Services","Third Party Payments","Other establishments","4-May-21","6504224","2.54","SUPPLIER","APEX PROPERTY VENTURES LTD","300000020464573"
"Portsmouth City Council","PCC","Adult Social Care","Physical Support Older People (85+)","Adult Services","Third Party Payments","Other establishments","4-May-21","6504224","2.54","SUPPLIER","APEX PROPERTY VENTURES LTD","300000020464573"
"Portsmouth City Council","PCC","Adult Social Care","Physical Support Older People (85+)","Adult Services","Third Party Payments","Other establishments","4-May-21","6504224","3.48","SUPPLIER","APEX PROPERTY VENTURES LTD","300000020464573"
"Portsmouth City Council","PCC","Adult Social Care","Physical Support Older People (85+)","Adult Services","Third Party Payments","Other establishments","4-May-21","6504224","6.09","SUPPLIER","APEX PROPERTY VENTURES LTD","300000020464573"
"Portsmouth City Council","PCC","Adult Social Care","Physical Support Older People (85+)","Adult Services","Third Party Payments","Other establishments","4-May-21","6504224","6.21","SUPPLIER","APEX PROPERTY VENTURES LTD","300000020464573"
"Portsmouth City Council","PCC","Adult Social Care","Physical Support Older People (85+)","Adult Services","Third Party Payments","Other establishments","4-May-21","6504224","6.21","SUPPLIER","APEX PROPERTY VENTURES LTD","300000020464573"
"Portsmouth City Council","PCC","Adult Social Care","Physical Support Older People (85+)","Adult Services","Third Party Payments","Other establishments","4-May-21","6504224","6.96","SUPPLIER","APEX PROPERTY VENTURES LTD","300000020464573"
"Portsmouth City Council","PCC","Adult Social Care","Physical Support Older People (85+)","Adult Services","Third Party Payments","Other establishments","4-May-21","6504224","8.7","SUPPLIER","APEX PROPERTY VENTURES LTD","300000020464573"
"Portsmouth City Council","PCC","Adult Social Care","Physical Support Older People (85+)","Adult Services","Third Party Payments","Other establishments","4-May-21","6504224","8.7","SUPPLIER","APEX PROPERTY VENTURES LTD","300000020464573"
"Portsmouth City Council","PCC","Adult Social Care","Physical Support Older People (85+)","Adult Services","Third Party Payments","Other establishments","4-May-21","6504224","8.88","SUPPLIER","APEX PROPERTY VENTURES LTD","300000020464573"
"Portsmouth City Council","PCC","Adult Social Care","Physical Support Older People (85+)","Adult Services","Third Party Payments","Other establishments","4-May-21","6504224","8.88","SUPPLIER","APEX PROPERTY VENTURES LTD","300000020464573"
"Portsmouth City Council","PCC","Adult Social Care","Social Support - Support for Carer","Adult Services","Third Party Payments","Other establishments","4-May-21","6504224","12.82","SUPPLIER","APEX PROPERTY VENTURES LTD","300000020464573"
"Portsmouth City Council","PCC","Adult Social Care","Physical Support Adults (18 - 64)","Adult Services","Third Party Payments","Other establishments","4-May-21","6504224","13.05","SUPPLIER","APEX PROPERTY VENTURES LTD","300000020464573"
"Portsmouth City Council","PCC","Adult Social Care","Physical Support Older People (85+)","Adult Services","Third Party Payments","Other establishments","4-May-21","6504224","16.49","SUPPLIER","APEX PROPERTY VENTURES LTD","300000020464573"
"Portsmouth City Council","PCC","Adult Social Care","Physical Support Older People (85+)","Adult Services","Third Party Payments","Other establishments","4-May-21","6504224","17.4","SUPPLIER","APEX PROPERTY VENTURES LTD","300000020464573"
"Portsmouth City Council","PCC","Adult Social Care","Physical Support Older People (85+)","Adult Services","Third Party Payments","Other establishments","4-May-21","6504224","17.4","SUPPLIER","APEX PROPERTY VENTURES LTD","300000020464573"
"Portsmouth City Council","PCC","Adult Social Care","Social Support - Support for Carer","Adult Services","Third Party Payments","Other establishments","4-May-21","6504224","17.46","SUPPLIER","APEX PROPERTY VENTURES LTD","300000020464573"
"Portsmouth City Council","PCC","Adult Social Care","Physical Support Older People (85+)","Adult Services","Third Party Payments","Other establishments","4-May-21","6504224","17.76","SUPPLIER","APEX PROPERTY VENTURES LTD","300000020464573"
"Portsmouth City Council","PCC","Adult Social Care","Physical Support Older People (85+)","Adult Services","Third Party Payments","Other establishments","4-May-21","6504224","19.03","SUPPLIER","APEX PROPERTY VENTURES LTD","300000020464573"
"Portsmouth City Council","PCC","Adult Social Care","Physical Support Older People (85+)","Adult Services","Third Party Payments","Other establishments","4-May-21","6504224","20.93","SUPPLIER","APEX PROPERTY VENTURES LTD","300000020464573"
"Portsmouth City Council","PCC","Adult Social Care","Physical Support Older People (85+)","Adult Services","Third Party Payments","Other establishments","4-May-21","6504224","21.75","SUPPLIER","APEX PROPERTY VENTURES LTD","300000020464573"
"Portsmouth City Council","PCC","Adult Social Care","Physical Support Older People (85+)","Adult Services","Third Party Payments","Other establishments","4-May-21","6504224","22.99","SUPPLIER","APEX PROPERTY VENTURES LTD","300000020464573"
"Portsmouth City Council","PCC","Adult Social Care","Physical Support Older People (85+)","Adult Services","Third Party Payments","Other establishments","4-May-21","6504224","24.86","SUPPLIER","APEX PROPERTY VENTURES LTD","300000020464573"
"Portsmouth City Council","PCC","Adult Social Care","Physical Support Older People (85+)","Adult Services","Third Party Payments","Other establishments","4-May-21","6504224","26.1","SUPPLIER","APEX PROPERTY VENTURES LTD","300000020464573"
"Portsmouth City Council","PCC","Adult Social Care","Physical Support Older People (85+)","Adult Services","Third Party Payments","Other establishments","4-May-21","6504224","26.64","SUPPLIER","APEX PROPERTY VENTURES LTD","300000020464573"
"Portsmouth City Council","PCC","Adult Social Care","Physical Support Older People (85+)","Adult Services","Third Party Payments","Other establishments","4-May-21","6504224","27.91","SUPPLIER","APEX PROPERTY VENTURES LTD","300000020464573"
"Portsmouth City Council","PCC","Adult Social Care","Social Support - Support for Carer","Adult Services","Third Party Payments","Other establishments","4-May-21","6504224","29.92","SUPPLIER","APEX PROPERTY VENTURES LTD","300000020464573"
"Portsmouth City Council","PCC","Adult Social Care","Social Support - Support for Carer","Adult Services","Third Party Payments","Other establishments","4-May-21","6504224","30.56","SUPPLIER","APEX PROPERTY VENTURES LTD","300000020464573"
"Portsmouth City Council","PCC","Adult Social Care","Physical Support Older People (85+)","Adult Services","Third Party Payments","Other establishments","4-May-21","6504224","31.69","SUPPLIER","APEX PROPERTY VENTURES LTD","300000020464573"
"Portsmouth City Council","PCC","Adult Social Care","Physical Support Older People (85+)","Adult Services","Third Party Payments","Other establishments","4-May-21","6504224","31.97","SUPPLIER","APEX PROPERTY VENTURES LTD","300000020464573"
"Portsmouth City Council","PCC","Adult Social Care","Physical Support Older People (85+)","Adult Services","Third Party Payments","Other establishments","4-May-21","6504224","32.31","SUPPLIER","APEX PROPERTY VENTURES LTD","300000020464573"
"Portsmouth City Council","PCC","Adult Social Care","Social Support - Support for Carer","Adult Services","Third Party Payments","Other establishments","4-May-21","6504224","35.26","SUPPLIER","APEX PROPERTY VENTURES LTD","300000020464573"
"Portsmouth City Council","PCC","Adult Social Care","Physical Support Older People (85+)","Adult Services","Third Party Payments","Other establishments","4-May-21","6504224","39.33","SUPPLIER","APEX PROPERTY VENTURES LTD","300000020464573"
"Portsmouth City Council","PCC","Adult Social Care","Physical Support Older People (85+)","Adult Services","Third Party Payments","Other establishments","4-May-21","6504224","39.77","SUPPLIER","APEX PROPERTY VENTURES LTD","300000020464573"
"Portsmouth City Council","PCC","Adult Social Care","Social Care Activities","Adult Services","Third Party Payments","Other establishments","4-May-21","6504224","39.96","SUPPLIER","APEX PROPERTY VENTURES LTD","300000020464573"
"Portsmouth City Council","PCC","Adult Social Care","Physical Support Older People (85+)","Adult Services","Third Party Payments","Other establishments","4-May-21","6504224","41.86","SUPPLIER","APEX PROPERTY VENTURES LTD","300000020464573"
"Portsmouth City Council","PCC","Adult Social Care","Physical Support Older People (85+)","Adult Services","Third Party Payments","Other establishments","4-May-21","6504224","41.86","SUPPLIER","APEX PROPERTY VENTURES LTD","300000020464573"
"Portsmouth City Council","PCC","Adult Social Care","Physical Support Older People (85+)","Adult Services","Third Party Payments","Other establishments","4-May-21","6504224","41.86","SUPPLIER","APEX PROPERTY VENTURES LTD","300000020464573"
"Portsmouth City Council","PCC","Adult Social Care","Physical Support Older People (85+)","Adult Services","Third Party Payments","Other establishments","4-May-21","6504224","42.26","SUPPLIER","APEX PROPERTY VENTURES LTD","300000020464573"
"Portsmouth City Council","PCC","Adult Social Care","Physical Support Older People (85+)","Adult Services","Third Party Payments","Other establishments","4-May-21","6504224","44.4","SUPPLIER","APEX PROPERTY VENTURES LTD","300000020464573"
"Portsmouth City Council","PCC","Adult Social Care","Social Support - Support for Carer","Adult Services","Third Party Payments","Other establishments","4-May-21","6504224","48.02","SUPPLIER","APEX PROPERTY VENTURES LTD","300000020464573"
"Portsmouth City Council","PCC","Adult Social Care","Physical Support Older People (85+)","Adult Services","Third Party Payments","Other establishments","4-May-21","6504224","51.5","SUPPLIER","APEX PROPERTY VENTURES LTD","300000020464573"
"Portsmouth City Council","PCC","Adult Social Care","Physical Support Adults (18 - 64)","Adult Services","Third Party Payments","Other establishments","4-May-21","6504224","55.82","SUPPLIER","APEX PROPERTY VENTURES LTD","300000020464573"
"Portsmouth City Council","PCC","Adult Social Care","Physical Support Older People (85+)","Adult Services","Third Party Payments","Other establishments","4-May-21","6504224","55.82","SUPPLIER","APEX PROPERTY VENTURES LTD","300000020464573"
"Portsmouth City Council","PCC","Adult Social Care","Physical Support Older People (85+)","Adult Services","Third Party Payments","Other establishments","4-May-21","6504224","55.82","SUPPLIER","APEX PROPERTY VENTURES LTD","300000020464573"
"Portsmouth City Council","PCC","Adult Social Care","Physical Support Older People (85+)","Adult Services","Third Party Payments","Other establishments","4-May-21","6504224","55.82","SUPPLIER","APEX PROPERTY VENTURES LTD","300000020464573"
"Portsmouth City Council","PCC","Adult Social Care","Physical Support Older People (85+)","Adult Services","Third Party Payments","Other establishments","4-May-21","6504224","55.82","SUPPLIER","APEX PROPERTY VENTURES LTD","300000020464573"
"Portsmouth City Council","PCC","Adult Social Care","Physical Support Older People (85+)","Adult Services","Third Party Payments","Other establishments","4-May-21","6504224","55.82","SUPPLIER","APEX PROPERTY VENTURES LTD","300000020464573"
"Portsmouth City Council","PCC","Adult Social Care","Physical Support Older People (85+)","Adult Services","Third Party Payments","Other establishments","4-May-21","6504224","60.9","SUPPLIER","APEX PROPERTY VENTURES LTD","300000020464573"
"Portsmouth City Council","PCC","Adult Social Care","Physical Support Older People (85+)","Adult Services","Third Party Payments","Other establishments","4-May-21","6504224","62.79","SUPPLIER","APEX PROPERTY VENTURES LTD","300000020464573"
"Portsmouth City Council","PCC","Adult Social Care","Physical Support Older People (85+)","Adult Services","Third Party Payments","Other establishments","4-May-21","6504224","62.79","SUPPLIER","APEX PROPERTY VENTURES LTD","300000020464573"
"Portsmouth City Council","PCC","Adult Social Care","Physical Support Older People (85+)","Adult Services","Third Party Payments","Other establishments","4-May-21","6504224","63.39","SUPPLIER","APEX PROPERTY VENTURES LTD","300000020464573"
"Portsmouth City Council","PCC","Adult Social Care","Physical Support Older People (85+)","Adult Services","Third Party Payments","Other establishments","4-May-21","6504224","63.39","SUPPLIER","APEX PROPERTY VENTURES LTD","300000020464573"
"Portsmouth City Council","PCC","Adult Social Care","Physical Support Older People (85+)","Adult Services","Third Party Payments","Other establishments","4-May-21","6504224","63.39","SUPPLIER","APEX PROPERTY VENTURES LTD","300000020464573"
"Portsmouth City Council","PCC","Adult Social Care","Physical Support Older People (85+)","Adult Services","Third Party Payments","Other establishments","4-May-21","6504224","63.43","SUPPLIER","APEX PROPERTY VENTURES LTD","300000020464573"
"Portsmouth City Council","PCC","Adult Social Care","Physical Support Older People (85+)","Adult Services","Third Party Payments","Other establishments","4-May-21","6504224","65.25","SUPPLIER","APEX PROPERTY VENTURES LTD","300000020464573"
"Portsmouth City Council","PCC","Adult Social Care","Physical Support Older People (85+)","Adult Services","Third Party Payments","Other establishments","4-May-21","6504224","69.6","SUPPLIER","APEX PROPERTY VENTURES LTD","300000020464573"
"Portsmouth City Council","PCC","Adult Social Care","Physical Support Adults (18 - 64)","Adult Services","Third Party Payments","Other establishments","4-May-21","6504224","69.77","SUPPLIER","APEX PROPERTY VENTURES LTD","300000020464573"
"Portsmouth City Council","PCC","Adult Social Care","Physical Support Older People (85+)","Adult Services","Third Party Payments","Other establishments","4-May-21","6504224","69.77","SUPPLIER","APEX PROPERTY VENTURES LTD","300000020464573"
"Portsmouth City Council","PCC","Adult Social Care","Physical Support Older People (85+)","Adult Services","Third Party Payments","Other establishments","4-May-21","6504224","69.77","SUPPLIER","APEX PROPERTY VENTURES LTD","300000020464573"
"Portsmouth City Council","PCC","Adult Social Care","Physical Support Older People (85+)","Adult Services","Third Party Payments","Other establishments","4-May-21","6504224","69.77","SUPPLIER","APEX PROPERTY VENTURES LTD","300000020464573"
"Portsmouth City Council","PCC","Adult Social Care","Learning Disability Support Adults (18 - 64)","Adult Services","Third Party Payments","Other establishments","4-May-21","6504224","69.77","SUPPLIER","APEX PROPERTY VENTURES LTD","300000020464573"
"Portsmouth City Council","PCC","Adult Social Care","Physical Support Older People (85+)","Adult Services","Third Party Payments","Other establishments","4-May-21","6504224","72.82","SUPPLIER","APEX PROPERTY VENTURES LTD","300000020464573"
"Portsmouth City Council","PCC","Adult Social Care","Physical Support Older People (85+)","Adult Services","Third Party Payments","Other establishments","4-May-21","6504224","77.06","SUPPLIER","APEX PROPERTY VENTURES LTD","300000020464573"
"Portsmouth City Council","PCC","Adult Social Care","Physical Support Older People (85+)","Adult Services","Third Party Payments","Other establishments","4-May-21","6504224","82.46","SUPPLIER","APEX PROPERTY VENTURES LTD","300000020464573"
"Portsmouth City Council","PCC","Adult Social Care","Physical Support Older People (85+)","Adult Services","Third Party Payments","Other establishments","4-May-21","6504224","83.73","SUPPLIER","APEX PROPERTY VENTURES LTD","300000020464573"
"Portsmouth City Council","PCC","Adult Social Care","Physical Support Adults (18 - 64)","Adult Services","Third Party Payments","Other establishments","4-May-21","6504224","84.51","SUPPLIER","APEX PROPERTY VENTURES LTD","300000020464573"
"Portsmouth City Council","PCC","Adult Social Care","Physical Support Older People (85+)","Adult Services","Third Party Payments","Other establishments","4-May-21","6504224","84.51","SUPPLIER","APEX PROPERTY VENTURES LTD","300000020464573"
"Portsmouth City Council","PCC","Adult Social Care","Physical Support Older People (85+)","Adult Services","Third Party Payments","Other establishments","4-May-21","6504224","84.51","SUPPLIER","APEX PROPERTY VENTURES LTD","300000020464573"
"Portsmouth City Council","PCC","Adult Social Care","Physical Support Older People (85+)","Adult Services","Third Party Payments","Other establishments","4-May-21","6504224","84.51","SUPPLIER","APEX PROPERTY VENTURES LTD","300000020464573"
"Portsmouth City Council","PCC","Adult Social Care","Physical Support Older People (85+)","Adult Services","Third Party Payments","Other establishments","4-May-21","6504224","84.51","SUPPLIER","APEX PROPERTY VENTURES LTD","300000020464573"
"Portsmouth City Council","PCC","Adult Social Care","Physical Support Older People (85+)","Adult Services","Third Party Payments","Other establishments","4-May-21","6504224","87","SUPPLIER","APEX PROPERTY VENTURES LTD","300000020464573"
"Portsmouth City Council","PCC","Adult Social Care","Physical Support Older People (85+)","Adult Services","Third Party Payments","Other establishments","4-May-21","6504224","91.35","SUPPLIER","APEX PROPERTY VENTURES LTD","300000020464573"
"Portsmouth City Council","PCC","Adult Social Care","Physical Support Older People (85+)","Adult Services","Third Party Payments","Other establishments","4-May-21","6504224","94.46","SUPPLIER","APEX PROPERTY VENTURES LTD","300000020464573"
"Portsmouth City Council","PCC","Adult Social Care","Physical Support Older People (85+)","Adult Services","Third Party Payments","Other establishments","4-May-21","6504224","95.08","SUPPLIER","APEX PROPERTY VENTURES LTD","300000020464573"
"Portsmouth City Council","PCC","Adult Social Care","Physical Support Older People (85+)","Adult Services","Third Party Payments","Other establishments","4-May-21","6504224","95.08","SUPPLIER","APEX PROPERTY VENTURES LTD","300000020464573"
"Portsmouth City Council","PCC","Adult Social Care","Social Care Activities","Adult Services","Third Party Payments","Other establishments","4-May-21","6504224","96.05","SUPPLIER","APEX PROPERTY VENTURES LTD","300000020464573"
"Portsmouth City Council","PCC","Adult Social Care","Social Support - Support for Carer","Adult Services","Third Party Payments","Other establishments","4-May-21","6504224","96.05","SUPPLIER","APEX PROPERTY VENTURES LTD","300000020464573"
"Portsmouth City Council","PCC","Adult Social Care","Physical Support Adults (18 - 64)","Adult Services","Third Party Payments","Other establishments","4-May-21","6504224","97.68","SUPPLIER","APEX PROPERTY VENTURES LTD","300000020464573"
"Portsmouth City Council","PCC","Adult Social Care","Physical Support Adults (18 - 64)","Adult Services","Third Party Payments","Other establishments","4-May-21","6504224","97.68","SUPPLIER","APEX PROPERTY VENTURES LTD","300000020464573"
"Portsmouth City Council","PCC","Adult Social Care","Physical Support Adults (18 - 64)","Adult Services","Third Party Payments","Other establishments","4-May-21","6504224","97.68","SUPPLIER","APEX PROPERTY VENTURES LTD","300000020464573"
"Portsmouth City Council","PCC","Adult Social Care","Physical Support Older People (85+)","Adult Services","Third Party Payments","Other establishments","4-May-21","6504224","97.68","SUPPLIER","APEX PROPERTY VENTURES LTD","300000020464573"
"Portsmouth City Council","PCC","Adult Social Care","Physical Support Older People (85+)","Adult Services","Third Party Payments","Other establishments","4-May-21","6504224","97.68","SUPPLIER","APEX PROPERTY VENTURES LTD","300000020464573"
"Portsmouth City Council","PCC","Adult Social Care","Physical Support Older People (85+)","Adult Services","Third Party Payments","Other establishments","4-May-21","6504224","97.68","SUPPLIER","APEX PROPERTY VENTURES LTD","300000020464573"
"Portsmouth City Council","PCC","Adult Social Care","Physical Support Older People (85+)","Adult Services","Third Party Payments","Other establishments","4-May-21","6504224","97.68","SUPPLIER","APEX PROPERTY VENTURES LTD","300000020464573"
"Portsmouth City Council","PCC","Adult Social Care","Physical Support Older People (85+)","Adult Services","Third Party Payments","Other establishments","4-May-21","6504224","97.68","SUPPLIER","APEX PROPERTY VENTURES LTD","300000020464573"
"Portsmouth City Council","PCC","Adult Social Care","Physical Support Older People (85+)","Adult Services","Third Party Payments","Other establishments","4-May-21","6504224","97.68","SUPPLIER","APEX PROPERTY VENTURES LTD","300000020464573"
"Portsmouth City Council","PCC","Adult Social Care","Learning Disability Support Adults (18 - 64)","Adult Services","Third Party Payments","Other establishments","4-May-21","6504224","97.68","SUPPLIER","APEX PROPERTY VENTURES LTD","300000020464573"
"Portsmouth City Council","PCC","Adult Social Care","Social Care Activities","Adult Services","Third Party Payments","Other establishments","4-May-21","6504224","104.4","SUPPLIER","APEX PROPERTY VENTURES LTD","300000020464573"
"Portsmouth City Council","PCC","Adult Social Care","Learning Disability Support Adults (18 - 64)","Adult Services","Third Party Payments","Other establishments","4-May-21","6504224","104.66","SUPPLIER","APEX PROPERTY VENTURES LTD","300000020464573"
"Portsmouth City Council","PCC","Adult Social Care","Physical Support Adults (18 - 64)","Adult Services","Third Party Payments","Other establishments","4-May-21","6504224","105.64","SUPPLIER","APEX PROPERTY VENTURES LTD","300000020464573"
"Portsmouth City Council","PCC","Adult Social Care","Physical Support Older People (85+)","Adult Services","Third Party Payments","Other establishments","4-May-21","6504224","105.64","SUPPLIER","APEX PROPERTY VENTURES LTD","300000020464573"
"Portsmouth City Council","PCC","Adult Social Care","Physical Support Older People (85+)","Adult Services","Third Party Payments","Other establishments","4-May-21","6504224","105.64","SUPPLIER","APEX PROPERTY VENTURES LTD","300000020464573"
"Portsmouth City Council","PCC","Adult Social Care","Physical Support Older People (85+)","Adult Services","Third Party Payments","Other establishments","4-May-21","6504224","105.64","SUPPLIER","APEX PROPERTY VENTURES LTD","300000020464573"
"Portsmouth City Council","PCC","Adult Social Care","Learning Disability Support Adults (18 - 64)","Adult Services","Third Party Payments","Other establishments","4-May-21","6504224","105.64","SUPPLIER","APEX PROPERTY VENTURES LTD","300000020464573"
"Portsmouth City Council","PCC","Adult Social Care","Social Care Activities","Adult Services","Third Party Payments","Other establishments","4-May-21","6504224","117.45","SUPPLIER","APEX PROPERTY VENTURES LTD","300000020464573"
"Portsmouth City Council","PCC","Adult Social Care","Physical Support Older People (85+)","Adult Services","Third Party Payments","Other establishments","4-May-21","6504224","117.45","SUPPLIER","APEX PROPERTY VENTURES LTD","300000020464573"
"Portsmouth City Council","PCC","Adult Social Care","Social Support - Support for Carer","Adult Services","Third Party Payments","Other establishments","4-May-21","6504224","117.87","SUPPLIER","APEX PROPERTY VENTURES LTD","300000020464573"
"Portsmouth City Council","PCC","Adult Social Care","Physical Support Older People (85+)","Adult Services","Third Party Payments","Other establishments","4-May-21","6504224","124.32","SUPPLIER","APEX PROPERTY VENTURES LTD","300000020464573"
"Portsmouth City Council","PCC","Adult Social Care","Social Support - Support for Carer","Adult Services","Third Party Payments","Other establishments","4-May-21","6504224","126.61","SUPPLIER","APEX PROPERTY VENTURES LTD","300000020464573"
"Portsmouth City Council","PCC","Adult Social Care","Physical Support Older People (85+)","Adult Services","Third Party Payments","Other establishments","4-May-21","6504224","126.77","SUPPLIER","APEX PROPERTY VENTURES LTD","300000020464573"
"Portsmouth City Council","PCC","Adult Social Care","Physical Support Older People (85+)","Adult Services","Third Party Payments","Other establishments","4-May-21","6504224","128.76","SUPPLIER","APEX PROPERTY VENTURES LTD","300000020464573"
"Portsmouth City Council","PCC","Adult Social Care","Social Support - Support for Carer","Adult Services","Third Party Payments","Other establishments","4-May-21","6504224","128.79","SUPPLIER","APEX PROPERTY VENTURES LTD","300000020464573"
"Portsmouth City Council","PCC","Adult Social Care","Physical Support Older People (85+)","Adult Services","Third Party Payments","Other establishments","4-May-21","6504224","130.5","SUPPLIER","APEX PROPERTY VENTURES LTD","300000020464573"
"Portsmouth City Council","PCC","Adult Social Care","Physical Support Older People (85+)","Adult Services","Third Party Payments","Other establishments","4-May-21","6504224","134.47","SUPPLIER","APEX PROPERTY VENTURES LTD","300000020464573"
"Portsmouth City Council","PCC","Adult Social Care","Physical Support Older People (85+)","Adult Services","Third Party Payments","Other establishments","4-May-21","6504224","136.71","SUPPLIER","APEX PROPERTY VENTURES LTD","300000020464573"
"Portsmouth City Council","PCC","Adult Social Care","Social Care Activities","Adult Services","Third Party Payments","Other establishments","4-May-21","6504224","139.2","SUPPLIER","APEX PROPERTY VENTURES LTD","300000020464573"
"Portsmouth City Council","PCC","Adult Social Care","Social Care Activities","Adult Services","Third Party Payments","Other establishments","4-May-21","6504224","143.55","SUPPLIER","APEX PROPERTY VENTURES LTD","300000020464573"
"Portsmouth City Council","PCC","Adult Social Care","Social Support - Support for Carer","Adult Services","Third Party Payments","Other establishments","4-May-21","6504224","144.07","SUPPLIER","APEX PROPERTY VENTURES LTD","300000020464573"
"Portsmouth City Council","PCC","Adult Social Care","Social Support - Support for Carer","Adult Services","Third Party Payments","Other establishments","4-May-21","6504224","144.07","SUPPLIER","APEX PROPERTY VENTURES LTD","300000020464573"
"Portsmouth City Council","PCC","Adult Social Care","Social Care Activities","Adult Services","Third Party Payments","Other establishments","4-May-21","6504224","145.33","SUPPLIER","APEX PROPERTY VENTURES LTD","300000020464573"
"Portsmouth City Council","PCC","Adult Social Care","Social Support - Support for Carer","Adult Services","Third Party Payments","Other establishments","4-May-21","6504224","145.33","SUPPLIER","APEX PROPERTY VENTURES LTD","300000020464573"
"Portsmouth City Council","PCC","Adult Social Care","Social Care Activities","Adult Services","Third Party Payments","Other establishments","4-May-21","6504224","146.52","SUPPLIER","APEX PROPERTY VENTURES LTD","300000020464573"
"Portsmouth City Council","PCC","Adult Social Care","Physical Support Adults (18 - 64)","Adult Services","Third Party Payments","Other establishments","4-May-21","6504224","146.52","SUPPLIER","APEX PROPERTY VENTURES LTD","300000020464573"
"Portsmouth City Council","PCC","Adult Social Care","Physical Support Adults (18 - 64)","Adult Services","Third Party Payments","Other establishments","4-May-21","6504224","146.52","SUPPLIER","APEX PROPERTY VENTURES LTD","300000020464573"
"Portsmouth City Council","PCC","Adult Social Care","Physical Support Older People (85+)","Adult Services","Third Party Payments","Other establishments","4-May-21","6504224","146.52","SUPPLIER","APEX PROPERTY VENTURES LTD","300000020464573"
"Portsmouth City Council","PCC","Adult Social Care","Physical Support Older People (85+)","Adult Services","Third Party Payments","Other establishments","4-May-21","6504224","146.52","SUPPLIER","APEX PROPERTY VENTURES LTD","300000020464573"
"Portsmouth City Council","PCC","Adult Social Care","Physical Support Older People (85+)","Adult Services","Third Party Payments","Other establishments","4-May-21","6504224","146.52","SUPPLIER","APEX PROPERTY VENTURES LTD","300000020464573"
"Portsmouth City Council","PCC","Adult Social Care","Physical Support Older People (85+)","Adult Services","Third Party Payments","Other establishments","4-May-21","6504224","146.52","SUPPLIER","APEX PROPERTY VENTURES LTD","300000020464573"
"Portsmouth City Council","PCC","Adult Social Care","Physical Support Older People (85+)","Adult Services","Third Party Payments","Other establishments","4-May-21","6504224","146.52","SUPPLIER","APEX PROPERTY VENTURES LTD","300000020464573"
"Portsmouth City Council","PCC","Adult Social Care","Physical Support Older People (85+)","Adult Services","Third Party Payments","Other establishments","4-May-21","6504224","146.52","SUPPLIER","APEX PROPERTY VENTURES LTD","300000020464573"
"Portsmouth City Council","PCC","Adult Social Care","Physical Support Older People (85+)","Adult Services","Third Party Payments","Other establishments","4-May-21","6504224","146.52","SUPPLIER","APEX PROPERTY VENTURES LTD","300000020464573"
"Portsmouth City Council","PCC","Adult Social Care","Physical Support Adults (18 - 64)","Adult Services","Third Party Payments","Other establishments","4-May-21","6504224","147.9","SUPPLIER","APEX PROPERTY VENTURES LTD","300000020464573"
"Portsmouth City Council","PCC","Adult Social Care","Physical Support Adults (18 - 64)","Adult Services","Third Party Payments","Other establishments","4-May-21","6504224","147.9","SUPPLIER","APEX PROPERTY VENTURES LTD","300000020464573"
"Portsmouth City Council","PCC","Adult Social Care","Physical Support Adults (18 - 64)","Adult Services","Third Party Payments","Other establishments","4-May-21","6504224","147.9","SUPPLIER","APEX PROPERTY VENTURES LTD","300000020464573"
"Portsmouth City Council","PCC","Adult Social Care","Physical Support Older People (85+)","Adult Services","Third Party Payments","Other establishments","4-May-21","6504224","147.9","SUPPLIER","APEX PROPERTY VENTURES LTD","300000020464573"
"Portsmouth City Council","PCC","Adult Social Care","Physical Support Older People (85+)","Adult Services","Third Party Payments","Other establishments","4-May-21","6504224","147.9","SUPPLIER","APEX PROPERTY VENTURES LTD","300000020464573"
"Portsmouth City Council","PCC","Adult Social Care","Physical Support Older People (85+)","Adult Services","Third Party Payments","Other establishments","4-May-21","6504224","147.9","SUPPLIER","APEX PROPERTY VENTURES LTD","300000020464573"
"Portsmouth City Council","PCC","Adult Social Care","Physical Support Older People (85+)","Adult Services","Third Party Payments","Other establishments","4-May-21","6504224","147.9","SUPPLIER","APEX PROPERTY VENTURES LTD","300000020464573"
"Portsmouth City Council","PCC","Adult Social Care","Physical Support Older People (85+)","Adult Services","Third Party Payments","Other establishments","4-May-21","6504224","147.9","SUPPLIER","APEX PROPERTY VENTURES LTD","300000020464573"
"Portsmouth City Council","PCC","Adult Social Care","Physical Support Older People (85+)","Adult Services","Third Party Payments","Other establishments","4-May-21","6504224","147.9","SUPPLIER","APEX PROPERTY VENTURES LTD","300000020464573"
"Portsmouth City Council","PCC","Adult Social Care","Physical Support Older People (85+)","Adult Services","Third Party Payments","Other establishments","4-May-21","6504224","147.9","SUPPLIER","APEX PROPERTY VENTURES LTD","300000020464573"
"Portsmouth City Council","PCC","Adult Social Care","Physical Support Older People (85+)","Adult Services","Third Party Payments","Other establishments","4-May-21","6504224","147.9","SUPPLIER","APEX PROPERTY VENTURES LTD","300000020464573"
"Portsmouth City Council","PCC","Adult Social Care","Learning Disability Support Adults (18 - 64)","Adult Services","Third Party Payments","Other establishments","4-May-21","6504224","147.9","SUPPLIER","APEX PROPERTY VENTURES LTD","300000020464573"
"Portsmouth City Council","PCC","Adult Social Care","Physical Support Older People (85+)","Adult Services","Third Party Payments","Other establishments","4-May-21","6504224","150.96","SUPPLIER","APEX PROPERTY VENTURES LTD","300000020464573"
"Portsmouth City Council","PCC","Adult Social Care","Physical Support Older People (85+)","Adult Services","Third Party Payments","Other establishments","4-May-21","6504224","155.4","SUPPLIER","APEX PROPERTY VENTURES LTD","300000020464573"
"Portsmouth City Council","PCC","Adult Social Care","Physical Support Older People (85+)","Adult Services","Third Party Payments","Other establishments","4-May-21","6504224","156.6","SUPPLIER","APEX PROPERTY VENTURES LTD","300000020464573"
"Portsmouth City Council","PCC","Adult Social Care","Physical Support Older People (85+)","Adult Services","Third Party Payments","Other establishments","4-May-21","6504224","160.47","SUPPLIER","APEX PROPERTY VENTURES LTD","300000020464573"
"Portsmouth City Council","PCC","Adult Social Care","Physical Support Older People (85+)","Adult Services","Third Party Payments","Other establishments","4-May-21","6504224","182.7","SUPPLIER","APEX PROPERTY VENTURES LTD","300000020464573"
"Portsmouth City Council","PCC","Adult Social Care","Physical Support Older People (85+)","Adult Services","Third Party Payments","Other establishments","4-May-21","6504224","182.7","SUPPLIER","APEX PROPERTY VENTURES LTD","300000020464573"
"Portsmouth City Council","PCC","Adult Social Care","Social Support - Support for Carer","Adult Services","Third Party Payments","Other establishments","4-May-21","6504224","182.73","SUPPLIER","APEX PROPERTY VENTURES LTD","300000020464573"
"Portsmouth City Council","PCC","Adult Social Care","Learning Disability Support Adults (18 - 64)","Adult Services","Third Party Payments","Other establishments","4-May-21","6504224","184.56","SUPPLIER","APEX PROPERTY VENTURES LTD","300000020464573"
"Portsmouth City Council","PCC","Adult Social Care","Physical Support Adults (18 - 64)","Adult Services","Third Party Payments","Other establishments","4-May-21","6504224","195.36","SUPPLIER","APEX PROPERTY VENTURES LTD","300000020464573"
"Portsmouth City Council","PCC","Adult Social Care","Physical Support Adults (18 - 64)","Adult Services","Third Party Payments","Other establishments","4-May-21","6504224","195.36","SUPPLIER","APEX PROPERTY VENTURES LTD","300000020464573"
"Portsmouth City Council","PCC","Adult Social Care","Physical Support Adults (18 - 64)","Adult Services","Third Party Payments","Other establishments","4-May-21","6504224","195.36","SUPPLIER","APEX PROPERTY VENTURES LTD","300000020464573"
"Portsmouth City Council","PCC","Adult Social Care","Physical Support Adults (18 - 64)","Adult Services","Third Party Payments","Other establishments","4-May-21","6504224","195.36","SUPPLIER","APEX PROPERTY VENTURES LTD","300000020464573"
"Portsmouth City Council","PCC","Adult Social Care","Physical Support Adults (18 - 64)","Adult Services","Third Party Payments","Other establishments","4-May-21","6504224","195.36","SUPPLIER","APEX PROPERTY VENTURES LTD","300000020464573"
"Portsmouth City Council","PCC","Adult Social Care","Physical Support Adults (18 - 64)","Adult Services","Third Party Payments","Other establishments","4-May-21","6504224","195.36","SUPPLIER","APEX PROPERTY VENTURES LTD","300000020464573"
"Portsmouth City Council","PCC","Adult Social Care","Physical Support Older People (85+)","Adult Services","Third Party Payments","Other establishments","4-May-21","6504224","195.36","SUPPLIER","APEX PROPERTY VENTURES LTD","300000020464573"
"Portsmouth City Council","PCC","Adult Social Care","Physical Support Older People (85+)","Adult Services","Third Party Payments","Other establishments","4-May-21","6504224","195.36","SUPPLIER","APEX PROPERTY VENTURES LTD","300000020464573"
"Portsmouth City Council","PCC","Adult Social Care","Physical Support Older People (85+)","Adult Services","Third Party Payments","Other establishments","4-May-21","6504224","195.36","SUPPLIER","APEX PROPERTY VENTURES LTD","300000020464573"
"Portsmouth City Council","PCC","Adult Social Care","Physical Support Older People (85+)","Adult Services","Third Party Payments","Other establishments","4-May-21","6504224","195.36","SUPPLIER","APEX PROPERTY VENTURES LTD","300000020464573"
"Portsmouth City Council","PCC","Adult Social Care","Physical Support Older People (85+)","Adult Services","Third Party Payments","Other establishments","4-May-21","6504224","195.36","SUPPLIER","APEX PROPERTY VENTURES LTD","300000020464573"
"Portsmouth City Council","PCC","Adult Social Care","Physical Support Older People (85+)","Adult Services","Third Party Payments","Other establishments","4-May-21","6504224","195.36","SUPPLIER","APEX PROPERTY VENTURES LTD","300000020464573"
"Portsmouth City Council","PCC","Adult Social Care","Physical Support Older People (85+)","Adult Services","Third Party Payments","Other establishments","4-May-21","6504224","195.36","SUPPLIER","APEX PROPERTY VENTURES LTD","300000020464573"
"Portsmouth City Council","PCC","Adult Social Care","Physical Support Older People (85+)","Adult Services","Third Party Payments","Other establishments","4-May-21","6504224","195.36","SUPPLIER","APEX PROPERTY VENTURES LTD","300000020464573"
"Portsmouth City Council","PCC","Adult Social Care","Physical Support Older People (85+)","Adult Services","Third Party Payments","Other establishments","4-May-21","6504224","195.36","SUPPLIER","APEX PROPERTY VENTURES LTD","300000020464573"
"Portsmouth City Council","PCC","Adult Social Care","Social Support - Support for Carer","Adult Services","Third Party Payments","Other establishments","4-May-21","6504224","198.75","SUPPLIER","APEX PROPERTY VENTURES LTD","300000020464573"
"Portsmouth City Council","PCC","Adult Social Care","Physical Support Older People (85+)","Adult Services","Third Party Payments","Other establishments","4-May-21","6504224","205.07","SUPPLIER","APEX PROPERTY VENTURES LTD","300000020464573"
"Portsmouth City Council","PCC","Adult Social Care","Physical Support Adults (18 - 64)","Adult Services","Third Party Payments","Other establishments","4-May-21","6504224","205.51","SUPPLIER","APEX PROPERTY VENTURES LTD","300000020464573"
"Portsmouth City Council","PCC","Adult Social Care","Physical Support Older People (85+)","Adult Services","Third Party Payments","Other establishments","4-May-21","6504224","417.6","SUPPLIER","APEX PROPERTY VENTURES LTD","300000020464573"
"Portsmouth City Council","PCC","Adult Social Care","Physical Support Older People (85+)","Adult Services","Third Party Payments","Other establishments","4-May-21","6504224","209.31","SUPPLIER","APEX PROPERTY VENTURES LTD","300000020464573"
"Portsmouth City Council","PCC","Adult Social Care","Physical Support Older People (85+)","Adult Services","Third Party Payments","Other establishments","4-May-21","6504224","213.15","SUPPLIER","APEX PROPERTY VENTURES LTD","300000020464573"
"Portsmouth City Council","PCC","Adult Social Care","Social Support - Support for Carer","Adult Services","Third Party Payments","Other establishments","4-May-21","6504224","217.99","SUPPLIER","APEX PROPERTY VENTURES LTD","300000020464573"
"Portsmouth City Council","PCC","Adult Social Care","Social Support - Support for Carer","Adult Services","Third Party Payments","Other establishments","4-May-21","6504224","217.99","SUPPLIER","APEX PROPERTY VENTURES LTD","300000020464573"
"Portsmouth City Council","PCC","Adult Social Care","Social Support - Support for Carer","Adult Services","Third Party Payments","Other establishments","4-May-21","6504224","217.99","SUPPLIER","APEX PROPERTY VENTURES LTD","300000020464573"
"Portsmouth City Council","PCC","Adult Social Care","Physical Support Older People (85+)","Adult Services","Third Party Payments","Other establishments","4-May-21","6504224","221.85","SUPPLIER","APEX PROPERTY VENTURES LTD","300000020464573"
"Portsmouth City Council","PCC","Adult Social Care","Physical Support Older People (85+)","Adult Services","Third Party Payments","Other establishments","4-May-21","6504224","221.85","SUPPLIER","APEX PROPERTY VENTURES LTD","300000020464573"
"Portsmouth City Council","PCC","Adult Social Care","Physical Support Older People (85+)","Adult Services","Third Party Payments","Other establishments","4-May-21","6504224","221.85","SUPPLIER","APEX PROPERTY VENTURES LTD","300000020464573"
"Portsmouth City Council","PCC","Adult Social Care","Physical Support Older People (85+)","Adult Services","Third Party Payments","Other establishments","4-May-21","6504224","221.85","SUPPLIER","APEX PROPERTY VENTURES LTD","300000020464573"
"Portsmouth City Council","PCC","Adult Social Care","Physical Support Older People (85+)","Adult Services","Third Party Payments","Other establishments","4-May-21","6504224","221.85","SUPPLIER","APEX PROPERTY VENTURES LTD","300000020464573"
"Portsmouth City Council","PCC","Adult Social Care","Mental Health Support Older People (65 - 74)","Adult Services","Third Party Payments","Other establishments","4-May-21","6504224","223.27","SUPPLIER","APEX PROPERTY VENTURES LTD","300000020464573"
"Portsmouth City Council","PCC","Adult Social Care","Physical Support Adults (18 - 64)","Adult Services","Third Party Payments","Other establishments","4-May-21","6504224","226.2","SUPPLIER","APEX PROPERTY VENTURES LTD","300000020464573"
"Portsmouth City Council","PCC","Adult Social Care","Physical Support Older People (85+)","Adult Services","Third Party Payments","Other establishments","4-May-21","6504224","230.25","SUPPLIER","APEX PROPERTY VENTURES LTD","300000020464573"
"Portsmouth City Council","PCC","Adult Social Care","Physical Support Older People (85+)","Adult Services","Third Party Payments","Other establishments","4-May-21","6504224","242.98","SUPPLIER","APEX PROPERTY VENTURES LTD","300000020464573"
"Portsmouth City Council","PCC","Adult Social Care","Physical Support Older People (85+)","Adult Services","Third Party Payments","Other establishments","4-May-21","6504224","244.2","SUPPLIER","APEX PROPERTY VENTURES LTD","300000020464573"
"Portsmouth City Council","PCC","Adult Social Care","Physical Support Older People (85+)","Adult Services","Third Party Payments","Other establishments","4-May-21","6504224","244.2","SUPPLIER","APEX PROPERTY VENTURES LTD","300000020464573"
"Portsmouth City Council","PCC","Adult Social Care","Physical Support Older People (85+)","Adult Services","Third Party Payments","Other establishments","4-May-21","6504224","244.2","SUPPLIER","APEX PROPERTY VENTURES LTD","300000020464573"
"Portsmouth City Council","PCC","Adult Social Care","Learning Disability Support Adults (18 - 64)","Adult Services","Third Party Payments","Other establishments","4-May-21","6504224","244.2","SUPPLIER","APEX PROPERTY VENTURES LTD","300000020464573"
"Portsmouth City Council","PCC","Adult Social Care","Physical Support Older People (85+)","Adult Services","Third Party Payments","Other establishments","4-May-21","6504224","251.18","SUPPLIER","APEX PROPERTY VENTURES LTD","300000020464573"
"Portsmouth City Council","PCC","Adult Social Care","Physical Support Older People (85+)","Adult Services","Third Party Payments","Other establishments","4-May-21","6504224","257.52","SUPPLIER","APEX PROPERTY VENTURES LTD","300000020464573"
"Portsmouth City Council","PCC","Adult Social Care","Physical Support Older People (85+)","Adult Services","Third Party Payments","Other establishments","4-May-21","6504224","257.52","SUPPLIER","APEX PROPERTY VENTURES LTD","300000020464573"
"Portsmouth City Council","PCC","Adult Social Care","Physical Support Older People (85+)","Adult Services","Third Party Payments","Other establishments","4-May-21","6504224","274.05","SUPPLIER","APEX PROPERTY VENTURES LTD","300000020464573"
"Portsmouth City Council","PCC","Adult Social Care","Mental Health Support Older People (65 - 74)","Adult Services","Third Party Payments","Other establishments","4-May-21","6504224","275.28","SUPPLIER","APEX PROPERTY VENTURES LTD","300000020464573"
"Portsmouth City Council","PCC","Adult Social Care","Social Care Activities","Adult Services","Third Party Payments","Other establishments","4-May-21","6504224","279.72","SUPPLIER","APEX PROPERTY VENTURES LTD","300000020464573"
"Portsmouth City Council","PCC","Adult Social Care","Physical Support Older People (85+)","Adult Services","Third Party Payments","Other establishments","4-May-21","6504224","284.16","SUPPLIER","APEX PROPERTY VENTURES LTD","300000020464573"
"Portsmouth City Council","PCC","Adult Social Care","Physical Support Older People (85+)","Adult Services","Third Party Payments","Other establishments","4-May-21","6504224","287.1","SUPPLIER","APEX PROPERTY VENTURES LTD","300000020464573"
"Portsmouth City Council","PCC","Adult Social Care","Physical Support Adults (18 - 64)","Adult Services","Third Party Payments","Other establishments","4-May-21","6504224","293.04","SUPPLIER","APEX PROPERTY VENTURES LTD","300000020464573"
"Portsmouth City Council","PCC","Adult Social Care","Physical Support Older People (85+)","Adult Services","Third Party Payments","Other establishments","4-May-21","6504224","293.04","SUPPLIER","APEX PROPERTY VENTURES LTD","300000020464573"
"Portsmouth City Council","PCC","Adult Social Care","Physical Support Older People (85+)","Adult Services","Third Party Payments","Other establishments","4-May-21","6504224","293.04","SUPPLIER","APEX PROPERTY VENTURES LTD","300000020464573"
"Portsmouth City Council","PCC","Adult Social Care","Physical Support Older People (85+)","Adult Services","Third Party Payments","Other establishments","4-May-21","6504224","293.04","SUPPLIER","APEX PROPERTY VENTURES LTD","300000020464573"
"Portsmouth City Council","PCC","Adult Social Care","Physical Support Older People (85+)","Adult Services","Third Party Payments","Other establishments","4-May-21","6504224","293.04","SUPPLIER","APEX PROPERTY VENTURES LTD","300000020464573"
"Portsmouth City Council","PCC","Adult Social Care","Physical Support Older People (85+)","Adult Services","Third Party Payments","Other establishments","4-May-21","6504224","293.04","SUPPLIER","APEX PROPERTY VENTURES LTD","300000020464573"
"Portsmouth City Council","PCC","Adult Social Care","Physical Support Older People (85+)","Adult Services","Third Party Payments","Other establishments","4-May-21","6504224","293.04","SUPPLIER","APEX PROPERTY VENTURES LTD","300000020464573"
"Portsmouth City Council","PCC","Adult Social Care","Physical Support Older People (85+)","Adult Services","Third Party Payments","Other establishments","4-May-21","6504224","293.04","SUPPLIER","APEX PROPERTY VENTURES LTD","300000020464573"
"Portsmouth City Council","PCC","Adult Social Care","Physical Support Older People (85+)","Adult Services","Third Party Payments","Other establishments","4-May-21","6504224","293.04","SUPPLIER","APEX PROPERTY VENTURES LTD","300000020464573"
"Portsmouth City Council","PCC","Adult Social Care","Physical Support Older People (85+)","Adult Services","Third Party Payments","Other establishments","4-May-21","6504224","293.04","SUPPLIER","APEX PROPERTY VENTURES LTD","300000020464573"
"Portsmouth City Council","PCC","Adult Social Care","Physical Support Older People (85+)","Adult Services","Third Party Payments","Other establishments","4-May-21","6504224","293.04","SUPPLIER","APEX PROPERTY VENTURES LTD","300000020464573"
"Portsmouth City Council","PCC","Adult Social Care","Physical Support Older People (85+)","Adult Services","Third Party Payments","Other establishments","4-May-21","6504224","293.04","SUPPLIER","APEX PROPERTY VENTURES LTD","300000020464573"
"Portsmouth City Council","PCC","Adult Social Care","Physical Support Older People (85+)","Adult Services","Third Party Payments","Other establishments","4-May-21","6504224","293.04","SUPPLIER","APEX PROPERTY VENTURES LTD","300000020464573"
"Portsmouth City Council","PCC","Adult Social Care","Physical Support Older People (85+)","Adult Services","Third Party Payments","Other establishments","4-May-21","6504224","293.04","SUPPLIER","APEX PROPERTY VENTURES LTD","300000020464573"
"Portsmouth City Council","PCC","Adult Social Care","Physical Support Adults (18 - 64)","Adult Services","Third Party Payments","Other establishments","4-May-21","6504224","295.8","SUPPLIER","APEX PROPERTY VENTURES LTD","300000020464573"
"Portsmouth City Council","PCC","Adult Social Care","Physical Support Adults (18 - 64)","Adult Services","Third Party Payments","Other establishments","4-May-21","6504224","295.8","SUPPLIER","APEX PROPERTY VENTURES LTD","300000020464573"
"Portsmouth City Council","PCC","Adult Social Care","Physical Support Adults (18 - 64)","Adult Services","Third Party Payments","Other establishments","4-May-21","6504224","295.8","SUPPLIER","APEX PROPERTY VENTURES LTD","300000020464573"
"Portsmouth City Council","PCC","Adult Social Care","Physical Support Adults (18 - 64)","Adult Services","Third Party Payments","Other establishments","4-May-21","6504224","295.8","SUPPLIER","APEX PROPERTY VENTURES LTD","300000020464573"
"Portsmouth City Council","PCC","Adult Social Care","Physical Support Adults (18 - 64)","Adult Services","Third Party Payments","Other establishments","4-May-21","6504224","295.8","SUPPLIER","APEX PROPERTY VENTURES LTD","300000020464573"
"Portsmouth City Council","PCC","Adult Social Care","Physical Support Adults (18 - 64)","Adult Services","Third Party Payments","Other establishments","4-May-21","6504224","295.8","SUPPLIER","APEX PROPERTY VENTURES LTD","300000020464573"
"Portsmouth City Council","PCC","Adult Social Care","Physical Support Older People (85+)","Adult Services","Third Party Payments","Other establishments","4-May-21","6504224","295.8","SUPPLIER","APEX PROPERTY VENTURES LTD","300000020464573"
"Portsmouth City Council","PCC","Adult Social Care","Physical Support Older People (85+)","Adult Services","Third Party Payments","Other establishments","4-May-21","6504224","295.8","SUPPLIER","APEX PROPERTY VENTURES LTD","300000020464573"
"Portsmouth City Council","PCC","Adult Social Care","Physical Support Older People (85+)","Adult Services","Third Party Payments","Other establishments","4-May-21","6504224","295.8","SUPPLIER","APEX PROPERTY VENTURES LTD","300000020464573"
"Portsmouth City Council","PCC","Adult Social Care","Physical Support Older People (85+)","Adult Services","Third Party Payments","Other establishments","4-May-21","6504224","295.8","SUPPLIER","APEX PROPERTY VENTURES LTD","300000020464573"
"Portsmouth City Council","PCC","Adult Social Care","Physical Support Older People (85+)","Adult Services","Third Party Payments","Other establishments","4-May-21","6504224","295.8","SUPPLIER","APEX PROPERTY VENTURES LTD","300000020464573"
"Portsmouth City Council","PCC","Adult Social Care","Physical Support Older People (85+)","Adult Services","Third Party Payments","Other establishments","4-May-21","6504224","295.8","SUPPLIER","APEX PROPERTY VENTURES LTD","300000020464573"
"Portsmouth City Council","PCC","Housing Revenue Account","Special Services","Housing, Neighbourhood and Building Services","Premises-Related Expenditure","Rates","28-May-21","6508958","394","OTHER LOCAL AUTHORITY","HAVANT BOROUGH COUNCIL","300000020457057"
"Portsmouth City Council","PCC","Adult Social Care","Physical Support Older People (85+)","Adult Services","Third Party Payments","Other establishments","4-May-21","6504224","295.8","SUPPLIER","APEX PROPERTY VENTURES LTD","300000020464573"
"Portsmouth City Council","PCC","Adult Social Care","Physical Support Older People (85+)","Adult Services","Third Party Payments","Other establishments","4-May-21","6504224","316.93","SUPPLIER","APEX PROPERTY VENTURES LTD","300000020464573"
"Portsmouth City Council","PCC","Adult Social Care","Physical Support Adults (18 - 64)","Adult Services","Third Party Payments","Other establishments","4-May-21","6504224","320.66","SUPPLIER","APEX PROPERTY VENTURES LTD","300000020464573"
"Portsmouth City Council","PCC","Adult Social Care","Physical Support Older People (85+)","Adult Services","Third Party Payments","Other establishments","4-May-21","6504224","322.22","SUPPLIER","APEX PROPERTY VENTURES LTD","300000020464573"
"Portsmouth City Council","PCC","Adult Social Care","Mental Health Support Older People (65 - 74)","Adult Services","Third Party Payments","Other establishments","4-May-21","6504224","338.06","SUPPLIER","APEX PROPERTY VENTURES LTD","300000020464573"
"Portsmouth City Council","PCC","Adult Social Care","Physical Support Adults (18 - 64)","Adult Services","Third Party Payments","Other establishments","4-May-21","6504224","341.88","SUPPLIER","APEX PROPERTY VENTURES LTD","300000020464573"
"Portsmouth City Council","PCC","Adult Social Care","Physical Support Older People (85+)","Adult Services","Third Party Payments","Other establishments","4-May-21","6504224","341.88","SUPPLIER","APEX PROPERTY VENTURES LTD","300000020464573"
"Portsmouth City Council","PCC","Adult Social Care","Physical Support Older People (85+)","Adult Services","Third Party Payments","Other establishments","4-May-21","6504224","341.88","SUPPLIER","APEX PROPERTY VENTURES LTD","300000020464573"
"Portsmouth City Council","PCC","Adult Social Care","Physical Support Older People (85+)","Adult Services","Third Party Payments","Other establishments","4-May-21","6504224","341.88","SUPPLIER","APEX PROPERTY VENTURES LTD","300000020464573"
"Portsmouth City Council","PCC","Adult Social Care","Physical Support Older People (85+)","Adult Services","Third Party Payments","Other establishments","4-May-21","6504224","341.88","SUPPLIER","APEX PROPERTY VENTURES LTD","300000020464573"
"Portsmouth City Council","PCC","Children's and Education Services","Other Education and Community Budget","Children's Services and Education","Third Party Payments","Other establishments","21-May-21","6507628","144.4","SUPPLIER","PREPAID FINANCIAL SERVICES","300000020477745"
"Portsmouth City Council","PCC","Children's and Education Services","Other Education and Community Budget","Children's Services and Education","Third Party Payments","Other establishments","21-May-21","6507628","65.77","SUPPLIER","PREPAID FINANCIAL SERVICES","300000020477745"
"Portsmouth City Council","PCC","Children's and Education Services","Other Education and Community Budget","Children's Services and Education","Third Party Payments","Other establishments","21-May-21","6507628","234.9","SUPPLIER","PREPAID FINANCIAL SERVICES","300000020477745"
"Portsmouth City Council","PCC","Children's and Education Services","Other Education and Community Budget","Children's Services and Education","Third Party Payments","Other establishments","21-May-21","6507628","228","SUPPLIER","PREPAID FINANCIAL SERVICES","300000020477745"
"Portsmouth City Council","PCC","Children's and Education Services","Other Education and Community Budget","Children's Services and Education","Third Party Payments","Other establishments","21-May-21","6507628","228","SUPPLIER","PREPAID FINANCIAL SERVICES","300000020477745"
"Portsmouth City Council","PCC","Children's and Education Services","Other Education and Community Budget","Children's Services and Education","Third Party Payments","Other establishments","21-May-21","6507628","103.63","SUPPLIER","PREPAID FINANCIAL SERVICES","300000020477745"
"Portsmouth City Council","PCC","Children's and Education Services","Other Education and Community Budget","Children's Services and Education","Third Party Payments","Other establishments","21-May-21","6507628","162.36","SUPPLIER","PREPAID FINANCIAL SERVICES","300000020477745"
"Portsmouth City Council","PCC","Children's and Education Services","Other Education and Community Budget","Children's Services and Education","Third Party Payments","Other establishments","21-May-21","6507628","20.72","SUPPLIER","PREPAID FINANCIAL SERVICES","300000020477745"
"Portsmouth City Council","PCC","Children's and Education Services","Other Education and Community Budget","Children's Services and Education","Third Party Payments","Other establishments","21-May-21","6507628","76","SUPPLIER","PREPAID FINANCIAL SERVICES","300000020477745"
"Portsmouth City Council","PCC","Children's and Education Services","Other Education and Community Budget","Children's Services and Education","Third Party Payments","Other establishments","21-May-21","6507628","201.91","SUPPLIER","PREPAID FINANCIAL SERVICES","300000020477745"
"Portsmouth City Council","PCC","Children's and Education Services","Other Education and Community Budget","Children's Services and Education","Third Party Payments","Other establishments","21-May-21","6507628","132.48","SUPPLIER","PREPAID FINANCIAL SERVICES","300000020477745"
"Portsmouth City Council","PCC","Children's and Education Services","Other Education and Community Budget","Children's Services and Education","Third Party Payments","Other establishments","21-May-21","6507628","107.1","SUPPLIER","PREPAID FINANCIAL SERVICES","300000020477745"
"Portsmouth City Council","PCC","Children's and Education Services","Other Education and Community Budget","Children's Services and Education","Third Party Payments","Other establishments","21-May-21","6507628","120.9","SUPPLIER","PREPAID FINANCIAL SERVICES","300000020477745"
"Portsmouth City Council","PCC","Children's and Education Services","Other Education and Community Budget","Children's Services and Education","Third Party Payments","Other establishments","21-May-21","6507628","283.27","SUPPLIER","PREPAID FINANCIAL SERVICES","300000020477745"
"Portsmouth City Council","PCC","Children's and Education Services","Other Education and Community Budget","Children's Services and Education","Third Party Payments","Other establishments","21-May-21","6507628","196.62","SUPPLIER","PREPAID FINANCIAL SERVICES","300000020477745"
"Portsmouth City Council","PCC","Children's and Education Services","Other Education and Community Budget","Children's Services and Education","Third Party Payments","Other establishments","21-May-21","6507628","132.87","SUPPLIER","PREPAID FINANCIAL SERVICES","300000020477745"
"Portsmouth City Council","PCC","Children's and Education Services","Other Education and Community Budget","Children's Services and Education","Third Party Payments","Other establishments","21-May-21","6507628","525.93","SUPPLIER","PREPAID FINANCIAL SERVICES","300000020477745"
"Portsmouth City Council","PCC","Children's and Education Services","Other Education and Community Budget","Children's Services and Education","Third Party Payments","Other establishments","21-May-21","6507628","207.27","SUPPLIER","PREPAID FINANCIAL SERVICES","300000020477745"
"Portsmouth City Council","PCC","Children's and Education Services","Other Education and Community Budget","Children's Services and Education","Third Party Payments","Other establishments","21-May-21","6507628","193.45","SUPPLIER","PREPAID FINANCIAL SERVICES","300000020477745"
"Portsmouth City Council","PCC","Children's and Education Services","Other Education and Community Budget","Children's Services and Education","Third Party Payments","Other establishments","21-May-21","6507628","103.63","SUPPLIER","PREPAID FINANCIAL SERVICES","300000020477745"
"Portsmouth City Council","PCC","Children's and Education Services","Other Education and Community Budget","Children's Services and Education","Third Party Payments","Other establishments","21-May-21","6507628","101.25","SUPPLIER","PREPAID FINANCIAL SERVICES","300000020477745"
"Portsmouth City Council","PCC","Children's and Education Services","Other Education and Community Budget","Children's Services and Education","Third Party Payments","Other establishments","21-May-21","6507628","250","SUPPLIER","PREPAID FINANCIAL SERVICES","300000020477745"
"Portsmouth City Council","PCC","Children's and Education Services","Other Education and Community Budget","Children's Services and Education","Third Party Payments","Other establishments","21-May-21","6507628","86.36","SUPPLIER","PREPAID FINANCIAL SERVICES","300000020477745"
"Portsmouth City Council","PCC","Children's and Education Services","Other Education and Community Budget","Children's Services and Education","Third Party Payments","Other establishments","21-May-21","6507628","100.19","SUPPLIER","PREPAID FINANCIAL SERVICES","300000020477745"
"Portsmouth City Council","PCC","Children's and Education Services","Other Education and Community Budget","Children's Services and Education","Third Party Payments","Other establishments","21-May-21","6507628","117.5","SUPPLIER","PREPAID FINANCIAL SERVICES","300000020477745"
"Portsmouth City Council","PCC","Children's and Education Services","Other Education and Community Budget","Children's Services and Education","Third Party Payments","Other establishments","21-May-21","6507628","224.54","SUPPLIER","PREPAID FINANCIAL SERVICES","300000020477745"
"Portsmouth City Council","PCC","Children's and Education Services","Other Education and Community Budget","Children's Services and Education","Third Party Payments","Other establishments","21-May-21","6507628","122.89","SUPPLIER","PREPAID FINANCIAL SERVICES","300000020477745"
"Portsmouth City Council","PCC","Children's and Education Services","Other Education and Community Budget","Children's Services and Education","Third Party Payments","Other establishments","21-May-21","6507628","84.72","SUPPLIER","PREPAID FINANCIAL SERVICES","300000020477745"
"Portsmouth City Council","PCC","Children's and Education Services","Other Education and Community Budget","Children's Services and Education","Third Party Payments","Other establishments","21-May-21","6507628","152","SUPPLIER","PREPAID FINANCIAL SERVICES","300000020477745"
"Portsmouth City Council","PCC","Children's and Education Services","Other Education and Community Budget","Children's Services and Education","Third Party Payments","Other establishments","21-May-21","6507628","51.82","SUPPLIER","PREPAID FINANCIAL SERVICES","300000020477745"
"Portsmouth City Council","PCC","Children's and Education Services","Other Education and Community Budget","Children's Services and Education","Third Party Payments","Other establishments","21-May-21","6507628","65.88","SUPPLIER","PREPAID FINANCIAL SERVICES","300000020477745"
"Portsmouth City Council","PCC","Children's and Education Services","Other Education and Community Budget","Children's Services and Education","Third Party Payments","Other establishments","21-May-21","6507628","92.04","SUPPLIER","PREPAID FINANCIAL SERVICES","300000020477745"
"Portsmouth City Council","PCC","Children's and Education Services","Other Education and Community Budget","Children's Services and Education","Third Party Payments","Other establishments","21-May-21","6507628","206.55","SUPPLIER","PREPAID FINANCIAL SERVICES","300000020477745"
"Portsmouth City Council","PCC","Children's and Education Services","Other Education and Community Budget","Children's Services and Education","Third Party Payments","Other establishments","21-May-21","6507628","200.36","SUPPLIER","PREPAID FINANCIAL SERVICES","300000020477745"
"Portsmouth City Council","PCC","Children's and Education Services","Other Education and Community Budget","Children's Services and Education","Third Party Payments","Other establishments","21-May-21","6507628","114","SUPPLIER","PREPAID FINANCIAL SERVICES","300000020477745"
"Portsmouth City Council","PCC","Children's and Education Services","Other Education and Community Budget","Children's Services and Education","Third Party Payments","Other establishments","21-May-21","6507628","150.7","SUPPLIER","PREPAID FINANCIAL SERVICES","300000020477745"
"Portsmouth City Council","PCC","Children's and Education Services","Other Education and Community Budget","Children's Services and Education","Third Party Payments","Other establishments","21-May-21","6507628","243.2","SUPPLIER","PREPAID FINANCIAL SERVICES","300000020477745"
"Portsmouth City Council","PCC","Highways and Transport Services","Environment, Safety and Routine Maintenance","Regeneration","Premises-Related Expenditure","Energy costs","14-May-21","6506597","190.38","PUBLIC LIMITED COMPANY","SCOTTISH AND SOUTHERN ENERGY PLC","300000020481543"
"Portsmouth City Council","PCC","Highways and Transport Services","Environment, Safety and Routine Maintenance","Regeneration","Premises-Related Expenditure","Energy costs","14-May-21","6506597","190.09","PUBLIC LIMITED COMPANY","SCOTTISH AND SOUTHERN ENERGY PLC","300000020481543"
"Portsmouth City Council","PCC","Highways and Transport Services","Environment, Safety and Routine Maintenance","Regeneration","Premises-Related Expenditure","Energy costs","14-May-21","6506597","83.08","PUBLIC LIMITED COMPANY","SCOTTISH AND SOUTHERN ENERGY PLC","300000020481543"
"Portsmouth City Council","PCC","Highways and Transport Services","Environment, Safety and Routine Maintenance","Regeneration","Premises-Related Expenditure","Energy costs","14-May-21","6506597","280.95","PUBLIC LIMITED COMPANY","SCOTTISH AND SOUTHERN ENERGY PLC","300000020481543"
"Portsmouth City Council","PCC","Highways and Transport Services","Environment, Safety and Routine Maintenance","Regeneration","Premises-Related Expenditure","Energy costs","14-May-21","6506597","67.07","PUBLIC LIMITED COMPANY","SCOTTISH AND SOUTHERN ENERGY PLC","300000020481543"
"Portsmouth City Council","PCC","Highways and Transport Services","Environment, Safety and Routine Maintenance","Regeneration","Premises-Related Expenditure","Energy costs","14-May-21","6506597","56.97","PUBLIC LIMITED COMPANY","SCOTTISH AND SOUTHERN ENERGY PLC","300000020481543"
"Portsmouth City Council","PCC","Highways and Transport Services","Environment, Safety and Routine Maintenance","Regeneration","Premises-Related Expenditure","Energy costs","14-May-21","6506597","145.38","PUBLIC LIMITED COMPANY","SCOTTISH AND SOUTHERN ENERGY PLC","300000020481543"
"Portsmouth City Council","PCC","Highways and Transport Services","Environment, Safety and Routine Maintenance","Regeneration","Premises-Related Expenditure","Energy costs","14-May-21","6506597","151.44","PUBLIC LIMITED COMPANY","SCOTTISH AND SOUTHERN ENERGY PLC","300000020481543"
"Portsmouth City Council","PCC","Highways and Transport Services","Environment, Safety and Routine Maintenance","Regeneration","Premises-Related Expenditure","Energy costs","14-May-21","6506597","154.75","PUBLIC LIMITED COMPANY","SCOTTISH AND SOUTHERN ENERGY PLC","300000020481543"
"Portsmouth City Council","PCC","Highways and Transport Services","Environment, Safety and Routine Maintenance","Regeneration","Premises-Related Expenditure","Energy costs","14-May-21","6506597","190.38","PUBLIC LIMITED COMPANY","SCOTTISH AND SOUTHERN ENERGY PLC","300000020481543"
"Portsmouth City Council","PCC","Highways and Transport Services","Environment, Safety and Routine Maintenance","Regeneration","Premises-Related Expenditure","Energy costs","14-May-21","6506597","113.22","PUBLIC LIMITED COMPANY","SCOTTISH AND SOUTHERN ENERGY PLC","300000020481543"
"Portsmouth City Council","PCC","Highways and Transport Services","Environment, Safety and Routine Maintenance","Regeneration","Premises-Related Expenditure","Energy costs","14-May-21","6506597","190.09","PUBLIC LIMITED COMPANY","SCOTTISH AND SOUTHERN ENERGY PLC","300000020481543"
"Portsmouth City Council","PCC","Highways and Transport Services","Environment, Safety and Routine Maintenance","Regeneration","Premises-Related Expenditure","Energy costs","14-May-21","6506597","43.99","PUBLIC LIMITED COMPANY","SCOTTISH AND SOUTHERN ENERGY PLC","300000020481543"
"Portsmouth City Council","PCC","Highways and Transport Services","Environment, Safety and Routine Maintenance","Regeneration","Premises-Related Expenditure","Energy costs","14-May-21","6506597","127.64","PUBLIC LIMITED COMPANY","SCOTTISH AND SOUTHERN ENERGY PLC","300000020481543"
"Portsmouth City Council","PCC","Highways and Transport Services","Environment, Safety and Routine Maintenance","Regeneration","Premises-Related Expenditure","Energy costs","14-May-21","6506597","190.38","PUBLIC LIMITED COMPANY","SCOTTISH AND SOUTHERN ENERGY PLC","300000020481543"
"Portsmouth City Council","PCC","Highways and Transport Services","Environment, Safety and Routine Maintenance","Regeneration","Premises-Related Expenditure","Energy costs","14-May-21","6506597","188.64","PUBLIC LIMITED COMPANY","SCOTTISH AND SOUTHERN ENERGY PLC","300000020481543"
"Portsmouth City Council","PCC","Highways and Transport Services","Environment, Safety and Routine Maintenance","Regeneration","Premises-Related Expenditure","Energy costs","14-May-21","6506597","190.23","PUBLIC LIMITED COMPANY","SCOTTISH AND SOUTHERN ENERGY PLC","300000020481543"
"Portsmouth City Council","PCC","Highways and Transport Services","Environment, Safety and Routine Maintenance","Regeneration","Premises-Related Expenditure","Energy costs","14-May-21","6506597","190.38","PUBLIC LIMITED COMPANY","SCOTTISH AND SOUTHERN ENERGY PLC","300000020481543"
"Portsmouth City Council","PCC","Highways and Transport Services","Environment, Safety and Routine Maintenance","Regeneration","Premises-Related Expenditure","Energy costs","14-May-21","6506597","190.38","PUBLIC LIMITED COMPANY","SCOTTISH AND SOUTHERN ENERGY PLC","300000020481543"
"Portsmouth City Council","PCC","Highways and Transport Services","Environment, Safety and Routine Maintenance","Regeneration","Premises-Related Expenditure","Energy costs","14-May-21","6506597","209.41","PUBLIC LIMITED COMPANY","SCOTTISH AND SOUTHERN ENERGY PLC","300000020481543"
"Portsmouth City Council","PCC","Highways and Transport Services","Environment, Safety and Routine Maintenance","Regeneration","Premises-Related Expenditure","Energy costs","14-May-21","6506597","190.38","PUBLIC LIMITED COMPANY","SCOTTISH AND SOUTHERN ENERGY PLC","300000020481543"
"Portsmouth City Council","PCC","Highways and Transport Services","Environment, Safety and Routine Maintenance","Regeneration","Premises-Related Expenditure","Energy costs","14-May-21","6506597","68.8","PUBLIC LIMITED COMPANY","SCOTTISH AND SOUTHERN ENERGY PLC","300000020481543"
"Portsmouth City Council","PCC","Highways and Transport Services","Environment, Safety and Routine Maintenance","Regeneration","Premises-Related Expenditure","Energy costs","14-May-21","6506597","190.23","PUBLIC LIMITED COMPANY","SCOTTISH AND SOUTHERN ENERGY PLC","300000020481543"
"Portsmouth City Council","PCC","Highways and Transport Services","Environment, Safety and Routine Maintenance","Regeneration","Premises-Related Expenditure","Energy costs","14-May-21","6506597","190.09","PUBLIC LIMITED COMPANY","SCOTTISH AND SOUTHERN ENERGY PLC","300000020481543"
"Portsmouth City Council","PCC","Highways and Transport Services","Environment, Safety and Routine Maintenance","Regeneration","Premises-Related Expenditure","Energy costs","14-May-21","6506597","153.17","PUBLIC LIMITED COMPANY","SCOTTISH AND SOUTHERN ENERGY PLC","300000020481543"
"Portsmouth City Council","PCC","Highways and Transport Services","Environment, Safety and Routine Maintenance","Regeneration","Premises-Related Expenditure","Energy costs","14-May-21","6506597","190.38","PUBLIC LIMITED COMPANY","SCOTTISH AND SOUTHERN ENERGY PLC","300000020481543"
"Portsmouth City Council","PCC","Highways and Transport Services","Environment, Safety and Routine Maintenance","Regeneration","Premises-Related Expenditure","Energy costs","14-May-21","6506597","97.21","PUBLIC LIMITED COMPANY","SCOTTISH AND SOUTHERN ENERGY PLC","300000020481543"
"Portsmouth City Council","PCC","Highways and Transport Services","Environment, Safety and Routine Maintenance","Regeneration","Premises-Related Expenditure","Energy costs","14-May-21","6506597","161.53","PUBLIC LIMITED COMPANY","SCOTTISH AND SOUTHERN ENERGY PLC","300000020481543"
"Portsmouth City Council","PCC","Highways and Transport Services","Environment, Safety and Routine Maintenance","Regeneration","Premises-Related Expenditure","Energy costs","14-May-21","6506597","190.09","PUBLIC LIMITED COMPANY","SCOTTISH AND SOUTHERN ENERGY PLC","300000020481543"
"Portsmouth City Council","PCC","Highways and Transport Services","Environment, Safety and Routine Maintenance","Regeneration","Premises-Related Expenditure","Energy costs","14-May-21","6506597","63.75","PUBLIC LIMITED COMPANY","SCOTTISH AND SOUTHERN ENERGY PLC","300000020481543"
"Portsmouth City Council","PCC","Highways and Transport Services","Environment, Safety and Routine Maintenance","Regeneration","Premises-Related Expenditure","Energy costs","14-May-21","6506597","191.38","PUBLIC LIMITED COMPANY","SCOTTISH AND SOUTHERN ENERGY PLC","300000020481543"
"Portsmouth City Council","PCC","Highways and Transport Services","Environment, Safety and Routine Maintenance","Regeneration","Premises-Related Expenditure","Energy costs","14-May-21","6506597","190.09","PUBLIC LIMITED COMPANY","SCOTTISH AND SOUTHERN ENERGY PLC","300000020481543"
"Portsmouth City Council","PCC","Highways and Transport Services","Environment, Safety and Routine Maintenance","Regeneration","Premises-Related Expenditure","Energy costs","14-May-21","6506597","60.14","PUBLIC LIMITED COMPANY","SCOTTISH AND SOUTHERN ENERGY PLC","300000020481543"
"Portsmouth City Council","PCC","Highways and Transport Services","Environment, Safety and Routine Maintenance","Regeneration","Premises-Related Expenditure","Energy costs","14-May-21","6506597","190.52","PUBLIC LIMITED COMPANY","SCOTTISH AND SOUTHERN ENERGY PLC","300000020481543"
"Portsmouth City Council","PCC","Highways and Transport Services","Environment, Safety and Routine Maintenance","Regeneration","Premises-Related Expenditure","Energy costs","14-May-21","6506597","146.97","PUBLIC LIMITED COMPANY","SCOTTISH AND SOUTHERN ENERGY PLC","300000020481543"
"Portsmouth City Council","PCC","Highways and Transport Services","Environment, Safety and Routine Maintenance","Regeneration","Premises-Related Expenditure","Energy costs","14-May-21","6506597","190.09","PUBLIC LIMITED COMPANY","SCOTTISH AND SOUTHERN ENERGY PLC","300000020481543"
"Portsmouth City Council","PCC","Highways and Transport Services","Environment, Safety and Routine Maintenance","Regeneration","Premises-Related Expenditure","Energy costs","14-May-21","6506597","280.51","PUBLIC LIMITED COMPANY","SCOTTISH AND SOUTHERN ENERGY PLC","300000020481543"
"Portsmouth City Council","PCC","Highways and Transport Services","Environment, Safety and Routine Maintenance","Regeneration","Premises-Related Expenditure","Energy costs","14-May-21","6506597","190.09","PUBLIC LIMITED COMPANY","SCOTTISH AND SOUTHERN ENERGY PLC","300000020481543"
"Portsmouth City Council","PCC","Highways and Transport Services","Environment, Safety and Routine Maintenance","Regeneration","Premises-Related Expenditure","Energy costs","14-May-21","6506597","91.73","PUBLIC LIMITED COMPANY","SCOTTISH AND SOUTHERN ENERGY PLC","300000020481543"
"Portsmouth City Council","PCC","Highways and Transport Services","Environment, Safety and Routine Maintenance","Regeneration","Premises-Related Expenditure","Energy costs","14-May-21","6506597","228.31","PUBLIC LIMITED COMPANY","SCOTTISH AND SOUTHERN ENERGY PLC","300000020481543"
"Portsmouth City Council","PCC","Highways and Transport Services","Environment, Safety and Routine Maintenance","Regeneration","Premises-Related Expenditure","Energy costs","14-May-21","6506597","190.09","PUBLIC LIMITED COMPANY","SCOTTISH AND SOUTHERN ENERGY PLC","300000020481543"
"Portsmouth City Council","PCC","Highways and Transport Services","Environment, Safety and Routine Maintenance","Regeneration","Premises-Related Expenditure","Energy costs","14-May-21","6506597","185.9","PUBLIC LIMITED COMPANY","SCOTTISH AND SOUTHERN ENERGY PLC","300000020481543"
"Portsmouth City Council","PCC","Highways and Transport Services","Environment, Safety and Routine Maintenance","Regeneration","Premises-Related Expenditure","Energy costs","14-May-21","6506597","190.09","PUBLIC LIMITED COMPANY","SCOTTISH AND SOUTHERN ENERGY PLC","300000020481543"
"Portsmouth City Council","PCC","Highways and Transport Services","Environment, Safety and Routine Maintenance","Regeneration","Premises-Related Expenditure","Energy costs","14-May-21","6506597","127.64","PUBLIC LIMITED COMPANY","SCOTTISH AND SOUTHERN ENERGY PLC","300000020481543"
"Portsmouth City Council","PCC","Highways and Transport Services","Environment, Safety and Routine Maintenance","Regeneration","Premises-Related Expenditure","Energy costs","14-May-21","6506597","76.15","PUBLIC LIMITED COMPANY","SCOTTISH AND SOUTHERN ENERGY PLC","300000020481543"
"Portsmouth City Council","PCC","Highways and Transport Services","Environment, Safety and Routine Maintenance","Regeneration","Premises-Related Expenditure","Energy costs","14-May-21","6506597","85.82","PUBLIC LIMITED COMPANY","SCOTTISH AND SOUTHERN ENERGY PLC","300000020481543"
"Portsmouth City Council","PCC","Highways and Transport Services","Environment, Safety and Routine Maintenance","Regeneration","Premises-Related Expenditure","Energy costs","14-May-21","6506597","89.57","PUBLIC LIMITED COMPANY","SCOTTISH AND SOUTHERN ENERGY PLC","300000020481543"
"Portsmouth City Council","PCC","Highways and Transport Services","Environment, Safety and Routine Maintenance","Regeneration","Premises-Related Expenditure","Energy costs","14-May-21","6506597","48.75","PUBLIC LIMITED COMPANY","SCOTTISH AND SOUTHERN ENERGY PLC","300000020481543"
"Portsmouth City Council","PCC","Highways and Transport Services","Environment, Safety and Routine Maintenance","Regeneration","Premises-Related Expenditure","Energy costs","14-May-21","6506597","280.66","PUBLIC LIMITED COMPANY","SCOTTISH AND SOUTHERN ENERGY PLC","300000020481543"
"Portsmouth City Council","PCC","Highways and Transport Services","Environment, Safety and Routine Maintenance","Regeneration","Premises-Related Expenditure","Energy costs","14-May-21","6506597","150.71","PUBLIC LIMITED COMPANY","SCOTTISH AND SOUTHERN ENERGY PLC","300000020481543"
"Portsmouth City Council","PCC","Highways and Transport Services","Environment, Safety and Routine Maintenance","Regeneration","Premises-Related Expenditure","Energy costs","14-May-21","6506597","190.52","PUBLIC LIMITED COMPANY","SCOTTISH AND SOUTHERN ENERGY PLC","300000020481543"
"Portsmouth City Council","PCC","Highways and Transport Services","Environment, Safety and Routine Maintenance","Regeneration","Premises-Related Expenditure","Energy costs","14-May-21","6506597","77.02","PUBLIC LIMITED COMPANY","SCOTTISH AND SOUTHERN ENERGY PLC","300000020481543"
"Portsmouth City Council","PCC","Highways and Transport Services","Environment, Safety and Routine Maintenance","Regeneration","Premises-Related Expenditure","Energy costs","14-May-21","6506597","62.74","PUBLIC LIMITED COMPANY","SCOTTISH AND SOUTHERN ENERGY PLC","300000020481543"
"Portsmouth City Council","PCC","Highways and Transport Services","Environment, Safety and Routine Maintenance","Regeneration","Premises-Related Expenditure","Energy costs","14-May-21","6506597","63.89","PUBLIC LIMITED COMPANY","SCOTTISH AND SOUTHERN ENERGY PLC","300000020481543"
"Portsmouth City Council","PCC","Highways and Transport Services","Environment, Safety and Routine Maintenance","Regeneration","Premises-Related Expenditure","Energy costs","14-May-21","6506597","190.38","PUBLIC LIMITED COMPANY","SCOTTISH AND SOUTHERN ENERGY PLC","300000020481543"
"Portsmouth City Council","PCC","Highways and Transport Services","Environment, Safety and Routine Maintenance","Regeneration","Premises-Related Expenditure","Energy costs","14-May-21","6506597","190.09","PUBLIC LIMITED COMPANY","SCOTTISH AND SOUTHERN ENERGY PLC","300000020481543"
"Portsmouth City Council","PCC","Highways and Transport Services","Environment, Safety and Routine Maintenance","Regeneration","Premises-Related Expenditure","Energy costs","14-May-21","6506597","280.51","PUBLIC LIMITED COMPANY","SCOTTISH AND SOUTHERN ENERGY PLC","300000020481543"
"Portsmouth City Council","PCC","Highways and Transport Services","Environment, Safety and Routine Maintenance","Regeneration","Premises-Related Expenditure","Energy costs","14-May-21","6506597","157.35","PUBLIC LIMITED COMPANY","SCOTTISH AND SOUTHERN ENERGY PLC","300000020481543"
"Portsmouth City Council","PCC","Highways and Transport Services","Environment, Safety and Routine Maintenance","Regeneration","Premises-Related Expenditure","Energy costs","14-May-21","6506597","281.09","PUBLIC LIMITED COMPANY","SCOTTISH AND SOUTHERN ENERGY PLC","300000020481543"
"Portsmouth City Council","PCC","Highways and Transport Services","Environment, Safety and Routine Maintenance","Regeneration","Premises-Related Expenditure","Energy costs","14-May-21","6506597","85.82","PUBLIC LIMITED COMPANY","SCOTTISH AND SOUTHERN ENERGY PLC","300000020481543"
"Portsmouth City Council","PCC","Highways and Transport Services","Environment, Safety and Routine Maintenance","Regeneration","Premises-Related Expenditure","Energy costs","14-May-21","6506597","148.84","PUBLIC LIMITED COMPANY","SCOTTISH AND SOUTHERN ENERGY PLC","300000020481543"
"Portsmouth City Council","PCC","Highways and Transport Services","Environment, Safety and Routine Maintenance","Regeneration","Premises-Related Expenditure","Energy costs","14-May-21","6506597","154.61","PUBLIC LIMITED COMPANY","SCOTTISH AND SOUTHERN ENERGY PLC","300000020481543"
"Portsmouth City Council","PCC","Highways and Transport Services","Environment, Safety and Routine Maintenance","Regeneration","Premises-Related Expenditure","Energy costs","14-May-21","6506597","160.38","PUBLIC LIMITED COMPANY","SCOTTISH AND SOUTHERN ENERGY PLC","300000020481543"
"Portsmouth City Council","PCC","Highways and Transport Services","Environment, Safety and Routine Maintenance","Regeneration","Premises-Related Expenditure","Energy costs","14-May-21","6506597","281.09","PUBLIC LIMITED COMPANY","SCOTTISH AND SOUTHERN ENERGY PLC","300000020481543"
"Portsmouth City Council","PCC","Highways and Transport Services","Environment, Safety and Routine Maintenance","Regeneration","Premises-Related Expenditure","Energy costs","14-May-21","6506597","192.54","PUBLIC LIMITED COMPANY","SCOTTISH AND SOUTHERN ENERGY PLC","300000020481543"
"Portsmouth City Council","PCC","Highways and Transport Services","Environment, Safety and Routine Maintenance","Regeneration","Premises-Related Expenditure","Energy costs","14-May-21","6506597","51.92","PUBLIC LIMITED COMPANY","SCOTTISH AND SOUTHERN ENERGY PLC","300000020481543"
"Portsmouth City Council","PCC","Highways and Transport Services","Environment, Safety and Routine Maintenance","Regeneration","Premises-Related Expenditure","Energy costs","14-May-21","6506597","45.72","PUBLIC LIMITED COMPANY","SCOTTISH AND SOUTHERN ENERGY PLC","300000020481543"
"Portsmouth City Council","PCC","Highways and Transport Services","Environment, Safety and Routine Maintenance","Regeneration","Premises-Related Expenditure","Energy costs","14-May-21","6506597","45.87","PUBLIC LIMITED COMPANY","SCOTTISH AND SOUTHERN ENERGY PLC","300000020481543"
"Portsmouth City Council","PCC","Highways and Transport Services","Environment, Safety and Routine Maintenance","Regeneration","Premises-Related Expenditure","Energy costs","14-May-21","6506597","41.54","PUBLIC LIMITED COMPANY","SCOTTISH AND SOUTHERN ENERGY PLC","300000020481543"
"Portsmouth City Council","PCC","Highways and Transport Services","Environment, Safety and Routine Maintenance","Regeneration","Premises-Related Expenditure","Energy costs","14-May-21","6506597","280.51","PUBLIC LIMITED COMPANY","SCOTTISH AND SOUTHERN ENERGY PLC","300000020481543"
"Portsmouth City Council","PCC","Highways and Transport Services","Environment, Safety and Routine Maintenance","Regeneration","Premises-Related Expenditure","Energy costs","14-May-21","6506597","69.81","PUBLIC LIMITED COMPANY","SCOTTISH AND SOUTHERN ENERGY PLC","300000020481543"
"Portsmouth City Council","PCC","Highways and Transport Services","Environment, Safety and Routine Maintenance","Regeneration","Premises-Related Expenditure","Energy costs","14-May-21","6506597","280.66","PUBLIC LIMITED COMPANY","SCOTTISH AND SOUTHERN ENERGY PLC","300000020481543"
"Portsmouth City Council","PCC","Highways and Transport Services","Environment, Safety and Routine Maintenance","Regeneration","Premises-Related Expenditure","Energy costs","14-May-21","6506597","280.37","PUBLIC LIMITED COMPANY","SCOTTISH AND SOUTHERN ENERGY PLC","300000020481543"
"Portsmouth City Council","PCC","Highways and Transport Services","Environment, Safety and Routine Maintenance","Regeneration","Premises-Related Expenditure","Energy costs","14-May-21","6506597","152.16","PUBLIC LIMITED COMPANY","SCOTTISH AND SOUTHERN ENERGY PLC","300000020481543"
"Portsmouth City Council","PCC","Highways and Transport Services","Environment, Safety and Routine Maintenance","Regeneration","Premises-Related Expenditure","Energy costs","14-May-21","6506597","97.64","PUBLIC LIMITED COMPANY","SCOTTISH AND SOUTHERN ENERGY PLC","300000020481543"
"Portsmouth City Council","PCC","Highways and Transport Services","Environment, Safety and Routine Maintenance","Regeneration","Premises-Related Expenditure","Energy costs","14-May-21","6506597","190.95","PUBLIC LIMITED COMPANY","SCOTTISH AND SOUTHERN ENERGY PLC","300000020481543"
"Portsmouth City Council","PCC","Highways and Transport Services","Environment, Safety and Routine Maintenance","Regeneration","Premises-Related Expenditure","Energy costs","14-May-21","6506597","235.52","PUBLIC LIMITED COMPANY","SCOTTISH AND SOUTHERN ENERGY PLC","300000020481543"
"Portsmouth City Council","PCC","Highways and Transport Services","Environment, Safety and Routine Maintenance","Regeneration","Premises-Related Expenditure","Energy costs","14-May-21","6506597","122.01","PUBLIC LIMITED COMPANY","SCOTTISH AND SOUTHERN ENERGY PLC","300000020481543"
"Portsmouth City Council","PCC","Highways and Transport Services","Environment, Safety and Routine Maintenance","Regeneration","Premises-Related Expenditure","Energy costs","14-May-21","6506597","143.22","PUBLIC LIMITED COMPANY","SCOTTISH AND SOUTHERN ENERGY PLC","300000020481543"
"Portsmouth City Council","PCC","Highways and Transport Services","Environment, Safety and Routine Maintenance","Regeneration","Premises-Related Expenditure","Energy costs","14-May-21","6506597","190.95","PUBLIC LIMITED COMPANY","SCOTTISH AND SOUTHERN ENERGY PLC","300000020481543"
"Portsmouth City Council","PCC","Highways and Transport Services","Environment, Safety and Routine Maintenance","Regeneration","Premises-Related Expenditure","Energy costs","14-May-21","6506597","190.66","PUBLIC LIMITED COMPANY","SCOTTISH AND SOUTHERN ENERGY PLC","300000020481543"
"Portsmouth City Council","PCC","Highways and Transport Services","Environment, Safety and Routine Maintenance","Regeneration","Premises-Related Expenditure","Energy costs","14-May-21","6506597","190.23","PUBLIC LIMITED COMPANY","SCOTTISH AND SOUTHERN ENERGY PLC","300000020481543"
"Portsmouth City Council","PCC","Highways and Transport Services","Environment, Safety and Routine Maintenance","Regeneration","Premises-Related Expenditure","Energy costs","14-May-21","6506597","96.78","PUBLIC LIMITED COMPANY","SCOTTISH AND SOUTHERN ENERGY PLC","300000020481543"
"Portsmouth City Council","PCC","Highways and Transport Services","Environment, Safety and Routine Maintenance","Regeneration","Premises-Related Expenditure","Energy costs","14-May-21","6506597","72.98","PUBLIC LIMITED COMPANY","SCOTTISH AND SOUTHERN ENERGY PLC","300000020481543"
"Portsmouth City Council","PCC","Highways and Transport Services","Environment, Safety and Routine Maintenance","Regeneration","Premises-Related Expenditure","Energy costs","14-May-21","6506597","190.38","PUBLIC LIMITED COMPANY","SCOTTISH AND SOUTHERN ENERGY PLC","300000020481543"
"Portsmouth City Council","PCC","Highways and Transport Services","Environment, Safety and Routine Maintenance","Regeneration","Premises-Related Expenditure","Energy costs","14-May-21","6506597","190.09","PUBLIC LIMITED COMPANY","SCOTTISH AND SOUTHERN ENERGY PLC","300000020481543"
"Portsmouth City Council","PCC","Highways and Transport Services","Environment, Safety and Routine Maintenance","Regeneration","Premises-Related Expenditure","Energy costs","14-May-21","6506597","190.09","PUBLIC LIMITED COMPANY","SCOTTISH AND SOUTHERN ENERGY PLC","300000020481543"
"Portsmouth City Council","PCC","Highways and Transport Services","Environment, Safety and Routine Maintenance","Regeneration","Premises-Related Expenditure","Energy costs","14-May-21","6506597","190.09","PUBLIC LIMITED COMPANY","SCOTTISH AND SOUTHERN ENERGY PLC","300000020481543"
"Portsmouth City Council","PCC","Highways and Transport Services","Environment, Safety and Routine Maintenance","Regeneration","Premises-Related Expenditure","Energy costs","14-May-21","6506597","164.42","PUBLIC LIMITED COMPANY","SCOTTISH AND SOUTHERN ENERGY PLC","300000020481543"
"Portsmouth City Council","PCC","Highways and Transport Services","Environment, Safety and Routine Maintenance","Regeneration","Premises-Related Expenditure","Energy costs","14-May-21","6506597","159.51","PUBLIC LIMITED COMPANY","SCOTTISH AND SOUTHERN ENERGY PLC","300000020481543"
"Portsmouth City Council","PCC","Highways and Transport Services","Environment, Safety and Routine Maintenance","Regeneration","Premises-Related Expenditure","Energy costs","14-May-21","6506597","280.95","PUBLIC LIMITED COMPANY","SCOTTISH AND SOUTHERN ENERGY PLC","300000020481543"
"Portsmouth City Council","PCC","Highways and Transport Services","Environment, Safety and Routine Maintenance","Regeneration","Premises-Related Expenditure","Energy costs","14-May-21","6506597","417.38","PUBLIC LIMITED COMPANY","SCOTTISH AND SOUTHERN ENERGY PLC","300000020481543"
"Portsmouth City Council","PCC","Highways and Transport Services","Environment, Safety and Routine Maintenance","Regeneration","Premises-Related Expenditure","Energy costs","14-May-21","6506597","92.74","PUBLIC LIMITED COMPANY","SCOTTISH AND SOUTHERN ENERGY PLC","300000020481543"
"Portsmouth City Council","PCC","Highways and Transport Services","Street Lighting (including energy costs)","Regeneration","Premises-Related Expenditure","Energy costs","14-May-21","6506597","104.71","PUBLIC LIMITED COMPANY","SCOTTISH AND SOUTHERN ENERGY PLC","300000020481543"
"Portsmouth City Council","PCC","Highways and Transport Services","Street Lighting (including energy costs)","Regeneration","Premises-Related Expenditure","Energy costs","14-May-21","6506597","115.24","PUBLIC LIMITED COMPANY","SCOTTISH AND SOUTHERN ENERGY PLC","300000020481543"
"Portsmouth City Council","PCC","Highways and Transport Services","Environment, Safety and Routine Maintenance","Regeneration","Premises-Related Expenditure","Energy costs","14-May-21","6506597","56.83","PUBLIC LIMITED COMPANY","SCOTTISH AND SOUTHERN ENERGY PLC","300000020481543"
"Portsmouth City Council","PCC","Highways and Transport Services","Environment, Safety and Routine Maintenance","Regeneration","Premises-Related Expenditure","Energy costs","14-May-21","6506597","117.98","PUBLIC LIMITED COMPANY","SCOTTISH AND SOUTHERN ENERGY PLC","300000020481543"
"Portsmouth City Council","PCC","Highways and Transport Services","Environment, Safety and Routine Maintenance","Regeneration","Premises-Related Expenditure","Energy costs","14-May-21","6506597","255.27","PUBLIC LIMITED COMPANY","SCOTTISH AND SOUTHERN ENERGY PLC","300000020481543"
"Portsmouth City Council","PCC","Highways and Transport Services","Environment, Safety and Routine Maintenance","Regeneration","Premises-Related Expenditure","Energy costs","14-May-21","6506597","255.27","PUBLIC LIMITED COMPANY","SCOTTISH AND SOUTHERN ENERGY PLC","300000020481543"
"Portsmouth City Council","PCC","Children's and Education Services","Primary Schools","Children's Services and Education","Supplies and Services","Equipment, furniture and materials","4-May-21","6504290","1,387.85","SUPPLIER","RICOH UK LIMITED","300000020457064"
"Portsmouth City Council","PCC","Children's and Education Services","Primary Schools","Children's Services and Education","Supplies and Services","Communications and computing","13-May-21","6506320","1,048.00","SUPPLIER","JIGSAW SYSTEMS LTD","300000020457728"
"Portsmouth City Council","PCC","Children's and Education Services","Primary Schools","Children's Services and Education","Supplies and Services","Equipment, furniture and materials","6-May-21","6504946","160.76","PUBLIC LIMITED COMPANY","SHARP BUSINESS SYSTEMS UK PLC","300000020481901"
"Portsmouth City Council","PCC","Children's and Education Services","Primary Schools","Children's Services and Education","Supplies and Services","Equipment, furniture and materials","6-May-21","6504946","250.03","PUBLIC LIMITED COMPANY","SHARP BUSINESS SYSTEMS UK PLC","300000020481901"
"Portsmouth City Council","PCC","Children's and Education Services","Primary Schools","Children's Services and Education","Supplies and Services","Equipment, furniture and materials","6-May-21","6504946","173.82","PUBLIC LIMITED COMPANY","SHARP BUSINESS SYSTEMS UK PLC","300000020481901"
"Portsmouth City Council","PCC","Children's and Education Services","Primary Schools","Children's Services and Education","Supplies and Services","Equipment, furniture and materials","6-May-21","6504946","845.73","PUBLIC LIMITED COMPANY","SHARP BUSINESS SYSTEMS UK PLC","300000020481901"
"Portsmouth City Council","PCC","Children's and Education Services","Primary Schools","Children's Services and Education","Employees","Direct employee expenses","4-May-21","6504252","100","PUBLIC LIMITED COMPANY","SERVOCA PLC","300000020461095"
"Portsmouth City Council","PCC","Children's and Education Services","Primary Schools","Children's Services and Education","Premises-Related Expenditure","Energy costs","14-May-21","6506597","73.05","PUBLIC LIMITED COMPANY","SCOTTISH AND SOUTHERN ENERGY PLC","300000020481543"
"Portsmouth City Council","PCC","Housing Revenue Account","Special Services","Housing, Neighbourhood and Building Services","Premises-Related Expenditure","Energy costs","14-May-21","6506597","47.15","PUBLIC LIMITED COMPANY","SCOTTISH AND SOUTHERN ENERGY PLC","300000020481543"
"Portsmouth City Council","PCC","Housing Revenue Account","Special Services","Housing, Neighbourhood and Building Services","Premises-Related Expenditure","Energy costs","14-May-21","6506597","32.69","PUBLIC LIMITED COMPANY","SCOTTISH AND SOUTHERN ENERGY PLC","300000020481543"
"Portsmouth City Council","PCC","Housing Revenue Account","Special Services","Housing, Neighbourhood and Building Services","Premises-Related Expenditure","Energy costs","14-May-21","6506597","116.77","PUBLIC LIMITED COMPANY","SCOTTISH AND SOUTHERN ENERGY PLC","300000020481543"
"Portsmouth City Council","PCC","Housing Revenue Account","Special Services","Housing, Neighbourhood and Building Services","Premises-Related Expenditure","Energy costs","14-May-21","6506597","77.6","PUBLIC LIMITED COMPANY","SCOTTISH AND SOUTHERN ENERGY PLC","300000020481543"
"Portsmouth City Council","PCC","Planning Services","Business support","Regeneration","Premises-Related Expenditure","Energy costs","14-May-21","6506597","34.19","PUBLIC LIMITED COMPANY","SCOTTISH AND SOUTHERN ENERGY PLC","300000020481543"
"Portsmouth City Council","PCC","Housing Revenue Account","Rents, Rates, Taxes and Other Charges","Housing, Neighbourhood and Building Services","Premises-Related Expenditure","Energy costs","14-May-21","6506597","323.14","PUBLIC LIMITED COMPANY","SCOTTISH AND SOUTHERN ENERGY PLC","300000020481543"
"Portsmouth City Council","PCC","Cultural and Related Services","Open Spaces","Culture, Leisure & Regulatory Services","Premises-Related Expenditure","Energy costs","14-May-21","6506597","75.63","PUBLIC LIMITED COMPANY","SCOTTISH AND SOUTHERN ENERGY PLC","300000020481543"
"Portsmouth City Council","PCC","Highways and Transport Services","Structural Maintenance","Regeneration","Premises-Related Expenditure","Energy costs","14-May-21","6506597","41.11","PUBLIC LIMITED COMPANY","SCOTTISH AND SOUTHERN ENERGY PLC","300000020481543"
"Portsmouth City Council","PCC","Housing Revenue Account","Special Services","Housing, Neighbourhood and Building Services","Premises-Related Expenditure","Energy costs","14-May-21","6506597","70.67","PUBLIC LIMITED COMPANY","SCOTTISH AND SOUTHERN ENERGY PLC","300000020481543"
"Portsmouth City Council","PCC","Housing Revenue Account","Special Services","Housing, Neighbourhood and Building Services","Premises-Related Expenditure","Energy costs","14-May-21","6506597","111.07","PUBLIC LIMITED COMPANY","SCOTTISH AND SOUTHERN ENERGY PLC","300000020481543"
"Portsmouth City Council","PCC","Housing Revenue Account","Special Services","Housing, Neighbourhood and Building Services","Premises-Related Expenditure","Energy costs","14-May-21","6506597","34.92","PUBLIC LIMITED COMPANY","SCOTTISH AND SOUTHERN ENERGY PLC","300000020481543"
"Portsmouth City Council","PCC","Housing Revenue Account","Special Services","Housing, Neighbourhood and Building Services","Premises-Related Expenditure","Energy costs","14-May-21","6506597","72.16","PUBLIC LIMITED COMPANY","SCOTTISH AND SOUTHERN ENERGY PLC","300000020481543"
"Portsmouth City Council","PCC","Housing Revenue Account","Special Services","Housing, Neighbourhood and Building Services","Premises-Related Expenditure","Energy costs","14-May-21","6506597","127.13","PUBLIC LIMITED COMPANY","SCOTTISH AND SOUTHERN ENERGY PLC","300000020481543"
"Portsmouth City Council","PCC","Housing Revenue Account","Special Services","Housing, Neighbourhood and Building Services","Premises-Related Expenditure","Energy costs","14-May-21","6506597","99.08","PUBLIC LIMITED COMPANY","SCOTTISH AND SOUTHERN ENERGY PLC","300000020481543"
"Portsmouth City Council","PCC","Housing Revenue Account","Special Services","Housing, Neighbourhood and Building Services","Premises-Related Expenditure","Energy costs","14-May-21","6506597","178.41","PUBLIC LIMITED COMPANY","SCOTTISH AND SOUTHERN ENERGY PLC","300000020481543"
"Portsmouth City Council","PCC","Housing Revenue Account","Special Services","Housing, Neighbourhood and Building Services","Premises-Related Expenditure","Energy costs","14-May-21","6506597","76.44","PUBLIC LIMITED COMPANY","SCOTTISH AND SOUTHERN ENERGY PLC","300000020481543"
"Portsmouth City Council","PCC","Housing Revenue Account","Special Services","Housing, Neighbourhood and Building Services","Premises-Related Expenditure","Energy costs","14-May-21","6506597","42","PUBLIC LIMITED COMPANY","SCOTTISH AND SOUTHERN ENERGY PLC","300000020481543"
"Portsmouth City Council","PCC","Housing Revenue Account","Special Services","Housing, Neighbourhood and Building Services","Premises-Related Expenditure","Energy costs","14-May-21","6506597","129.63","PUBLIC LIMITED COMPANY","SCOTTISH AND SOUTHERN ENERGY PLC","300000020481543"
"Portsmouth City Council","PCC","Housing Revenue Account","Special Services","Housing, Neighbourhood and Building Services","Premises-Related Expenditure","Energy costs","14-May-21","6506597","109.8","PUBLIC LIMITED COMPANY","SCOTTISH AND SOUTHERN ENERGY PLC","300000020481543"
"Portsmouth City Council","PCC","Housing Revenue Account","Special Services","Housing, Neighbourhood and Building Services","Premises-Related Expenditure","Energy costs","14-May-21","6506597","70.36","PUBLIC LIMITED COMPANY","SCOTTISH AND SOUTHERN ENERGY PLC","300000020481543"
"Portsmouth City Council","PCC","Housing Revenue Account","Special Services","Housing, Neighbourhood and Building Services","Premises-Related Expenditure","Energy costs","14-May-21","6506597","92.22","PUBLIC LIMITED COMPANY","SCOTTISH AND SOUTHERN ENERGY PLC","300000020481543"
"Portsmouth City Council","PCC","Housing Revenue Account","Special Services","Housing, Neighbourhood and Building Services","Premises-Related Expenditure","Energy costs","14-May-21","6506597","95.85","PUBLIC LIMITED COMPANY","SCOTTISH AND SOUTHERN ENERGY PLC","300000020481543"
